Workbook

Sheet AdjustedExtractionC1
A1: Bee-ID | B1: Treatment | C1: Lifespan | D1: AFF | E1: CellCleaning | F1: Brood capping | G1: Brood feeding | H1: Brood patrol | I1: Queen tending | J1: Nectar receiving | K1: Pollen handling | L1: Comb building | M1: Hive cleaning | N1: Ventilation | O1: Patrolling | P1: Resting | Q1: Guarding | R1: Orientation | S1: Nectar deposit | T1: Grooming | U1: Selfgroom | V1: Allogroom | W1: Investigate | X1: Waggle | Y1: Round dance | Z1: Dance follow | AA1: Pollen foraging | AB1: Runway | AC1: Foraging
A2: B12 | B2: C | C2: 11 | D2: 10 | E2: 1 | F2: 0 | G2: 0 | H2: 0 | I2: 0 | J2: 0 | K2: 0 | L2: 0 | M2: 0 | N2: 0 | O2: 1 | P2: 1 | Q2: 0 | R2: 0 | S2: 0 | T2: 0 | U2: 5 | V2: 1 | W2: 1 | X2: 0 | Y2: 0 | Z2: 1 | AA2: 1 | AB2: 4 | AC2: 0
A3: B13 | B3: C | C3: 30 | D3: 26 | E3: 8 | F3: 0 | G3: 0 | H3: 6 | I3: 0 | J3: 0 | K3: 0 | L3: 7 | M3: 1 | N3: 34 | O3: 35 | P3: 22 | Q3: 0 | R3: 0 | S3: 0 | T3: 14 | U3: 37 | V3: 2 | W3: 13 | X3: 0 | Y3: 0 | Z3: 0 | AA3: 0 | AB3: 19 | AC3: 2
A4: B19 | B4: C | C4: 22 | D4: 20 | E4: 10 | F4: 0 | G4: 0 | H4: 8 | I4: 0 | J4: 3 | K4: 0 | L4: 8 | M4: 1 | N4: 19 | O4: 35 | P4: 21 | Q4: 0 | R4: 0 | S4: 0 | T4: 8 | U4: 20 | V4: 2 | W4: 16 | X4: 0 | Y4: 0 | Z4: 1 | AA4: 0 | AB4: 5 | AC4: 1
A5: B2 | B5: C | C5: 20 | D5: 11 | E5: 0 | F5: 0 | G5: 0 | H5: 6 | I5: 0 | J5: 3 | K5: 0 | L5: 0 | M5: 4 | N5: 1 | O5: 8 | P5: 6 | Q5: 2 | R5: 0 | S5: 0 | T5: 0 | U5: 21 | V5: 1 | W5: 4 | X5: 1 | Y5: 0 | Z5: 0 | AA5: 3 | AB5: 28 | AC5: 1
A6: B23 | B6: C | C6: 16 | D6: 10 | E6: 0 | F6: 1 | G6: 0 | H6: 2 | I6: 0 | J6: 0 | K6: 0 | L6: 1 | M6: 0 | N6: 0 | O6: 1 | P6: 2 | Q6: 0 | R6: 0 | S6: 0 | T6: 1 | U6: 3 | V6: 1 | W6: 0 | X6: 0 | Y6: 0 | Z6: 1 | AA6: 0 | AB6: 1 | AC6: 0
A7: B25 | B7: C | C7: 20 | D7: 15 | E7: 2 | F7: 0 | G7: 1 | H7: 8 | I7: 0 | J7: 5 | K7: 0 | L7: 0 | M7: 5 | N7: 1 | O7: 13 | P7: 10 | Q7: 1 | R7: 1 | S7: 0 | T7: 3 | U7: 38 | V7: 3 | W7: 7 | X7: 0 | Y7: 0 | Z7: 2 | AA7: 2 | AB7: 35 | AC7: 0
A8: B27 | B8: C | C8: 6 | E8: 0 | F8: 0 | G8: 0 | H8: 0 | I8: 0 | J8: 0 | K8: 0 | L8: 0 | M8: 0 | N8: 0 | O8: 0 | P8: 1 | Q8: 0 | R8: 0 | S8: 0 | T8: 0 | U8: 0 | V8: 0 | W8: 0 | X8: 0 | Y8: 0 | Z8: 0 | AA8: 0 | AB8: 0 | AC8: 0
A9: B29 | B9: C | C9: 12 | E9: 0 | F9: 0 | G9: 0 | H9: 10 | I9: 0 | J9: 0 | K9: 0 | L9: 0 | M9: 0 | N9: 1 | O9: 4 | P9: 3 | Q9: 0 | R9: 0 | S9: 0 | T9: 2 | U9: 7 | V9: 1 | W9: 4 | X9: 0 | Y9: 0 | Z9: 0 | AA9: 0 | AB9: 1 | AC9: 0
A10: B31 | B10: C | C10: 9 | E10: 0 | F10: 0 | G10: 0 | H10: 1 | I10: 0 | J10: 0 | K10: 0 | L10: 0 | M10: 0 | N10: 2 | O10: 2 | P10: 1 | Q10: 0 | R10: 0 | S10: 0 | T10: 0 | U10: 1 | V10: 0 | W10: 1 | X10: 0 | Y10: 0 | Z10: 0 | AA10: 0 | AB10: 0 | AC10: 0
A11: B44 | B11: C | C11: 11 | D11: 9 | E11: 0 | F11: 0 | G11: 0 | H11: 0 | I11: 0 | J11: 0 | K11: 0 | L11: 1 | M11: 0 | N11: 0 | O11: 0 | P11: 2 | Q11: 0 | R11: 0 | S11: 0 | T11: 0 | U11: 4 | V11: 0 | W11: 3 | X11: 1 | Y11: 0 | Z11: 0 | AA11: 0 | AB11: 3 | AC11: 0
A12: B52 | B12: C | C12: 15 | E12: 0 | F12: 1 | G12: 0 | H12: 0 | I12: 0 | J12: 1 | K12: 0 | L12: 0 | M12: 0 | N12: 1 | O12: 6 | P12: 0 | Q12: 0 | R12: 0 | S12: 0 | T12: 0 | U12: 4 | V12: 0 | W12: 0 | X12: 0 | Y12: 0 | Z12: 0 | AA12: 0 | AB12: 2 | AC12: 0
A13: B55 | B13: C | C13: 8 | D13: 8 | E13: 0 | F13: 0 | G13: 0 | H13: 0 | I13: 0 | J13: 0 | K13: 0 | L13: 2 | M13: 0 | N13: 0 | O13: 2 | P13: 1 | Q13: 0 | R13: 0 | S13: 0 | T13: 0 | U13: 2 | V13: 0 | W13: 1 | X13: 0 | Y13: 0 | Z13: 1 | AA13: 0 | AB13: 1 | AC13: 0
A14: B59 | B14: C | C14: 17 | D14: 14 | E14: 1 | F14: 0 | G14: 0 | H14: 2 | I14: 0 | J14: 3 | K14: 0 | L14: 0 | M14: 0 | N14: 2 | O14: 3 | P14: 6 | Q14: 0 | R14: 0 | S14: 0 | T14: 2 | U14: 20 | V14: 1 | W14: 5 | X14: 0 | Y14: 0 | Z14: 2 | AA14: 1 | AB14: 14 | AC14: 0
A15: B60 | B15: C | C15: 7 | E15: 0 | F15: 0 | G15: 0 | H15: 1 | I15: 0 | J15: 0 | K15: 0 | L15: 1 | M15: 0 | N15: 0 | O15: 1 | P15: 1 | Q15: 0 | R15: 0 | S15: 0 | T15: 1 | U15: 1 | V15: 0 | W15: 0 | X15: 0 | Y15: 0 | Z15: 0 | AA15: 0 | AB15: 0 | AC15: 0
A16: B7 | B16: C | C16: 14 | D16: 9 | E16: 0 | F16: 0 | G16: 0 | H16: 1 | I16: 0 | J16: 0 | K16: 0 | L16: 0 | M16: 0 | N16: 0 | O16: 0 | P16: 6 | Q16: 0 | R16: 0 | S16: 0 | T16: 0 | U16: 7 | V16: 0 | W16: 3 | X16: 0 | Y16: 0 | Z16: 1 | AA16: 0 | AB16: 4 | AC16: 0
A17: B70 | B17: C | C17: 9 | E17: 0 | F17: 0 | G17: 0 | H17: 1 | I17: 0 | J17: 0 | K17: 0 | L17: 1 | M17: 0 | N17: 0 | O17: 0 | P17: 0 | Q17: 0 | R17: 0 | S17: 0 | T17: 0 | U17: 1 | V17: 0 | W17: 0 | X17: 0 | Y17: 0 | Z17: 0 | AA17: 0 | AB17: 1 | AC17: 0
A18: B73 | B18: C | C18: 11 | E18: 0 | F18: 1 | G18: 1 | H18: 4 | I18: 0 | J18: 0 | K18: 0 | L18: 0 | M18: 1 | N18: 2 | O18: 2 | P18: 1 | Q18: 1 | R18: 0 | S18: 0 | T18: 0 | U18: 12 | V18: 0 | W18: 1 | X18: 0 | Y18: 0 | Z18: 0 | AA18: 0 | AB18: 6 | AC18: 0
A19: B75 | B19: C | C19: 11 | D19: 9 | E19: 0 | F19: 0 | G19: 1 | H19: 5 | I19: 0 | J19: 1 | K19: 0 | L19: 0 | M19: 0 | N19: 0 | O19: 5 | P19: 1 | Q19: 1 | R19: 0 | S19: 0 | T19: 0 | U19: 15 | V19: 5 | W19: 1 | X19: 2 | Y19: 0 | Z19: 0 | AA19: 0 | AB19: 2 | AC19: 0
A20: B77 | B20: C | C20: 6 | E20: 0 | F20: 0 | G20: 0 | H20: 0 | I20: 0 | J20: 0 | K20: 0 | L20: 0 | M20: 0 | N20: 0 | O20: 0 | P20: 3 | Q20: 0 | R20: 0 | S20: 0 | T20: 0 | U20: 1 | V20: 0 | W20: 0 | X20: 0 | Y20: 0 | Z20: 0 | AA20: 0 | AB20: 0 | AC20: 0
A21: B79 | B21: C | C21: 17 | E21: 0 | F21: 0 | G21: 0 | H21: 1 | I21: 0 | J21: 1 | K21: 0 | L21: 0 | M21: 0 | N21: 0 | O21: 5 | P21: 1 | Q21: 0 | R21: 0 | S21: 0 | T21: 0 | U21: 8 | V21: 0 | W21: 1 | X21: 0 | Y21: 0 | Z21: 0 | AA21: 0 | AB21: 3 | AC21: 0
A22: B8 | B22: C | C22: 11 | E22: 1 | F22: 0 | G22: 0 | H22: 2 | I22: 0 | J22: 0 | K22: 0 | L22: 0 | M22: 0 | N22: 0 | O22: 3 | P22: 1 | Q22: 1 | R22: 0 | S22: 0 | T22: 1 | U22: 7 | V22: 0 | W22: 0 | X22: 0 | Y22: 0 | Z22: 0 | AA22: 0 | AB22: 1 | AC22: 0
A23: B82 | B23: C | C23: 23 | D23: 11 | E23: 2 | F23: 0 | G23: 0 | H23: 10 | I23: 0 | J23: 5 | K23: 0 | L23: 0 | M23: 5 | N23: 10 | O23: 14 | P23: 15 | Q23: 2 | R23: 0 | S23: 0 | T23: 2 | U23: 45 | V23: 10 | W23: 14 | X23: 0 | Y23: 0 | Z23: 1 | AA23: 1 | AB23: 45 | AC23: 2
A24: B83 | B24: C | C24: 26 | D24: 18 | E24: 2 | F24: 0 | G24: 0 | H24: 3 | I24: 0 | J24: 3 | K24: 0 | L24: 3 | M24: 4 | N24: 5 | O24: 33 | P24: 16 | Q24: 2 | R24: 0 | S24: 0 | T24: 4 | U24: 50 | V24: 1 | W24: 20 | X24: 0 | Y24: 0 | Z24: 1 | AA24: 1 | AB24: 21 | AC24: 1
A25: B85 | B25: C | C25: 11 | E25: 1 | F25: 1 | G25: 0 | H25: 1 | I25: 0 | J25: 1 | K25: 0 | L25: 0 | M25: 0 | N25: 1 | O25: 0 | P25: 1 | Q25: 0 | R25: 0 | S25: 0 | T25: 1 | U25: 7 | V25: 0 | W25: 3 | X25: 0 | Y25: 0 | Z25: 0 | AA25: 0 | AB25: 3 | AC25: 0
A26: B86 | B26: C | C26: 20 | D26: 15 | E26: 0 | F26: 0 | G26: 0 | H26: 0 | I26: 0 | J26: 3 | K26: 0 | L26: 0 | M26: 1 | N26: 0 | O26: 4 | P26: 3 | Q26: 0 | R26: 0 | S26: 0 | T26: 0 | U26: 2 | V26: 1 | W26: 1 | X26: 0 | Y26: 0 | Z26: 0 | AA26: 1 | AB26: 3 | AC26: 0
A27: B87 | B27: C | C27: 9 | D27: 9 | E27: 0 | F27: 0 | G27: 0 | H27: 0 | I27: 0 | J27: 0 | K27: 0 | L27: 0 | M27: 0 | N27: 0 | O27: 0 | P27: 0 | Q27: 0 | R27: 0 | S27: 0 | T27: 0 | U27: 4 | V27: 0 | W27: 0 | X27: 0 | Y27: 0 | Z27: 0 | AA27: 1 | AB27: 1 | AC27: 0
A28: B95 | B28: C | C28: 8 | E28: 0 | F28: 0 | G28: 0 | H28: 3 | I28: 0 | J28: 0 | K28: 0 | L28: 1 | M28: 0 | N28: 0 | O28: 3 | P28: 1 | Q28: 0 | R28: 0 | S28: 0 | T28: 0 | U28: 3 | V28: 0 | W28: 0 | X28: 0 | Y28: 0 | Z28: 0 | AA28: 0 | AB28: 0 | AC28: 0
A29: B97 | B29: C | C29: 10 | D29: 10 | E29: 0 | F29: 0 | G29: 0 | H29: 0 | I29: 0 | J29: 0 | K29: 0 | L29: 0 | M29: 0 | N29: 0 | O29: 1 | P29: 1 | Q29: 0 | R29: 0 | S29: 0 | T29: 0 | U29: 10 | V29: 0 | W29: 1 | X29: 1 | Y29: 0 | Z29: 0 | AA29: 0 | AB29: 3 | AC29: 0
A30: B98 | B30: C | C30: 21 | D30: 14 | E30: 2 | F30: 0 | G30: 2 | H30: 6 | I30: 0 | J30: 2 | K30: 0 | L30: 0 | M30: 2 | N30: 1 | O30: 19 | P30: 14 | Q30: 1 | R30: 0 | S30: 0 | T30: 2 | U30: 28 | V30: 3 | W30: 10 | X30: 1 | Y30: 0 | Z30: 3 | AA30: 0 | AB30: 21 | AC30: 0
A31: DR12 | B31: C | C31: 10 | E31: 0 | F31: 0 | G31: 0 | H31: 1 | I31: 0 | J31: 0 | K31: 0 | L31: 1 | M31: 0 | N31: 3 | O31: 4 | P31: 0 | Q31: 0 | R31: 0 | S31: 0 | T31: 0 | U31: 1 | V31: 0 | W31: 1 | X31: 0 | Y31: 0 | Z31: 0 | AA31: 0 | AB31: 1 | AC31: 0
A32: DR13 | B32: C | C32: 8 | E32: 1 | F32: 1 | G32: 0 | H32: 3 | I32: 0 | J32: 0 | K32: 0 | L32: 0 | M32: 0 | N32: 0 | O32: 0 | P32: 0 | Q32: 0 | R32: 0 | S32: 0 | T32: 0 | U32: 0 | V32: 0 | W32: 1 | X32: 0 | Y32: 0 | Z32: 0 | AA32: 0 | AB32: 0 | AC32: 0
A33: DR18 | B33: C | C33: 5 | E33: 0 | F33: 0 | G33: 0 | H33: 2 | I33: 0 | J33: 0 | K33: 0 | L33: 0 | M33: 0 | N33: 0 | O33: 0 | P33: 0 | Q33: 0 | R33: 0 | S33: 0 | T33: 0 | U33: 0 | V33: 0 | W33: 0 | X33: 0 | Y33: 0 | Z33: 0 | AA33: 0 | AB33: 0 | AC33: 0
A34: DR21 | B34: C | C34: 4 | E34: 0 | F34: 1 | G34: 0 | H34: 0 | I34: 0 | J34: 0 | K34: 0 | L34: 0 | M34: 0 | N34: 0 | O34: 0 | P34: 0 | Q34: 0 | R34: 0 | S34: 0 | T34: 0 | U34: 1 | V34: 0 | W34: 0 | X34: 0 | Y34: 0 | Z34: 0 | AA34: 0 | AB34: 0 | AC34: 0
A35: DR27 | B35: C | C35: 12 | E35: 0 | F35: 0 | G35: 0 | H35: 1 | I35: 0 | J35: 0 | K35: 0 | L35: 0 | M35: 0 | N35: 0 | O35: 0 | P35: 1 | Q35: 0 | R35: 0 | S35: 0 | T35: 0 | U35: 0 | V35: 0 | W35: 0 | X35: 0 | Y35: 0 | Z35: 0 | AA35: 0 | AB35: 0 | AC35: 0
A36: DR24 | B36: C | C36: 37 | D36: 27 | E36: 2 | F36: 0 | G36: 0 | H36: 6 | I36: 0 | J36: 4 | K36: 1 | L36: 3 | M36: 0 | N36: 4 | O36: 25 | P36: 27 | Q36: 0 | R36: 0 | S36: 0 | T36: 8 | U36: 34 | V36: 0 | W36: 18 | X36: 1 | Y36: 0 | Z36: 1 | AA36: 0 | AB36: 20 | AC36: 0
A37: DR28 | B37: C | C37: 8 | E37: 0 | F37: 0 | G37: 0 | H37: 1 | I37: 0 | J37: 0 | K37: 0 | L37: 4 | M37: 1 | N37: 2 | O37: 1 | P37: 6 | Q37: 0 | R37: 0 | S37: 0 | T37: 0 | U37: 2 | V37: 0 | W37: 0 | X37: 0 | Y37: 0 | Z37: 0 | AA37: 0 | AB37: 0 | AC37: 0
A38: DR3 | B38: C | C38: 10 | E38: 1 | F38: 0 | G38: 0 | H38: 2 | I38: 0 | J38: 0 | K38: 0 | L38: 0 | M38: 0 | N38: 0 | O38: 0 | P38: 0 | Q38: 0 | R38: 0 | S38: 0 | T38: 0 | U38: 2 | V38: 0 | W38: 1 | X38: 0 | Y38: 0 | Z38: 0 | AA38: 0 | AB38: 0 | AC38: 0
A39: DR29 | B39: C | C39: 25 | D39: 18 | E39: 3 | F39: 0 | G39: 0 | H39: 1 | I39: 0 | J39: 2 | K39: 0 | L39: 0 | M39: 3 | N39: 6 | O39: 12 | P39: 8 | Q39: 0 | R39: 0 | S39: 0 | T39: 3 | U39: 18 | V39: 0 | W39: 8 | X39: 0 | Y39: 0 | Z39: 1 | AA39: 1 | AB39: 19 | AC39: 0
A40: DR30 | B40: C | C40: 21 | E40: 0 | F40: 0 | G40: 0 | H40: 0 | I40: 0 | J40: 0 | K40: 0 | L40: 0 | M40: 0 | N40: 0 | O40: 4 | P40: 2 | Q40: 0 | R40: 0 | S40: 0 | T40: 0 | U40: 5 | V40: 0 | W40: 1 | X40: 0 | Y40: 0 | Z40: 0 | AA40: 0 | AB40: 2 | AC40: 0
A41: DR33 | B41: C | C41: 11 | E41: 0 | F41: 0 | G41: 1 | H41: 3 | I41: 0 | J41: 0 | K41: 0 | L41: 2 | M41: 1 | N41: 0 | O41: 1 | P41: 1 | Q41: 1 | R41: 0 | S41: 0 | T41: 0 | U41: 6 | V41: 0 | W41: 1 | X41: 0 | Y41: 0 | Z41: 0 | AA41: 0 | AB41: 1 | AC41: 0
A42: DR39 | B42: C | C42: 16 | D42: 16 | E42: 3 | F42: 0 | G42: 0 | H42: 5 | I42: 0 | J42: 2 | K42: 0 | L42: 2 | M42: 3 | N42: 4 | O42: 14 | P42: 7 | Q42: 0 | R42: 0 | S42: 0 | T42: 5 | U42: 23 | V42: 0 | W42: 8 | X42: 1 | Y42: 0 | Z42: 0 | AA42: 0 | AB42: 10 | AC42: 0
A43: DR40 | B43: C | C43: 9 | E43: 0 | F43: 0 | G43: 0 | H43: 2 | I43: 0 | J43: 0 | K43: 0 | L43: 0 | M43: 0 | N43: 1 | O43: 6 | P43: 10 | Q43: 0 | R43: 0 | S43: 0 | T43: 0 | U43: 9 | V43: 0 | W43: 1 | X43: 0 | Y43: 0 | Z43: 0 | AA43: 0 | AB43: 0 | AC43: 0
A44: DR4 | B44: C | C44: 6 | E44: 0 | F44: 0 | G44: 0 | H44: 1 | I44: 0 | J44: 0 | K44: 0 | L44: 0 | M44: 0 | N44: 0 | O44: 1 | P44: 1 | Q44: 0 | R44: 0 | S44: 0 | T44: 0 | U44: 1 | V44: 0 | W44: 0 | X44: 0 | Y44: 0 | Z44: 0 | AA44: 0 | AB44: 0 | AC44: 0
A45: DR41 | B45: C | C45: 7 | E45: 1 | F45: 0 | G45: 0 | H45: 1 | I45: 0 | J45: 0 | K45: 0 | L45: 0 | M45: 0 | N45: 0 | O45: 0 | P45: 1 | Q45: 0 | R45: 0 | S45: 0 | T45: 0 | U45: 0 | V45: 0 | W45: 1 | X45: 0 | Y45: 0 | Z45: 0 | AA45: 0 | AB45: 0 | AC45: 0
A46: DR42 | B46: C | C46: 6 | E46: 0 | F46: 0 | G46: 0 | H46: 0 | I46: 0 | J46: 0 | K46: 0 | L46: 0 | M46: 0 | N46: 0 | O46: 0 | P46: 0 | Q46: 0 | R46: 0 | S46: 0 | T46: 0 | U46: 1 | V46: 0 | W46: 0 | X46: 0 | Y46: 0 | Z46: 0 | AA46: 0 | AB46: 0 | AC46: 0
A47: DR46 | B47: C | C47: 14 | E47: 0 | F47: 0 | G47: 0 | H47: 3 | I47: 0 | J47: 0 | K47: 0 | L47: 0 | M47: 0 | N47: 0 | O47: 1 | P47: 0 | Q47: 0 | R47: 0 | S47: 0 | T47: 1 | U47: 0 | V47: 0 | W47: 0 | X47: 0 | Y47: 0 | Z47: 0 | AA47: 0 | AB47: 0 | AC47: 0
A48: DR48 | B48: C | C48: 10 | E48: 1 | F48: 0 | G48: 1 | H48: 4 | I48: 0 | J48: 0 | K48: 0 | L48: 0 | M48: 0 | N48: 1 | O48: 1 | P48: 1 | Q48: 0 | R48: 0 | S48: 0 | T48: 1 | U48: 8 | V48: 0 | W48: 2 | X48: 0 | Y48: 0 | Z48: 0 | AA48: 0 | AB48: 1 | AC48: 0
A49: DR49 | B49: C | C49: 24 | E49: 5 | F49: 0 | G49: 0 | H49: 12 | I49: 0 | J49: 1 | K49: 0 | L49: 4 | M49: 2 | N49: 6 | O49: 17 | P49: 35 | Q49: 0 | R49: 0 | S49: 0 | T49: 11 | U49: 32 | V49: 0 | W49: 13 | X49: 0 | Y49: 0 | Z49: 0 | AA49: 0 | AB49: 11 | AC49: 0
A50: DR50 | B50: C | C50: 5 | E50: 0 | F50: 0 | G50: 0 | H50: 0 | I50: 0 | J50: 0 | K50: 0 | L50: 1 | M50: 0 | N50: 0 | O50: 0 | P50: 0 | Q50: 0 | R50: 0 | S50: 0 | T50: 0 | U50: 0 | V50: 0 | W50: 0 | X50: 0 | Y50: 0 | Z50: 0 | AA50: 0 | AB50: 0 | AC50: 0
A51: DR52 | B51: C | C51: 4 | E51: 0 | F51: 0 | G51: 0 | H51: 2 | I51: 0 | J51: 0 | K51: 0 | L51: 0 | M51: 0 | N51: 0 | O51: 0 | P51: 0 | Q51: 0 | R51: 0 | S51: 0 | T51: 0 | U51: 0 | V51: 0 | W51: 0 | X51: 0 | Y51: 0 | Z51: 0 | AA51: 0 | AB51: 0 | AC51: 0
A52: DR54 | B52: C | C52: 12 | E52: 4 | F52: 0 | G52: 0 | H52: 6 | I52: 0 | J52: 0 | K52: 0 | L52: 7 | M52: 1 | N52: 1 | O52: 9 | P52: 18 | Q52: 0 | R52: 0 | S52: 0 | T52: 4 | U52: 14 | V52: 1 | W52: 12 | X52: 0 | Y52: 0 | Z52: 0 | AA52: 0 | AB52: 3 | AC52: 0
A53: DR56 | B53: C | C53: 10 | E53: 3 | F53: 0 | G53: 1 | H53: 8 | I53: 0 | J53: 0 | K53: 0 | L53: 1 | M53: 0 | N53: 1 | O53: 10 | P53: 5 | Q53: 0 | R53: 0 | S53: 0 | T53: 1 | U53: 11 | V53: 0 | W53: 3 | X53: 0 | Y53: 0 | Z53: 0 | AA53: 0 | AB53: 0 | AC53: 0
A54: DR57 | B54: C | C54: 18 | D54: 14 | E54: 3 | F54: 0 | G54: 0 | H54: 6 | I54: 0 | J54: 1 | K54: 0 | L54: 0 | M54: 3 | N54: 4 | O54: 13 | P54: 16 | Q54: 0 | R54: 0 | S54: 0 | T54: 2 | U54: 30 | V54: 0 | W54: 4 | X54: 0 | Y54: 0 | Z54: 1 | AA54: 1 | AB54: 6 | AC54: 0
A55: DR59 | B55: C | C55: 12 | E55: 1 | F55: 0 | G55: 0 | H55: 2 | I55: 0 | J55: 0 | K55: 0 | L55: 2 | M55: 0 | N55: 0 | O55: 5 | P55: 5 | Q55: 0 | R55: 0 | S55: 0 | T55: 1 | U55: 8 | V55: 2 | W55: 5 | X55: 0 | Y55: 0 | Z55: 0 | AA55: 0 | AB55: 4 | AC55: 0
A56: DR62 | B56: C | C56: 11 | D56: 11 | E56: 2 | F56: 0 | G56: 0 | H56: 7 | I56: 0 | J56: 1 | K56: 0 | L56: 2 | M56: 2 | N56: 0 | O56: 10 | P56: 16 | Q56: 0 | R56: 1 | S56: 0 | T56: 2 | U56: 15 | V56: 0 | W56: 3 | X56: 0 | Y56: 0 | Z56: 1 | AA56: 0 | AB56: 4 | AC56: 0
A57: DR63 | B57: C | C57: 24 | D57: 20 | E57: 7 | F57: 0 | G57: 0 | H57: 5 | I57: 0 | J57: 1 | K57: 0 | L57: 6 | M57: 3 | N57: 2 | O57: 30 | P57: 27 | Q57: 1 | R57: 0 | S57: 0 | T57: 19 | U57: 33 | V57: 0 | W57: 20 | X57: 0 | Y57: 0 | Z57: 0 | AA57: 1 | AB57: 7 | AC57: 0
A58: DR64 | B58: C | C58: 12 | E58: 0 | F58: 0 | G58: 0 | H58: 0 | I58: 0 | J58: 0 | K58: 0 | L58: 0 | M58: 0 | N58: 2 | O58: 3 | P58: 3 | Q58: 0 | R58: 0 | S58: 0 | T58: 1 | U58: 17 | V58: 0 | W58: 4 | X58: 0 | Y58: 0 | Z58: 0 | AA58: 0 | AB58: 2 | AC58: 0
A59: DR65 | B59: C | C59: 15 | E59: 1 | F59: 0 | G59: 1 | H59: 1 | I59: 0 | J59: 0 | K59: 0 | L59: 0 | M59: 0 | N59: 1 | O59: 1 | P59: 2 | Q59: 0 | R59: 0 | S59: 0 | T59: 0 | U59: 2 | V59: 1 | W59: 1 | X59: 0 | Y59: 0 | Z59: 0 | AA59: 0 | AB59: 0 | AC59: 0
A60: DR66 | B60: C | C60: 36 | D60: 31 | E60: 3 | F60: 0 | G60: 1 | H60: 1 | I60: 0 | J60: 2 | K60: 0 | L60: 0 | M60: 4 | N60: 4 | O60: 25 | P60: 51 | Q60: 0 | R60: 0 | S60: 0 | T60: 10 | U60: 49 | V60: 0 | W60: 19 | X60: 1 | Y60: 0 | Z60: 0 | AA60: 1 | AB60: 20 | AC60: 1
A61: DR67 | B61: C | C61: 6 | E61: 0 | F61: 0 | G61: 0 | H61: 4 | I61: 0 | J61: 0 | K61: 0 | L61: 0 | M61: 0 | N61: 0 | O61: 0 | P61: 2 | Q61: 0 | R61: 0 | S61: 0 | T61: 1 | U61: 1 | V61: 0 | W61: 1 | X61: 0 | Y61: 0 | Z61: 0 | AA61: 0 | AB61: 0 | AC61: 0
A62: DR68 | B62: C | C62: 10 | E62: 2 | F62: 0 | G62: 0 | H62: 2 | I62: 0 | J62: 0 | K62: 0 | L62: 1 | M62: 0 | N62: 0 | O62: 5 | P62: 1 | Q62: 0 | R62: 0 | S62: 0 | T62: 0 | U62: 1 | V62: 0 | W62: 1 | X62: 0 | Y62: 0 | Z62: 0 | AA62: 0 | AB62: 0 | AC62: 0
A63: DR7 | B63: C | C63: 11 | E63: 0 | F63: 0 | G63: 0 | H63: 1 | I63: 0 | J63: 0 | K63: 0 | L63: 4 | M63: 0 | N63: 2 | O63: 2 | P63: 6 | Q63: 0 | R63: 0 | S63: 0 | T63: 0 | U63: 5 | V63: 0 | W63: 2 | X63: 0 | Y63: 0 | Z63: 0 | AA63: 0 | AB63: 0 | AC63: 0
A64: DR70 | B64: C | C64: 4 | E64: 0 | F64: 0 | G64: 0 | H64: 0 | I64: 0 | J64: 0 | K64: 0 | L64: 0 | M64: 0 | N64: 0 | O64: 1 | P64: 0 | Q64: 0 | R64: 0 | S64: 0 | T64: 0 | U64: 1 | V64: 0 | W64: 0 | X64: 0 | Y64: 0 | Z64: 0 | AA64: 0 | AB64: 0 | AC64: 0
A65: DR73 | B65: C | C65: 3 | E65: 0 | F65: 0 | G65: 0 | H65: 0 | I65: 0 | J65: 0 | K65: 0 | L65: 0 | M65: 0 | N65: 1 | O65: 0 | P65: 1 | Q65: 0 | R65: 0 | S65: 0 | T65: 0 | U65: 1 | V65: 0 | W65: 0 | X65: 0 | Y65: 0 | Z65: 0 | AA65: 0 | AB65: 0 | AC65: 0
A66: DR77 | B66: C | C66: 3 | E66: 0 | F66: 0 | G66: 0 | H66: 0 | I66: 0 | J66: 0 | K66: 0 | L66: 0 | M66: 0 | N66: 0 | O66: 0 | P66: 0 | Q66: 0 | R66: 0 | S66: 0 | T66: 0 | U66: 1 | V66: 0 | W66: 0 | X66: 0 | Y66: 0 | Z66: 0 | AA66: 0 | AB66: 0 | AC66: 0
A67: DR79 | B67: C | C67: 7 | E67: 0 | F67: 0 | G67: 0 | H67: 3 | I67: 0 | J67: 0 | K67: 0 | L67: 6 | M67: 0 | N67: 0 | O67: 1 | P67: 5 | Q67: 0 | R67: 0 | S67: 0 | T67: 0 | U67: 1 | V67: 0 | W67: 1 | X67: 0 | Y67: 0 | Z67: 0 | AA67: 0 | AB67: 0 | AC67: 0
A68: DR81 | B68: C | C68: 7 | E68: 0 | F68: 0 | G68: 0 | H68: 0 | I68: 0 | J68: 0 | K68: 0 | L68: 0 | M68: 0 | N68: 0 | O68: 1 | P68: 1 | Q68: 0 | R68: 0 | S68: 0 | T68: 0 | U68: 3 | V68: 1 | W68: 0 | X68: 0 | Y68: 0 | Z68: 0 | AA68: 0 | AB68: 0 | AC68: 0
A69: DR82 | B69: C | C69: 24 | D69: 16 | E69: 0 | F69: 0 | G69: 0 | H69: 2 | I69: 0 | J69: 2 | K69: 0 | L69: 0 | M69: 1 | N69: 9 | O69: 25 | P69: 12 | Q69: 0 | R69: 0 | S69: 0 | T69: 4 | U69: 42 | V69: 0 | W69: 11 | X69: 0 | Y69: 0 | Z69: 1 | AA69: 0 | AB69: 14 | AC69: 4
A70: DR83 | B70: C | C70: 5 | E70: 0 | F70: 0 | G70: 0 | H70: 0 | I70: 0 | J70: 0 | K70: 0 | L70: 0 | M70: 0 | N70: 0 | O70: 1 | P70: 0 | Q70: 0 | R70: 0 | S70: 0 | T70: 0 | U70: 2 | V70: 0 | W70: 1 | X70: 0 | Y70: 0 | Z70: 0 | AA70: 0 | AB70: 0 | AC70: 0
A71: DR89 | B71: C | C71: 12 | E71: 0 | F71: 0 | G71: 0 | H71: 1 | I71: 0 | J71: 0 | K71: 0 | L71: 0 | M71: 0 | N71: 0 | O71: 5 | P71: 5 | Q71: 0 | R71: 0 | S71: 0 | T71: 0 | U71: 4 | V71: 0 | W71: 0 | X71: 0 | Y71: 0 | Z71: 0 | AA71: 0 | AB71: 0 | AC71: 0
A72: G10 | B72: M | C72: 14 | D72: 10 | E72: 0 | F72: 0 | G72: 0 | H72: 0 | I72: 0 | J72: 1 | K72: 0 | L72: 0 | M72: 0 | N72: 2 | O72: 6 | P72: 4 | Q72: 0 | R72: 0 | S72: 0 | T72: 1 | U72: 11 | V72: 1 | W72: 3 | X72: 0 | Y72: 0 | Z72: 0 | AA72: 5 | AB72: 0 | AC72: 0
A73: G13 | B73: M | C73: 13 | D73: 9 | E73: 0 | F73: 0 | G73: 0 | H73: 1 | I73: 0 | J73: 0 | K73: 0 | L73: 1 | M73: 0 | N73: 0 | O73: 2 | P73: 1 | Q73: 0 | R73: 1 | S73: 0 | T73: 0 | U73: 2 | V73: 1 | W73: 3 | X73: 0 | Y73: 0 | Z73: 0 | AA73: 2 | AB73: 6 | AC73: 0
A74: G17 | B74: M | C74: 15 | D74: 15 | E74: 0 | F74: 0 | G74: 0 | H74: 1 | I74: 0 | J74: 0 | K74: 0 | L74: 0 | M74: 1 | N74: 0 | O74: 0 | P74: 4 | Q74: 0 | R74: 0 | S74: 0 | T74: 1 | U74: 4 | V74: 1 | W74: 2 | X74: 0 | Y74: 0 | Z74: 0 | AA74: 2 | AB74: 2 | AC74: 0
A75: G20 | B75: M | C75: 11 | D75: 11 | E75: 0 | F75: 0 | G75: 0 | H75: 0 | I75: 0 | J75: 0 | K75: 0 | L75: 0 | M75: 0 | N75: 1 | O75: 2 | P75: 2 | Q75: 0 | R75: 0 | S75: 0 | T75: 0 | U75: 8 | V75: 0 | W75: 1 | X75: 0 | Y75: 0 | Z75: 0 | AA75: 2 | AB75: 1 | AC75: 0
A76: G23 | B76: M | C76: 11 | E76: 0 | F76: 0 | G76: 0 | H76: 0 | I76: 0 | J76: 0 | K76: 0 | L76: 0 | M76: 0 | N76: 0 | O76: 1 | P76: 0 | Q76: 0 | R76: 0 | S76: 0 | T76: 0 | U76: 1 | V76: 0 | W76: 1 | X76: 0 | Y76: 0 | Z76: 0 | AA76: 0 | AB76: 0 | AC76: 0
A77: G26 | B77: M | C77: 18 | E77: 0 | F77: 0 | G77: 0 | H77: 0 | I77: 0 | J77: 0 | K77: 0 | L77: 0 | M77: 0 | N77: 0 | O77: 0 | P77: 0 | Q77: 0 | R77: 0 | S77: 0 | T77: 0 | U77: 0 | V77: 0 | W77: 0 | X77: 0 | Y77: 0 | Z77: 0 | AA77: 0 | AB77: 1 | AC77: 0
A78: G27 | B78: M | C78: 12 | E78: 0 | F78: 0 | G78: 0 | H78: 0 | I78: 0 | J78: 0 | K78: 0 | L78: 0 | M78: 0 | N78: 0 | O78: 0 | P78: 0 | Q78: 0 | R78: 0 | S78: 0 | T78: 0 | U78: 0 | V78: 0 | W78: 1 | X78: 0 | Y78: 0 | Z78: 0 | AA78: 0 | AB78: 0 | AC78: 0
A79: G31 | B79: M | C79: 7 | E79: 0 | F79: 0 | G79: 0 | H79: 0 | I79: 0 | J79: 0 | K79: 0 | L79: 0 | M79: 0 | N79: 0 | O79: 0 | P79: 0 | Q79: 0 | R79: 0 | S79: 0 | T79: 0 | U79: 1 | V79: 0 | W79: 0 | X79: 0 | Y79: 0 | Z79: 0 | AA79: 0 | AB79: 0 | AC79: 0
A80: G32 | B80: M | C80: 15 | E80: 0 | F80: 0 | G80: 0 | H80: 0 | I80: 0 | J80: 0 | K80: 0 | L80: 0 | M80: 0 | N80: 0 | O80: 0 | P80: 0 | Q80: 0 | R80: 0 | S80: 0 | T80: 0 | U80: 0 | V80: 0 | W80: 0 | X80: 0 | Y80: 0 | Z80: 0 | AA80: 0 | AB80: 1 | AC80: 0
A81: G37 | B81: M | C81: 13 | E81: 0 | F81: 0 | G81: 0 | H81: 2 | I81: 0 | J81: 1 | K81: 0 | L81: 0 | M81: 0 | N81: 3 | O81: 4 | P81: 2 | Q81: 0 | R81: 0 | S81: 0 | T81: 0 | U81: 2 | V81: 0 | W81: 2 | X81: 0 | Y81: 0 | Z81: 0 | AA81: 0 | AB81: 2 | AC81: 0
A82: G38 | B82: M | C82: 11 | E82: 0 | F82: 0 | G82: 0 | H82: 0 | I82: 0 | J82: 2 | K82: 0 | L82: 0 | M82: 0 | N82: 0 | O82: 1 | P82: 1 | Q82: 0 | R82: 0 | S82: 0 | T82: 0 | U82: 0 | V82: 1 | W82: 0 | X82: 0 | Y82: 0 | Z82: 0 | AA82: 0 | AB82: 4 | AC82: 0
A83: G42 | B83: M | C83: 12 | D83: 9 | E83: 0 | F83: 0 | G83: 0 | H83: 0 | I83: 0 | J83: 2 | K83: 0 | L83: 0 | M83: 0 | N83: 0 | O83: 2 | P83: 1 | Q83: 0 | R83: 0 | S83: 0 | T83: 1 | U83: 2 | V83: 2 | W83: 1 | X83: 0 | Y83: 0 | Z83: 1 | AA83: 0 | AB83: 2 | AC83: 0
A84: G45 | B84: M | C84: 24 | D84: 13 | E84: 1 | F84: 0 | G84: 0 | H84: 4 | I84: 0 | J84: 1 | K84: 0 | L84: 0 | M84: 0 | N84: 3 | O84: 11 | P84: 30 | Q84: 0 | R84: 0 | S84: 0 | T84: 2 | U84: 36 | V84: 1 | W84: 7 | X84: 1 | Y84: 0 | Z84: 0 | AA84: 5 | AB84: 8 | AC84: 0
A85: G46 | B85: M | C85: 12 | E85: 0 | F85: 0 | G85: 1 | H85: 4 | I85: 0 | J85: 0 | K85: 0 | L85: 0 | M85: 0 | N85: 1 | O85: 2 | P85: 4 | Q85: 0 | R85: 0 | S85: 0 | T85: 0 | U85: 15 | V85: 0 | W85: 2 | X85: 0 | Y85: 0 | Z85: 0 | AA85: 0 | AB85: 0 | AC85: 0
A86: G47 | B86: M | C86: 7 | E86: 0 | F86: 0 | G86: 0 | H86: 0 | I86: 0 | J86: 0 | K86: 0 | L86: 0 | M86: 0 | N86: 0 | O86: 1 | P86: 0 | Q86: 0 | R86: 0 | S86: 0 | T86: 0 | U86: 0 | V86: 0 | W86: 0 | X86: 0 | Y86: 0 | Z86: 0 | AA86: 0 | AB86: 0 | AC86: 0
A87: G48 | B87: M | C87: 9 | E87: 0 | F87: 0 | G87: 0 | H87: 2 | I87: 0 | J87: 1 | K87: 0 | L87: 0 | M87: 0 | N87: 0 | O87: 2 | P87: 1 | Q87: 0 | R87: 0 | S87: 0 | T87: 0 | U87: 1 | V87: 0 | W87: 1 | X87: 0 | Y87: 0 | Z87: 0 | AA87: 0 | AB87: 0 | AC87: 0
A88: G49 | B88: M | C88: 8 | E88: 0 | F88: 0 | G88: 0 | H88: 0 | I88: 0 | J88: 0 | K88: 0 | L88: 0 | M88: 0 | N88: 0 | O88: 1 | P88: 0 | Q88: 0 | R88: 0 | S88: 0 | T88: 0 | U88: 0 | V88: 0 | W88: 1 | X88: 0 | Y88: 0 | Z88: 0 | AA88: 0 | AB88: 0 | AC88: 0
A89: G5 | B89: M | C89: 18 | E89: 1 | F89: 0 | G89: 0 | H89: 0 | I89: 0 | J89: 2 | K89: 0 | L89: 0 | M89: 1 | N89: 1 | O89: 3 | P89: 4 | Q89: 0 | R89: 0 | S89: 0 | T89: 0 | U89: 3 | V89: 0 | W89: 1 | X89: 0 | Y89: 0 | Z89: 0 | AA89: 0 | AB89: 10 | AC89: 0
A90: G55 | B90: M | C90: 24 | D90: 14 | E90: 1 | F90: 0 | G90: 0 | H90: 9 | I90: 0 | J90: 1 | K90: 0 | L90: 0 | M90: 1 | N90: 4 | O90: 12 | P90: 7 | Q90: 1 | R90: 0 | S90: 0 | T90: 0 | U90: 60 | V90: 6 | W90: 10 | X90: 1 | Y90: 0 | Z90: 1 | AA90: 4 | AB90: 13 | AC90: 1
A91: G59 | B91: M | C91: 17 | D91: 15 | E91: 0 | F91: 0 | G91: 0 | H91: 0 | I91: 0 | J91: 1 | K91: 0 | L91: 0 | M91: 2 | N91: 0 | O91: 5 | P91: 6 | Q91: 1 | R91: 0 | S91: 0 | T91: 0 | U91: 12 | V91: 1 | W91: 4 | X91: 0 | Y91: 0 | Z91: 0 | AA91: 2 | AB91: 11 | AC91: 0
A92: G62 | B92: M | C92: 8 | E92: 0 | F92: 0 | G92: 0 | H92: 1 | I92: 0 | J92: 0 | K92: 0 | L92: 0 | M92: 0 | N92: 1 | O92: 0 | P92: 0 | Q92: 0 | R92: 0 | S92: 0 | T92: 0 | U92: 0 | V92: 0 | W92: 0 | X92: 0 | Y92: 0 | Z92: 0 | AA92: 0 | AB92: 1 | AC92: 0
A93: G64 | B93: M | C93: 9 | E93: 0 | F93: 0 | G93: 0 | H93: 2 | I93: 0 | J93: 0 | K93: 0 | L93: 1 | M93: 0 | N93: 1 | O93: 2 | P93: 0 | Q93: 0 | R93: 0 | S93: 0 | T93: 0 | U93: 5 | V93: 0 | W93: 0 | X93: 0 | Y93: 0 | Z93: 0 | AA93: 0 | AB93: 0 | AC93: 0
A94: G68 | B94: M | C94: 10 | E94: 1 | F94: 0 | G94: 0 | H94: 0 | I94: 0 | J94: 1 | K94: 0 | L94: 0 | M94: 0 | N94: 0 | O94: 0 | P94: 0 | Q94: 0 | R94: 0 | S94: 0 | T94: 0 | U94: 0 | V94: 0 | W94: 0 | X94: 0 | Y94: 0 | Z94: 0 | AA94: 0 | AB94: 0 | AC94: 0
A95: G75 | B95: M | C95: 11 | D95: 10 | E95: 0 | F95: 0 | G95: 0 | H95: 2 | I95: 0 | J95: 0 | K95: 0 | L95: 0 | M95: 0 | N95: 1 | O95: 3 | P95: 1 | Q95: 1 | R95: 0 | S95: 0 | T95: 0 | U95: 12 | V95: 1 | W95: 1 | X95: 0 | Y95: 0 | Z95: 1 | AA95: 0 | AB95: 3 | AC95: 0
A96: G79 | B96: M | C96: 20 | E96: 0 | F96: 0 | G96: 0 | H96: 4 | I96: 1 | J96: 1 | K96: 0 | L96: 1 | M96: 2 | N96: 5 | O96: 7 | P96: 4 | Q96: 0 | R96: 0 | S96: 0 | T96: 2 | U96: 30 | V96: 2 | W96: 9 | X96: 0 | Y96: 0 | Z96: 0 | AA96: 0 | AB96: 14 | AC96: 0
A97: G8 | B97: M | C97: 11 | E97: 0 | F97: 0 | G97: 0 | H97: 1 | I97: 0 | J97: 0 | K97: 0 | L97: 0 | M97: 0 | N97: 0 | O97: 1 | P97: 0 | Q97: 0 | R97: 0 | S97: 0 | T97: 0 | U97: 1 | V97: 0 | W97: 1 | X97: 0 | Y97: 0 | Z97: 0 | AA97: 0 | AB97: 1 | AC97: 0
A98: G89 | B98: M | C98: 6 | E98: 0 | F98: 0 | G98: 0 | H98: 1 | I98: 0 | J98: 0 | K98: 0 | L98: 0 | M98: 0 | N98: 0 | O98: 1 | P98: 0 | Q98: 0 | R98: 0 | S98: 0 | T98: 0 | U98: 1 | V98: 0 | W98: 1 | X98: 0 | Y98: 0 | Z98: 0 | AA98: 0 | AB98: 0 | AC98: 0
A99: G91 | B99: M | C99: 22 | D99: 10 | E99: 1 | F99: 1 | G99: 0 | H99: 5 | I99: 0 | J99: 3 | K99: 0 | L99: 1 | M99: 1 | N99: 2 | O99: 19 | P99: 5 | Q99: 1 | R99: 1 | S99: 0 | T99: 3 | U99: 22 | V99: 0 | W99: 8 | X99: 0 | Y99: 0 | Z99: 1 | AA99: 0 | AB99: 9 | AC99: 1
A100: G92 | B100: M | C100: 28 | D100: 15 | E100: 1 | F100: 0 | G100: 0 | H100: 10 | I100: 0 | J100: 2 | K100: 0 | L100: 0 | M100: 6 | N100: 4 | O100: 34 | P100: 8 | Q100: 1 | R100: 0 | S100: 0 | T100: 1 | U100: 54 | V100: 3 | W100: 14 | X100: 0 | Y100: 0 | Z100: 2 | AA100: 2 | AB100: 12 | AC100: 1
A101: NG1 | B101: C | C101: 8 | E101: 0 | F101: 0 | G101: 1 | H101: 2 | I101: 0 | J101: 0 | K101: 0 | L101: 0 | M101: 0 | N101: 1 | O101: 0 | P101: 0 | Q101: 0 | R101: 0 | S101: 0 | T101: 1 | U101: 3 | V101: 0 | W101: 0 | X101: 0 | Y101: 0 | Z101: 0 | AA101: 0 | AB101: 0 | AC101: 0
A102: NG14 | B102: C | C102: 25 | D102: 18 | E102: 1 | F102: 0 | G102: 1 | H102: 2 | I102: 0 | J102: 0 | K102: 0 | L102: 0 | M102: 1 | N102: 11 | O102: 12 | P102: 9 | Q102: 0 | R102: 0 | S102: 0 | T102: 1 | U102: 18 | V102: 1 | W102: 3 | X102: 0 | Y102: 0 | Z102: 0 | AA102: 2 | AB102: 25 | AC102: 1
A103: NG15 | B103: C | C103: 11 | D103: 10 | E103: 0 | F103: 0 | G103: 0 | H103: 3 | I103: 0 | J103: 1 | K103: 0 | L103: 0 | M103: 0 | N103: 3 | O103: 3 | P103: 4 | Q103: 0 | R103: 0 | S103: 0 | T103: 1 | U103: 12 | V103: 2 | W103: 4 | X103: 0 | Y103: 0 | Z103: 1 | AA103: 0 | AB103: 8 | AC103: 0
A104: NG16 | B104: C | C104: 22 | E104: 0 | F104: 0 | G104: 0 | H104: 2 | I104: 0 | J104: 0 | K104: 0 | L104: 1 | M104: 0 | N104: 0 | O104: 1 | P104: 0 | Q104: 0 | R104: 0 | S104: 0 | T104: 1 | U104: 0 | V104: 0 | W104: 1 | X104: 0 | Y104: 0 | Z104: 0 | AA104: 0 | AB104: 0 | AC104: 0
A105: NG18 | B105: C | C105: 6 | E105: 0 | F105: 0 | G105: 0 | H105: 0 | I105: 0 | J105: 0 | K105: 0 | L105: 0 | M105: 0 | N105: 0 | O105: 1 | P105: 0 | Q105: 0 | R105: 0 | S105: 0 | T105: 0 | U105: 0 | V105: 0 | W105: 1 | X105: 0 | Y105: 0 | Z105: 0 | AA105: 0 | AB105: 0 | AC105: 0
A106: NG20 | B106: C | C106: 25 | D106: 21 | E106: 1 | F106: 0 | G106: 0 | H106: 1 | I106: 0 | J106: 1 | K106: 0 | L106: 0 | M106: 3 | N106: 1 | O106: 8 | P106: 12 | Q106: 1 | R106: 0 | S106: 0 | T106: 1 | U106: 29 | V106: 0 | W106: 11 | X106: 0 | Y106: 0 | Z106: 0 | AA106: 0 | AB106: 62 | AC106: 2
A107: NG22 | B107: C | C107: 6 | E107: 0 | F107: 0 | G107: 0 | H107: 0 | I107: 0 | J107: 0 | K107: 0 | L107: 0 | M107: 0 | N107: 1 | O107: 0 | P107: 0 | Q107: 0 | R107: 0 | S107: 0 | T107: 0 | U107: 0 | V107: 0 | W107: 0 | X107: 0 | Y107: 0 | Z107: 0 | AA107: 0 | AB107: 0 | AC107: 0
A108: NG23 | B108: C | C108: 6 | E108: 0 | F108: 0 | G108: 0 | H108: 0 | I108: 0 | J108: 0 | K108: 0 | L108: 0 | M108: 0 | N108: 0 | O108: 0 | P108: 0 | Q108: 0 | R108: 0 | S108: 0 | T108: 0 | U108: 0 | V108: 0 | W108: 1 | X108: 0 | Y108: 0 | Z108: 0 | AA108: 0 | AB108: 0 | AC108: 0
A109: NG25 | B109: C | C109: 24 | D109: 14 | E109: 1 | F109: 0 | G109: 1 | H109: 8 | I109: 0 | J109: 5 | K109: 1 | L109: 3 | M109: 1 | N109: 3 | O109: 18 | P109: 12 | Q109: 0 | R109: 0 | S109: 0 | T109: 5 | U109: 33 | V109: 1 | W109: 11 | X109: 0 | Y109: 0 | Z109: 0 | AA109: 8 | AB109: 24 | AC109: 0
A110: NG26 | B110: C | C110: 22 | D110: 14 | E110: 2 | F110: 0 | G110: 0 | H110: 3 | I110: 0 | J110: 4 | K110: 0 | L110: 0 | M110: 2 | N110: 0 | O110: 5 | P110: 8 | Q110: 0 | R110: 0 | S110: 0 | T110: 3 | U110: 30 | V110: 3 | W110: 10 | X110: 2 | Y110: 0 | Z110: 1 | AA110: 10 | AB110: 29 | AC110: 0
A111: NG27 | B111: C | C111: 19 | E111: 4 | F111: 0 | G111: 1 | H111: 4 | I111: 0 | J111: 2 | K111: 0 | L111: 5 | M111: 0 | N111: 4 | O111: 19 | P111: 54 | Q111: 0 | R111: 0 | S111: 0 | T111: 6 | U111: 18 | V111: 1 | W111: 18 | X111: 0 | Y111: 0 | Z111: 0 | AA111: 0 | AB111: 1 | AC111: 0
A112: NG30 | B112: C | C112: 23 | E112: 0 | F112: 0 | G112: 0 | H112: 1 | I112: 0 | J112: 0 | K112: 0 | L112: 0 | M112: 0 | N112: 0 | O112: 1 | P112: 0 | Q112: 0 | R112: 0 | S112: 0 | T112: 0 | U112: 1 | V112: 0 | W112: 1 | X112: 0 | Y112: 0 | Z112: 0 | AA112: 0 | AB112: 0 | AC112: 0
A113: NG32 | B113: C | C113: 34 | D113: 14 | E113: 8 | F113: 0 | G113: 1 | H113: 11 | I113: 0 | J113: 7 | K113: 0 | L113: 2 | M113: 15 | N113: 9 | O113: 23 | P113: 33 | Q113: 1 | R113: 0 | S113: 0 | T113: 7 | U113: 54 | V113: 7 | W113: 14 | X113: 0 | Y113: 0 | Z113: 3 | AA113: 3 | AB113: 78 | AC113: 1
A114: NG33 | B114: C | C114: 29 | D114: 14 | E114: 0 | F114: 0 | G114: 1 | H114: 1 | I114: 0 | J114: 5 | K114: 1 | L114: 0 | M114: 1 | N114: 6 | O114: 21 | P114: 11 | Q114: 4 | R114: 1 | S114: 0 | T114: 6 | U114: 38 | V114: 1 | W114: 13 | X114: 0 | Y114: 0 | Z114: 0 | AA114: 9 | AB114: 28 | AC114: 2
A115: NG34 | B115: C | C115: 11 | E115: 0 | F115: 0 | G115: 0 | H115: 5 | I115: 0 | J115: 0 | K115: 0 | L115: 0 | M115: 1 | N115: 3 | O115: 3 | P115: 1 | Q115: 0 | R115: 0 | S115: 0 | T115: 0 | U115: 13 | V115: 1 | W115: 1 | X115: 0 | Y115: 0 | Z115: 0 | AA115: 0 | AB115: 1 | AC115: 0
A116: NG36 | B116: C | C116: 7 | E116: 0 | F116: 0 | G116: 0 | H116: 2 | I116: 0 | J116: 1 | K116: 0 | L116: 0 | M116: 0 | N116: 0 | O116: 0 | P116: 1 | Q116: 0 | R116: 0 | S116: 0 | T116: 0 | U116: 5 | V116: 0 | W116: 1 | X116: 0 | Y116: 0 | Z116: 0 | AA116: 0 | AB116: 0 | AC116: 0
A117: NG37 | B117: C | C117: 7 | E117: 0 | F117: 0 | G117: 0 | H117: 0 | I117: 0 | J117: 0 | K117: 0 | L117: 0 | M117: 0 | N117: 0 | O117: 0 | P117: 0 | Q117: 0 | R117: 0 | S117: 0 | T117: 0 | U117: 1 | V117: 0 | W117: 0 | X117: 0 | Y117: 0 | Z117: 0 | AA117: 0 | AB117: 0 | AC117: 0
A118: NG38 | B118: C | C118: 18 | E118: 0 | F118: 0 | G118: 0 | H118: 2 | I118: 0 | J118: 0 | K118: 0 | L118: 0 | M118: 0 | N118: 1 | O118: 6 | P118: 7 | Q118: 0 | R118: 0 | S118: 0 | T118: 0 | U118: 6 | V118: 1 | W118: 2 | X118: 0 | Y118: 0 | Z118: 0 | AA118: 0 | AB118: 7 | AC118: 0
A119: NG39 | B119: C | C119: 16 | E119: 0 | F119: 0 | G119: 0 | H119: 3 | I119: 0 | J119: 0 | K119: 0 | L119: 0 | M119: 0 | N119: 0 | O119: 2 | P119: 1 | Q119: 1 | R119: 0 | S119: 0 | T119: 1 | U119: 6 | V119: 0 | W119: 2 | X119: 0 | Y119: 0 | Z119: 0 | AA119: 0 | AB119: 5 | AC119: 0
A120: NG41 | B120: C | C120: 18 | D120: 11 | E120: 2 | F120: 1 | G120: 0 | H120: 6 | I120: 0 | J120: 3 | K120: 0 | L120: 0 | M120: 6 | N120: 2 | O120: 14 | P120: 8 | Q120: 0 | R120: 0 | S120: 0 | T120: 2 | U120: 20 | V120: 2 | W120: 8 | X120: 1 | Y120: 0 | Z120: 1 | AA120: 5 | AB120: 13 | AC120: 0
A121: NG42 | B121: C | C121: 15 | D121: 14 | E121: 1 | F121: 0 | G121: 0 | H121: 4 | I121: 0 | J121: 1 | K121: 1 | L121: 0 | M121: 1 | N121: 8 | O121: 13 | P121: 4 | Q121: 0 | R121: 0 | S121: 0 | T121: 2 | U121: 20 | V121: 0 | W121: 7 | X121: 0 | Y121: 0 | Z121: 0 | AA121: 1 | AB121: 6 | AC121: 0
A122: NG43 | B122: C | C122: 11 | E122: 0 | F122: 0 | G122: 1 | H122: 5 | I122: 0 | J122: 2 | K122: 0 | L122: 0 | M122: 0 | N122: 5 | O122: 1 | P122: 3 | Q122: 0 | R122: 0 | S122: 0 | T122: 1 | U122: 7 | V122: 1 | W122: 1 | X122: 0 | Y122: 0 | Z122: 0 | AA122: 0 | AB122: 1 | AC122: 0
A123: NG44 | B123: C | C123: 14 | D123: 11 | E123: 1 | F123: 0 | G123: 0 | H123: 4 | I123: 0 | J123: 1 | K123: 0 | L123: 0 | M123: 0 | N123: 0 | O123: 3 | P123: 2 | Q123: 0 | R123: 0 | S123: 0 | T123: 0 | U123: 5 | V123: 0 | W123: 1 | X123: 1 | Y123: 0 | Z123: 0 | AA123: 0 | AB123: 2 | AC123: 0
A124: NG45 | B124: C | C124: 14 | D124: 8 | E124: 0 | F124: 1 | G124: 0 | H124: 0 | I124: 0 | J124: 0 | K124: 0 | L124: 0 | M124: 0 | N124: 0 | O124: 5 | P124: 0 | Q124: 0 | R124: 0 | S124: 0 | T124: 0 | U124: 1 | V124: 2 | W124: 0 | X124: 0 | Y124: 0 | Z124: 1 | AA124: 0 | AB124: 6 | AC124: 0
A125: NG46 | B125: C | C125: 15 | E125: 0 | F125: 1 | G125: 0 | H125: 3 | I125: 0 | J125: 0 | K125: 1 | L125: 0 | M125: 0 | N125: 1 | O125: 0 | P125: 3 | Q125: 0 | R125: 1 | S125: 0 | T125: 0 | U125: 12 | V125: 1 | W125: 3 | X125: 0 | Y125: 0 | Z125: 0 | AA125: 0 | AB125: 5 | AC125: 0
A126: NG48 | B126: C | C126: 27 | D126: 14 | E126: 2 | F126: 0 | G126: 0 | H126: 5 | I126: 0 | J126: 4 | K126: 0 | L126: 0 | M126: 3 | N126: 1 | O126: 13 | P126: 11 | Q126: 0 | R126: 0 | S126: 0 | T126: 2 | U126: 37 | V126: 3 | W126: 10 | X126: 2 | Y126: 0 | Z126: 0 | AA126: 6 | AB126: 33 | AC126: 1
A127: NG49 | B127: C | C127: 13 | E127: 0 | F127: 0 | G127: 0 | H127: 0 | I127: 0 | J127: 1 | K127: 0 | L127: 0 | M127: 0 | N127: 0 | O127: 1 | P127: 0 | Q127: 0 | R127: 0 | S127: 0 | T127: 0 | U127: 1 | V127: 0 | W127: 2 | X127: 0 | Y127: 0 | Z127: 0 | AA127: 0 | AB127: 0 | AC127: 0
A128: NG52 | B128: C | C128: 13 | E128: 0 | F128: 0 | G128: 0 | H128: 0 | I128: 0 | J128: 0 | K128: 0 | L128: 0 | M128: 0 | N128: 0 | O128: 0 | P128: 0 | Q128: 0 | R128: 0 | S128: 0 | T128: 0 | U128: 1 | V128: 0 | W128: 0 | X128: 0 | Y128: 0 | Z128: 0 | AA128: 0 | AB128: 0 | AC128: 0
A129: NG53 | B129: C | C129: 9 | E129: 0 | F129: 0 | G129: 0 | H129: 1 | I129: 0 | J129: 0 | K129: 0 | L129: 5 | M129: 0 | N129: 0 | O129: 0 | P129: 3 | Q129: 0 | R129: 0 | S129: 0 | T129: 0 | U129: 8 | V129: 0 | W129: 2 | X129: 0 | Y129: 0 | Z129: 0 | AA129: 0 | AB129: 0 | AC129: 0
A130: NG54 | B130: C | C130: 16 | D130: 8 | E130: 0 | F130: 0 | G130: 0 | H130: 4 | I130: 0 | J130: 0 | K130: 0 | L130: 0 | M130: 1 | N130: 3 | O130: 7 | P130: 5 | Q130: 0 | R130: 0 | S130: 0 | T130: 0 | U130: 15 | V130: 0 | W130: 5 | X130: 0 | Y130: 0 | Z130: 0 | AA130: 2 | AB130: 6 | AC130: 0
A131: NG56 | B131: C | C131: 14 | E131: 1 | F131: 1 | G131: 0 | H131: 1 | I131: 0 | J131: 0 | K131: 0 | L131: 0 | M131: 0 | N131: 0 | O131: 1 | P131: 0 | Q131: 0 | R131: 0 | S131: 0 | T131: 0 | U131: 0 | V131: 0 | W131: 0 | X131: 0 | Y131: 0 | Z131: 0 | AA131: 0 | AB131: 0 | AC131: 0
A132: NG59 | B132: C | C132: 17 | E132: 1 | F132: 0 | G132: 0 | H132: 7 | I132: 0 | J132: 4 | K132: 0 | L132: 0 | M132: 1 | N132: 4 | O132: 30 | P132: 5 | Q132: 2 | R132: 0 | S132: 0 | T132: 1 | U132: 23 | V132: 10 | W132: 16 | X132: 0 | Y132: 0 | Z132: 0 | AA132: 0 | AB132: 9 | AC132: 0
A133: NG61 | B133: C | C133: 7 | E133: 0 | F133: 0 | G133: 0 | H133: 0 | I133: 0 | J133: 0 | K133: 0 | L133: 1 | M133: 0 | N133: 0 | O133: 0 | P133: 0 | Q133: 0 | R133: 0 | S133: 0 | T133: 0 | U133: 3 | V133: 0 | W133: 0 | X133: 0 | Y133: 0 | Z133: 0 | AA133: 0 | AB133: 0 | AC133: 0
A134: NG65 | B134: C | C134: 12 | E134: 0 | F134: 0 | G134: 0 | H134: 0 | I134: 0 | J134: 0 | K134: 0 | L134: 0 | M134: 0 | N134: 0 | O134: 1 | P134: 0 | Q134: 0 | R134: 0 | S134: 0 | T134: 0 | U134: 2 | V134: 0 | W134: 0 | X134: 0 | Y134: 0 | Z134: 0 | AA134: 0 | AB134: 0 | AC134: 0
A135: NG72 | B135: C | C135: 16 | D135: 7 | E135: 0 | F135: 0 | G135: 0 | H135: 1 | I135: 0 | J135: 1 | K135: 0 | L135: 1 | M135: 0 | N135: 0 | O135: 1 | P135: 1 | Q135: 0 | R135: 0 | S135: 0 | T135: 1 | U135: 3 | V135: 0 | W135: 2 | X135: 0 | Y135: 0 | Z135: 1 | AA135: 0 | AB135: 7 | AC135: 0
A136: NG75 | B136: C | C136: 6 | E136: 0 | F136: 0 | G136: 0 | H136: 0 | I136: 0 | J136: 0 | K136: 0 | L136: 0 | M136: 0 | N136: 0 | O136: 1 | P136: 1 | Q136: 0 | R136: 0 | S136: 0 | T136: 0 | U136: 1 | V136: 0 | W136: 1 | X136: 0 | Y136: 0 | Z136: 0 | AA136: 0 | AB136: 0 | AC136: 0
A137: NG77 | B137: C | C137: 9 | E137: 1 | F137: 0 | G137: 0 | H137: 0 | I137: 0 | J137: 0 | K137: 0 | L137: 0 | M137: 0 | N137: 0 | O137: 2 | P137: 0 | Q137: 0 | R137: 0 | S137: 0 | T137: 0 | U137: 6 | V137: 0 | W137: 1 | X137: 0 | Y137: 0 | Z137: 0 | AA137: 0 | AB137: 1 | AC137: 0
A138: NG78 | B138: C | C138: 28 | D138: 14 | E138: 2 | F138: 0 | G138: 0 | H138: 6 | I138: 0 | J138: 3 | K138: 0 | L138: 0 | M138: 3 | N138: 1 | O138: 20 | P138: 21 | Q138: 1 | R138: 0 | S138: 0 | T138: 5 | U138: 31 | V138: 4 | W138: 12 | X138: 2 | Y138: 0 | Z138: 0 | AA138: 4 | AB138: 46 | AC138: 1
A139: NG79 | B139: C | C139: 10 | E139: 0 | F139: 0 | G139: 0 | H139: 0 | I139: 0 | J139: 0 | K139: 0 | L139: 0 | M139: 0 | N139: 0 | O139: 1 | P139: 2 | Q139: 0 | R139: 0 | S139: 0 | T139: 0 | U139: 1 | V139: 0 | W139: 1 | X139: 0 | Y139: 0 | Z139: 0 | AA139: 0 | AB139: 0 | AC139: 0
A140: R10 | B140: C | C140: 12 | D140: 10 | E140: 0 | F140: 1 | G140: 0 | H140: 5 | I140: 0 | J140: 0 | K140: 0 | L140: 0 | M140: 0 | N140: 3 | O140: 2 | P140: 3 | Q140: 0 | R140: 0 | S140: 0 | T140: 0 | U140: 8 | V140: 0 | W140: 4 | X140: 0 | Y140: 0 | Z140: 0 | AA140: 2 | AB140: 6 | AC140: 0
A141: R11 | B141: C | C141: 22 | D141: 15 | E141: 0 | F141: 0 | G141: 0 | H141: 2 | I141: 0 | J141: 2 | K141: 0 | L141: 1 | M141: 0 | N141: 0 | O141: 7 | P141: 11 | Q141: 1 | R141: 0 | S141: 0 | T141: 2 | U141: 16 | V141: 2 | W141: 9 | X141: 0 | Y141: 0 | Z141: 0 | AA141: 6 | AB141: 21 | AC141: 0
A142: R12 | B142: C | C142: 11 | D142: 11 | E142: 0 | F142: 0 | G142: 0 | H142: 2 | I142: 0 | J142: 0 | K142: 0 | L142: 0 | M142: 0 | N142: 2 | O142: 9 | P142: 0 | Q142: 0 | R142: 0 | S142: 0 | T142: 0 | U142: 3 | V142: 1 | W142: 5 | X142: 1 | Y142: 0 | Z142: 0 | AA142: 0 | AB142: 2 | AC142: 0
A143: R14 | B143: C | C143: 12 | E143: 0 | F143: 0 | G143: 0 | H143: 3 | I143: 0 | J143: 2 | K143: 0 | L143: 0 | M143: 1 | N143: 4 | O143: 6 | P143: 4 | Q143: 0 | R143: 0 | S143: 0 | T143: 0 | U143: 6 | V143: 0 | W143: 1 | X143: 0 | Y143: 0 | Z143: 0 | AA143: 0 | AB143: 7 | AC143: 0
A144: R15 | B144: C | C144: 12 | E144: 0 | F144: 0 | G144: 0 | H144: 1 | I144: 0 | J144: 0 | K144: 0 | L144: 0 | M144: 0 | N144: 1 | O144: 1 | P144: 0 | Q144: 1 | R144: 0 | S144: 0 | T144: 1 | U144: 2 | V144: 0 | W144: 2 | X144: 0 | Y144: 0 | Z144: 0 | AA144: 0 | AB144: 4 | AC144: 0
A145: R16 | B145: C | C145: 13 | E145: 0 | F145: 0 | G145: 0 | H145: 1 | I145: 0 | J145: 0 | K145: 0 | L145: 0 | M145: 0 | N145: 0 | O145: 1 | P145: 3 | Q145: 0 | R145: 0 | S145: 0 | T145: 1 | U145: 6 | V145: 1 | W145: 2 | X145: 0 | Y145: 0 | Z145: 0 | AA145: 0 | AB145: 2 | AC145: 0
A146: R17 | B146: C | C146: 11 | E146: 0 | F146: 0 | G146: 0 | H146: 0 | I146: 0 | J146: 0 | K146: 0 | L146: 0 | M146: 0 | N146: 0 | O146: 0 | P146: 0 | Q146: 0 | R146: 1 | S146: 0 | T146: 0 | U146: 1 | V146: 0 | W146: 0 | X146: 0 | Y146: 0 | Z146: 0 | AA146: 0 | AB146: 1 | AC146: 0
A147: R18 | B147: C | C147: 9 | E147: 0 | F147: 0 | G147: 0 | H147: 0 | I147: 0 | J147: 0 | K147: 0 | L147: 0 | M147: 0 | N147: 0 | O147: 0 | P147: 0 | Q147: 0 | R147: 0 | S147: 0 | T147: 0 | U147: 0 | V147: 0 | W147: 0 | X147: 0 | Y147: 0 | Z147: 0 | AA147: 0 | AB147: 1 | AC147: 0
A148: R21 | B148: C | C148: 20 | D148: 19 | E148: 0 | F148: 0 | G148: 0 | H148: 2 | I148: 0 | J148: 2 | K148: 0 | L148: 0 | M148: 0 | N148: 0 | O148: 5 | P148: 7 | Q148: 0 | R148: 0 | S148: 0 | T148: 1 | U148: 16 | V148: 1 | W148: 6 | X148: 0 | Y148: 0 | Z148: 0 | AA148: 1 | AB148: 22 | AC148: 0
A149: R23 | B149: C | C149: 20 | D149: 17 | E149: 3 | F149: 0 | G149: 0 | H149: 6 | I149: 0 | J149: 4 | K149: 0 | L149: 1 | M149: 3 | N149: 2 | O149: 22 | P149: 15 | Q149: 0 | R149: 0 | S149: 0 | T149: 3 | U149: 47 | V149: 6 | W149: 14 | X149: 0 | Y149: 0 | Z149: 2 | AA149: 1 | AB149: 16 | AC149: 0
A150: R26 | B150: C | C150: 13 | E150: 0 | F150: 0 | G150: 0 | H150: 0 | I150: 0 | J150: 0 | K150: 0 | L150: 0 | M150: 0 | N150: 0 | O150: 6 | P150: 2 | Q150: 0 | R150: 0 | S150: 0 | T150: 0 | U150: 9 | V150: 0 | W150: 1 | X150: 0 | Y150: 0 | Z150: 0 | AA150: 0 | AB150: 4 | AC150: 0
A151: R27 | B151: C | C151: 24 | D151: 15 | E151: 0 | F151: 1 | G151: 0 | H151: 4 | I151: 0 | J151: 3 | K151: 0 | L151: 0 | M151: 5 | N151: 4 | O151: 8 | P151: 9 | Q151: 2 | R151: 0 | S151: 0 | T151: 1 | U151: 37 | V151: 1 | W151: 7 | X151: 0 | Y151: 0 | Z151: 0 | AA151: 1 | AB151: 38 | AC151: 0
A152: R28 | B152: C | C152: 25 | D152: 15 | E152: 5 | F152: 0 | G152: 0 | H152: 11 | I152: 1 | J152: 0 | K152: 0 | L152: 0 | M152: 1 | N152: 0 | O152: 17 | P152: 13 | Q152: 0 | R152: 0 | S152: 0 | T152: 3 | U152: 20 | V152: 0 | W152: 5 | X152: 1 | Y152: 0 | Z152: 1 | AA152: 5 | AB152: 18 | AC152: 2
A153: R3 | B153: C | C153: 28 | D153: 14 | E153: 3 | F153: 0 | G153: 2 | H153: 8 | I153: 0 | J153: 2 | K153: 0 | L153: 0 | M153: 6 | N153: 0 | O153: 28 | P153: 10 | Q153: 1 | R153: 0 | S153: 0 | T153: 3 | U153: 57 | V153: 6 | W153: 18 | X153: 3 | Y153: 0 | Z153: 0 | AA153: 11 | AB153: 39 | AC153: 3
A154: R30 | B154: C | C154: 25 | D154: 9 | E154: 2 | F154: 0 | G154: 0 | H154: 2 | I154: 1 | J154: 4 | K154: 1 | L154: 0 | M154: 4 | N154: 0 | O154: 14 | P154: 14 | Q154: 2 | R154: 0 | S154: 0 | T154: 0 | U154: 39 | V154: 1 | W154: 6 | X154: 1 | Y154: 0 | Z154: 0 | AA154: 12 | AB154: 44 | AC154: 1
A155: R32 | B155: C | C155: 13 | E155: 0 | F155: 0 | G155: 0 | H155: 0 | I155: 0 | J155: 0 | K155: 0 | L155: 0 | M155: 0 | N155: 0 | O155: 2 | P155: 2 | Q155: 1 | R155: 0 | S155: 0 | T155: 1 | U155: 6 | V155: 0 | W155: 3 | X155: 0 | Y155: 0 | Z155: 0 | AA155: 0 | AB155: 4 | AC155: 0
A156: R33 | B156: C | C156: 22 | E156: 0 | F156: 0 | G156: 0 | H156: 0 | I156: 0 | J156: 1 | K156: 0 | L156: 0 | M156: 0 | N156: 0 | O156: 0 | P156: 0 | Q156: 0 | R156: 0 | S156: 0 | T156: 0 | U156: 5 | V156: 0 | W156: 0 | X156: 0 | Y156: 0 | Z156: 0 | AA156: 0 | AB156: 1 | AC156: 0
A157: R34 | B157: C | C157: 15 | E157: 0 | F157: 0 | G157: 0 | H157: 0 | I157: 0 | J157: 2 | K157: 0 | L157: 0 | M157: 5 | N157: 0 | O157: 3 | P157: 3 | Q157: 1 | R157: 0 | S157: 0 | T157: 0 | U157: 8 | V157: 0 | W157: 4 | X157: 0 | Y157: 0 | Z157: 0 | AA157: 0 | AB157: 13 | AC157: 0
A158: R37 | B158: C | C158: 19 | D158: 19 | E158: 0 | F158: 0 | G158: 0 | H158: 0 | I158: 0 | J158: 0 | K158: 0 | L158: 0 | M158: 0 | N158: 0 | O158: 3 | P158: 3 | Q158: 1 | R158: 0 | S158: 0 | T158: 0 | U158: 3 | V158: 0 | W158: 0 | X158: 0 | Y158: 0 | Z158: 0 | AA158: 1 | AB158: 3 | AC158: 0
A159: R38 | B159: C | C159: 18 | D159: 11 | E159: 0 | F159: 0 | G159: 0 | H159: 0 | I159: 0 | J159: 1 | K159: 0 | L159: 0 | M159: 2 | N159: 0 | O159: 2 | P159: 2 | Q159: 0 | R159: 0 | S159: 0 | T159: 0 | U159: 10 | V159: 5 | W159: 3 | X159: 3 | Y159: 0 | Z159: 0 | AA159: 0 | AB159: 18 | AC159: 0
A160: R39 | B160: C | C160: 13 | D160: 11 | E160: 0 | F160: 0 | G160: 0 | H160: 1 | I160: 0 | J160: 0 | K160: 0 | L160: 0 | M160: 0 | N160: 0 | O160: 1 | P160: 0 | Q160: 0 | R160: 0 | S160: 0 | T160: 0 | U160: 7 | V160: 0 | W160: 3 | X160: 1 | Y160: 0 | Z160: 0 | AA160: 0 | AB160: 9 | AC160: 0
A161: R4 | B161: C | C161: 21 | D161: 13 | E161: 2 | F161: 0 | G161: 1 | H161: 4 | I161: 0 | J161: 1 | K161: 0 | L161: 0 | M161: 1 | N161: 0 | O161: 10 | P161: 10 | Q161: 2 | R161: 0 | S161: 0 | T161: 1 | U161: 38 | V161: 2 | W161: 13 | X161: 2 | Y161: 0 | Z161: 0 | AA161: 4 | AB161: 10 | AC161: 1
A162: R47 | B162: C | C162: 23 | D162: 11 | E162: 0 | F162: 0 | G162: 0 | H162: 2 | I162: 0 | J162: 0 | K162: 0 | L162: 0 | M162: 0 | N162: 0 | O162: 1 | P162: 0 | Q162: 0 | R162: 0 | S162: 0 | T162: 0 | U162: 2 | V162: 0 | W162: 2 | X162: 0 | Y162: 0 | Z162: 0 | AA162: 1 | AB162: 6 | AC162: 0
A163: R52 | B163: C | C163: 17 | D163: 10 | E163: 0 | F163: 0 | G163: 0 | H163: 1 | I163: 0 | J163: 1 | K163: 0 | L163: 0 | M163: 1 | N163: 6 | O163: 14 | P163: 4 | Q163: 2 | R163: 0 | S163: 0 | T163: 3 | U163: 24 | V163: 1 | W163: 5 | X163: 0 | Y163: 0 | Z163: 1 | AA163: 0 | AB163: 10 | AC163: 0
A164: R53 | B164: C | C164: 13 | E164: 0 | F164: 0 | G164: 0 | H164: 1 | I164: 0 | J164: 0 | K164: 0 | L164: 0 | M164: 0 | N164: 0 | O164: 1 | P164: 2 | Q164: 0 | R164: 0 | S164: 0 | T164: 1 | U164: 10 | V164: 0 | W164: 1 | X164: 0 | Y164: 0 | Z164: 0 | AA164: 0 | AB164: 1 | AC164: 0
A165: R54 | B165: C | C165: 14 | D165: 11 | E165: 0 | F165: 2 | G165: 1 | H165: 1 | I165: 0 | J165: 0 | K165: 0 | L165: 0 | M165: 0 | N165: 1 | O165: 3 | P165: 6 | Q165: 0 | R165: 0 | S165: 0 | T165: 4 | U165: 12 | V165: 1 | W165: 2 | X165: 0 | Y165: 0 | Z165: 0 | AA165: 3 | AB165: 4 | AC165: 0
A166: R57 | B166: C | C166: 20 | D166: 10 | E166: 0 | F166: 0 | G166: 0 | H166: 2 | I166: 0 | J166: 1 | K166: 0 | L166: 0 | M166: 1 | N166: 1 | O166: 11 | P166: 3 | Q166: 1 | R166: 0 | S166: 0 | T166: 2 | U166: 15 | V166: 1 | W166: 7 | X166: 0 | Y166: 0 | Z166: 2 | AA166: 4 | AB166: 11 | AC166: 0
A167: R58 | B167: C | C167: 9 | E167: 0 | F167: 0 | G167: 0 | H167: 0 | I167: 0 | J167: 1 | K167: 0 | L167: 0 | M167: 0 | N167: 0 | O167: 0 | P167: 1 | Q167: 0 | R167: 0 | S167: 0 | T167: 0 | U167: 1 | V167: 0 | W167: 1 | X167: 0 | Y167: 0 | Z167: 0 | AA167: 0 | AB167: 2 | AC167: 0
A168: R6 | B168: C | C168: 12 | E168: 0 | F168: 0 | G168: 1 | H168: 0 | I168: 0 | J168: 0 | K168: 0 | L168: 0 | M168: 0 | N168: 2 | O168: 1 | P168: 1 | Q168: 0 | R168: 0 | S168: 0 | T168: 0 | U168: 2 | V168: 1 | W168: 1 | X168: 0 | Y168: 0 | Z168: 0 | AA168: 0 | AB168: 1 | AC168: 0
A169: R63 | B169: C | C169: 20 | D169: 18 | E169: 1 | F169: 0 | G169: 1 | H169: 4 | I169: 0 | J169: 2 | K169: 0 | L169: 1 | M169: 4 | N169: 0 | O169: 30 | P169: 7 | Q169: 1 | R169: 0 | S169: 0 | T169: 7 | U169: 29 | V169: 6 | W169: 9 | X169: 0 | Y169: 0 | Z169: 1 | AA169: 2 | AB169: 19 | AC169: 0
A170: R65 | B170: C | C170: 1 | E170: 0 | F170: 0 | G170: 0 | H170: 0 | I170: 0 | J170: 0 | K170: 0 | L170: 0 | M170: 0 | N170: 0 | O170: 0 | P170: 0 | Q170: 0 | R170: 0 | S170: 0 | T170: 0 | U170: 0 | V170: 0 | W170: 0 | X170: 0 | Y170: 0 | Z170: 0 | AA170: 0 | AB170: 0 | AC170: 0
A171: R7 | B171: C | C171: 1 | E171: 0 | F171: 0 | G171: 0 | H171: 0 | I171: 0 | J171: 0 | K171: 0 | L171: 0 | M171: 0 | N171: 0 | O171: 0 | P171: 0 | Q171: 0 | R171: 0 | S171: 0 | T171: 0 | U171: 0 | V171: 0 | W171: 0 | X171: 0 | Y171: 0 | Z171: 0 | AA171: 0 | AB171: 0 | AC171: 0
A172: R73 | B172: C | C172: 1 | E172: 0 | F172: 0 | G172: 0 | H172: 0 | I172: 0 | J172: 0 | K172: 0 | L172: 0 | M172: 0 | N172: 0 | O172: 0 | P172: 0 | Q172: 0 | R172: 0 | S172: 0 | T172: 0 | U172: 0 | V172: 0 | W172: 0 | X172: 0 | Y172: 0 | Z172: 0 | AA172: 0 | AB172: 0 | AC172: 0
A173: R76 | B173: C | C173: 1 | E173: 0 | F173: 0 | G173: 0 | H173: 0 | I173: 0 | J173: 0 | K173: 0 | L173: 0 | M173: 0 | N173: 0 | O173: 0 | P173: 0 | Q173: 0 | R173: 0 | S173: 0 | T173: 0 | U173: 0 | V173: 0 | W173: 0 | X173: 0 | Y173: 0 | Z173: 0 | AA173: 0 | AB173: 0 | AC173: 0
A174: R77 | B174: C | C174: 12 | D174: 8 | E174: 0 | F174: 0 | G174: 0 | H174: 2 | I174: 1 | J174: 1 | K174: 0 | L174: 0 | M174: 0 | N174: 0 | O174: 6 | P174: 2 | Q174: 2 | R174: 0 | S174: 0 | T174: 0 | U174: 8 | V174: 0 | W174: 2 | X174: 0 | Y174: 0 | Z174: 0 | AA174: 3 | AB174: 5 | AC174: 0
A175: R8 | B175: C | C175: 25 | E175: 0 | F175: 0 | G175: 0 | H175: 1 | I175: 0 | J175: 5 | K175: 1 | L175: 0 | M175: 2 | N175: 0 | O175: 8 | P175: 13 | Q175: 0 | R175: 0 | S175: 0 | T175: 0 | U175: 21 | V175: 1 | W175: 10 | X175: 0 | Y175: 0 | Z175: 0 | AA175: 0 | AB175: 32 | AC175: 0
A176: R81 | B176: C | C176: 14 | E176: 0 | F176: 0 | G176: 0 | H176: 2 | I176: 0 | J176: 0 | K176: 0 | L176: 0 | M176: 2 | N176: 0 | O176: 1 | P176: 4 | Q176: 0 | R176: 0 | S176: 0 | T176: 0 | U176: 6 | V176: 0 | W176: 0 | X176: 0 | Y176: 0 | Z176: 0 | AA176: 0 | AB176: 6 | AC176: 0
A177: R83 | B177: C | C177: 16 | E177: 0 | F177: 0 | G177: 0 | H177: 0 | I177: 0 | J177: 0 | K177: 0 | L177: 0 | M177: 0 | N177: 0 | O177: 0 | P177: 0 | Q177: 0 | R177: 0 | S177: 0 | T177: 0 | U177: 1 | V177: 0 | W177: 0 | X177: 0 | Y177: 0 | Z177: 0 | AA177: 0 | AB177: 1 | AC177: 0
A178: R84 | B178: C | C178: 19 | D178: 10 | E178: 1 | F178: 0 | G178: 0 | H178: 3 | I178: 1 | J178: 7 | K178: 0 | L178: 0 | M178: 0 | N178: 0 | O178: 17 | P178: 6 | Q178: 1 | R178: 0 | S178: 0 | T178: 1 | U178: 22 | V178: 2 | W178: 5 | X178: 0 | Y178: 0 | Z178: 0 | AA178: 6 | AB178: 10 | AC178: 0
A179: R85 | B179: C | C179: 16 | D179: 10 | E179: 0 | F179: 0 | G179: 0 | H179: 0 | I179: 0 | J179: 1 | K179: 0 | L179: 0 | M179: 0 | N179: 1 | O179: 5 | P179: 3 | Q179: 2 | R179: 1 | S179: 0 | T179: 0 | U179: 10 | V179: 0 | W179: 3 | X179: 0 | Y179: 0 | Z179: 0 | AA179: 3 | AB179: 12 | AC179: 0
A180: R86 | B180: C | C180: 13 | D180: 8 | E180: 0 | F180: 0 | G180: 0 | H180: 2 | I180: 0 | J180: 0 | K180: 0 | L180: 0 | M180: 0 | N180: 0 | O180: 2 | P180: 3 | Q180: 0 | R180: 0 | S180: 0 | T180: 0 | U180: 3 | V180: 0 | W180: 2 | X180: 0 | Y180: 0 | Z180: 0 | AA180: 1 | AB180: 4 | AC180: 0
A181: DR53 | B181: C | C181: 13 | D181: 12 | E181: 2 | F181: 0 | G181: 1 | H181: 3 | I181: 0 | J181: 0 | K181: 0 | L181: 0 | M181: 1 | N181: 0 | O181: 8 | P181: 6 | Q181: 0 | R181: 0 | S181: 0 | T181: 1 | U181: 12 | V181: 0 | W181: 4 | X181: 0 | Y181: 0 | Z181: 1 | AA181: 0 | AB181: 7 | AC181: 0
A182: R9 | B182: C | C182: 11 | E182: 1 | F182: 0 | G182: 0 | H182: 0 | I182: 0 | J182: 0 | K182: 0 | L182: 0 | M182: 0 | N182: 2 | O182: 0 | P182: 1 | Q182: 0 | R182: 0 | S182: 0 | T182: 1 | U182: 3 | V182: 0 | W182: 8 | X182: 0 | Y182: 0 | Z182: 0 | AA182: 0 | AB182: 0 | AC182: 0
A183: R97 | B183: C | C183: 25 | D183: 22 | E183: 1 | F183: 0 | G183: 1 | H183: 10 | I183: 0 | J183: 5 | K183: 0 | L183: 3 | M183: 4 | N183: 1 | O183: 34 | P183: 14 | Q183: 1 | R183: 0 | S183: 0 | T183: 6 | U183: 26 | V183: 1 | W183: 12 | X183: 0 | Y183: 0 | Z183: 0 | AA183: 0 | AB183: 24 | AC183: 6
A184: R98 | B184: C | C184: 12 | D184: 9 | E184: 1 | F184: 0 | G184: 0 | H184: 1 | I184: 0 | J184: 0 | K184: 0 | L184: 0 | M184: 0 | N184: 0 | O184: 2 | P184: 1 | Q184: 0 | R184: 1 | S184: 0 | T184: 0 | U184: 1 | V184: 0 | W184: 1 | X184: 0 | Y184: 0 | Z184: 1 | AA184: 0 | AB184: 2 | AC184: 0
A185: W10 | B185: M | C185: 24 | D185: 14 | E185: 2 | F185: 0 | G185: 0 | H185: 5 | I185: 0 | J185: 2 | K185: 0 | L185: 1 | M185: 1 | N185: 1 | O185: 28 | P185: 14 | Q185: 0 | R185: 0 | S185: 0 | T185: 1 | U185: 30 | V185: 0 | W185: 14 | X185: 0 | Y185: 0 | Z185: 0 | AA185: 5 | AB185: 23 | AC185: 0
A186: W12 | B186: M | C186: 7 | E186: 0 | F186: 0 | G186: 0 | H186: 0 | I186: 0 | J186: 0 | K186: 0 | L186: 0 | M186: 0 | N186: 2 | O186: 0 | P186: 0 | Q186: 0 | R186: 0 | S186: 0 | T186: 0 | U186: 1 | V186: 0 | W186: 0 | X186: 0 | Y186: 0 | Z186: 0 | AA186: 0 | AB186: 0 | AC186: 0
A187: W16 | B187: M | C187: 8 | E187: 0 | F187: 0 | G187: 0 | H187: 0 | I187: 0 | J187: 0 | K187: 0 | L187: 0 | M187: 0 | N187: 0 | O187: 1 | P187: 0 | Q187: 0 | R187: 0 | S187: 0 | T187: 0 | U187: 0 | V187: 0 | W187: 0 | X187: 0 | Y187: 0 | Z187: 0 | AA187: 0 | AB187: 0 | AC187: 0
A188: W17 | B188: M | C188: 6 | E188: 0 | F188: 0 | G188: 0 | H188: 0 | I188: 0 | J188: 0 | K188: 0 | L188: 0 | M188: 0 | N188: 0 | O188: 1 | P188: 0 | Q188: 0 | R188: 0 | S188: 0 | T188: 0 | U188: 2 | V188: 0 | W188: 0 | X188: 0 | Y188: 0 | Z188: 0 | AA188: 0 | AB188: 0 | AC188: 0
A189: W2 | B189: M | C189: 10 | D189: 9 | E189: 0 | F189: 0 | G189: 0 | H189: 4 | I189: 0 | J189: 2 | K189: 0 | L189: 0 | M189: 0 | N189: 0 | O189: 1 | P189: 1 | Q189: 0 | R189: 0 | S189: 0 | T189: 0 | U189: 4 | V189: 0 | W189: 2 | X189: 0 | Y189: 0 | Z189: 0 | AA189: 4 | AB189: 4 | AC189: 0
A190: W28 | B190: M | C190: 10 | E190: 0 | F190: 0 | G190: 0 | H190: 1 | I190: 0 | J190: 0 | K190: 0 | L190: 0 | M190: 0 | N190: 0 | O190: 4 | P190: 2 | Q190: 0 | R190: 0 | S190: 0 | T190: 0 | U190: 8 | V190: 1 | W190: 2 | X190: 0 | Y190: 0 | Z190: 0 | AA190: 0 | AB190: 1 | AC190: 0
A191: W30 | B191: M | C191: 6 | E191: 0 | F191: 0 | G191: 0 | H191: 1 | I191: 0 | J191: 0 | K191: 0 | L191: 0 | M191: 0 | N191: 0 | O191: 0 | P191: 1 | Q191: 0 | R191: 0 | S191: 0 | T191: 0 | U191: 2 | V191: 0 | W191: 1 | X191: 0 | Y191: 0 | Z191: 0 | AA191: 0 | AB191: 0 | AC191: 0
A192: W31 | B192: M | C192: 6 | E192: 0 | F192: 0 | G192: 0 | H192: 0 | I192: 0 | J192: 0 | K192: 0 | L192: 0 | M192: 0 | N192: 1 | O192: 1 | P192: 0 | Q192: 0 | R192: 0 | S192: 0 | T192: 0 | U192: 1 | V192: 0 | W192: 0 | X192: 0 | Y192: 0 | Z192: 0 | AA192: 0 | AB192: 0 | AC192: 0
A193: W44 | B193: M | C193: 10 | E193: 0 | F193: 1 | G193: 0 | H193: 0 | I193: 0 | J193: 0 | K193: 0 | L193: 3 | M193: 0 | N193: 0 | O193: 2 | P193: 5 | Q193: 0 | R193: 0 | S193: 0 | T193: 0 | U193: 3 | V193: 1 | W193: 1 | X193: 0 | Y193: 0 | Z193: 0 | AA193: 0 | AB193: 2 | AC193: 0
A194: W46 | B194: M | C194: 4 | E194: 0 | F194: 0 | G194: 0 | H194: 0 | I194: 0 | J194: 0 | K194: 0 | L194: 0 | M194: 0 | N194: 0 | O194: 0 | P194: 0 | Q194: 0 | R194: 0 | S194: 0 | T194: 0 | U194: 1 | V194: 0 | W194: 0 | X194: 0 | Y194: 0 | Z194: 0 | AA194: 0 | AB194: 0 | AC194: 0
A195: W48 | B195: M | C195: 7 | E195: 0 | F195: 0 | G195: 0 | H195: 0 | I195: 0 | J195: 0 | K195: 0 | L195: 0 | M195: 0 | N195: 0 | O195: 1 | P195: 1 | Q195: 0 | R195: 0 | S195: 0 | T195: 0 | U195: 3 | V195: 1 | W195: 0 | X195: 0 | Y195: 0 | Z195: 0 | AA195: 0 | AB195: 0 | AC195: 0
A196: W50 | B196: M | C196: 6 | E196: 0 | F196: 0 | G196: 0 | H196: 1 | I196: 0 | J196: 0 | K196: 0 | L196: 0 | M196: 0 | N196: 0 | O196: 0 | P196: 0 | Q196: 0 | R196: 0 | S196: 0 | T196: 0 | U196: 1 | V196: 0 | W196: 0 | X196: 0 | Y196: 0 | Z196: 0 | AA196: 0 | AB196: 0 | AC196: 0
A197: W52 | B197: M | C197: 6 | E197: 0 | F197: 0 | G197: 0 | H197: 1 | I197: 0 | J197: 0 | K197: 0 | L197: 0 | M197: 0 | N197: 0 | O197: 0 | P197: 1 | Q197: 0 | R197: 0 | S197: 0 | T197: 0 | U197: 0 | V197: 0 | W197: 0 | X197: 0 | Y197: 0 | Z197: 0 | AA197: 0 | AB197: 0 | AC197: 0
A198: W56 | B198: M | C198: 10 | E198: 0 | F198: 0 | G198: 0 | H198: 0 | I198: 0 | J198: 0 | K198: 0 | L198: 3 | M198: 1 | N198: 2 | O198: 4 | P198: 12 | Q198: 0 | R198: 0 | S198: 0 | T198: 1 | U198: 5 | V198: 0 | W198: 2 | X198: 0 | Y198: 0 | Z198: 0 | AA198: 0 | AB198: 0 | AC198: 0
A199: W59 | B199: M | C199: 8 | E199: 0 | F199: 0 | G199: 0 | H199: 0 | I199: 0 | J199: 0 | K199: 0 | L199: 1 | M199: 0 | N199: 0 | O199: 0 | P199: 3 | Q199: 0 | R199: 0 | S199: 0 | T199: 0 | U199: 1 | V199: 0 | W199: 0 | X199: 0 | Y199: 0 | Z199: 0 | AA199: 0 | AB199: 0 | AC199: 0
A200: W6 | B200: M | C200: 12 | E200: 0 | F200: 0 | G200: 0 | H200: 0 | I200: 0 | J200: 0 | K200: 0 | L200: 0 | M200: 0 | N200: 0 | O200: 0 | P200: 2 | Q200: 0 | R200: 0 | S200: 0 | T200: 0 | U200: 1 | V200: 0 | W200: 1 | X200: 0 | Y200: 0 | Z200: 0 | AA200: 0 | AB200: 3 | AC200: 0
... 16 more rows

Sheet AdjustedExtractionC2
A1: Bee-ID | B1: Treatment | C1: Lifespan | D1: AFF | E1: CellCleaning | F1: Brood capping | G1: Brood feeding | H1: Brood patrol | I1: Queen tending | J1: Nectar receiving | K1: Pollen handling | L1: Comb building | M1: Hive cleaning | N1: Ventilation | O1: Patrolling | P1: Resting | Q1: Guarding | R1: Orientation | S1: Nectar deposit | T1: Grooming | U1: Selfgroom | V1: Allogroom | W1: Investigate | X1: Waggle | Y1: Round dance | Z1: Dance follow | AA1: Pollen foraging | AB1: Runway | AC1: Foraging | AD1: Natural Death?(0=No, 1=yes)
A2: B1 | B2: C | C2: 4 | E2: 0 | F2: 0 | G2: 0 | H2: 1 | I2: 0 | J2: 1 | K2: 0 | L2: 0 | M2: 0 | N2: 0 | O2: 0 | P2: 0 | Q2: 0 | R2: 0 | S2: 0 | T2: 0 | U2: 3 | V2: 0 | W2: 0 | X2: 0 | Y2: 0 | Z2: 0 | AA2: 0 | AB2: 0 | AC2: 0 | AD2: 1
A3: B12 | B3: C | C3: 5 | E3: 0 | F3: 0 | G3: 0 | H3: 0 | I3: 0 | J3: 0 | K3: 0 | L3: 0 | M3: 0 | N3: 0 | O3: 1 | P3: 0 | Q3: 0 | R3: 0 | S3: 0 | T3: 0 | U3: 2 | V3: 0 | W3: 3 | X3: 0 | Y3: 0 | Z3: 0 | AA3: 0 | AB3: 0 | AC3: 0 | AD3: 1
A4: B20 | B4: C | C4: 1 | E4: 0 | F4: 0 | G4: 0 | H4: 0 | I4: 0 | J4: 0 | K4: 0 | L4: 0 | M4: 0 | N4: 0 | O4: 0 | P4: 0 | Q4: 0 | R4: 0 | S4: 0 | T4: 0 | U4: 0 | V4: 0 | W4: 0 | X4: 0 | Y4: 0 | Z4: 0 | AA4: 0 | AB4: 0 | AC4: 0 | AD4: 1
A5: B22 | B5: C | C5: 6 | E5: 0 | F5: 0 | G5: 0 | H5: 0 | I5: 0 | J5: 0 | K5: 0 | L5: 0 | M5: 0 | N5: 1 | O5: 4 | P5: 3 | Q5: 0 | R5: 0 | S5: 0 | T5: 0 | U5: 3 | V5: 0 | W5: 2 | X5: 0 | Y5: 0 | Z5: 0 | AA5: 0 | AB5: 0 | AC5: 0 | AD5: 1
A6: B3 | B6: C | C6: 6 | E6: 1 | F6: 0 | G6: 0 | H6: 1 | I6: 0 | J6: 0 | K6: 0 | L6: 0 | M6: 0 | N6: 1 | O6: 2 | P6: 2 | Q6: 0 | R6: 0 | S6: 0 | T6: 1 | U6: 4 | V6: 0 | W6: 4 | X6: 0 | Y6: 0 | Z6: 0 | AA6: 0 | AB6: 0 | AC6: 0 | AD6: 1
A7: B32 | B7: C | C7: 3 | E7: 0 | F7: 0 | G7: 0 | H7: 0 | I7: 0 | J7: 0 | K7: 0 | L7: 0 | M7: 0 | N7: 0 | O7: 0 | P7: 0 | Q7: 0 | R7: 0 | S7: 0 | T7: 1 | U7: 2 | V7: 0 | W7: 0 | X7: 0 | Y7: 0 | Z7: 0 | AA7: 0 | AB7: 0 | AC7: 0 | AD7: 1
A8: B33 | B8: C | C8: 17 | E8: 0 | F8: 0 | G8: 0 | H8: 0 | I8: 0 | J8: 0 | K8: 0 | L8: 0 | M8: 0 | N8: 0 | O8: 2 | P8: 1 | Q8: 0 | R8: 0 | S8: 0 | T8: 0 | U8: 1 | V8: 0 | W8: 0 | X8: 0 | Y8: 0 | Z8: 0 | AA8: 0 | AB8: 1 | AC8: 0 | AD8: 1
A9: B34 | B9: C | C9: 3 | E9: 0 | F9: 0 | G9: 0 | H9: 0 | I9: 0 | J9: 0 | K9: 0 | L9: 0 | M9: 0 | N9: 0 | O9: 1 | P9: 0 | Q9: 0 | R9: 0 | S9: 0 | T9: 0 | U9: 2 | V9: 0 | W9: 0 | X9: 0 | Y9: 0 | Z9: 0 | AA9: 0 | AB9: 0 | AC9: 0 | AD9: 1
A10: B35 | B10: C | C10: 2 | E10: 0 | F10: 0 | G10: 0 | H10: 0 | I10: 0 | J10: 0 | K10: 0 | L10: 0 | M10: 0 | N10: 1 | O10: 0 | P10: 0 | Q10: 0 | R10: 0 | S10: 0 | T10: 0 | U10: 1 | V10: 0 | W10: 0 | X10: 0 | Y10: 0 | Z10: 0 | AA10: 0 | AB10: 0 | AC10: 0 | AD10: 1
A11: B36 | B11: C | C11: 2 | E11: 0 | F11: 0 | G11: 0 | H11: 0 | I11: 0 | J11: 0 | K11: 0 | L11: 0 | M11: 0 | N11: 1 | O11: 0 | P11: 0 | Q11: 0 | R11: 0 | S11: 0 | T11: 0 | U11: 0 | V11: 0 | W11: 0 | X11: 0 | Y11: 0 | Z11: 0 | AA11: 0 | AB11: 0 | AC11: 0 | AD11: 1
A12: B40 | B12: C | C12: 4 | E12: 0 | F12: 0 | G12: 0 | H12: 0 | I12: 0 | J12: 0 | K12: 0 | L12: 0 | M12: 0 | N12: 0 | O12: 0 | P12: 0 | Q12: 0 | R12: 0 | S12: 0 | T12: 0 | U12: 1 | V12: 0 | W12: 1 | X12: 0 | Y12: 0 | Z12: 0 | AA12: 0 | AB12: 0 | AC12: 0 | AD12: 1
A13: B43 | B13: C | C13: 4 | E13: 0 | F13: 0 | G13: 0 | H13: 0 | I13: 0 | J13: 0 | K13: 0 | L13: 0 | M13: 0 | N13: 0 | O13: 2 | P13: 1 | Q13: 0 | R13: 0 | S13: 0 | T13: 0 | U13: 0 | V13: 0 | W13: 0 | X13: 0 | Y13: 0 | Z13: 0 | AA13: 0 | AB13: 0 | AC13: 0 | AD13: 0
A14: B45 | B14: C | C14: 4 | E14: 0 | F14: 0 | G14: 0 | H14: 0 | I14: 0 | J14: 0 | K14: 0 | L14: 0 | M14: 0 | N14: 0 | O14: 0 | P14: 0 | Q14: 0 | R14: 0 | S14: 0 | T14: 0 | U14: 2 | V14: 0 | W14: 0 | X14: 0 | Y14: 0 | Z14: 0 | AA14: 0 | AB14: 0 | AC14: 0 | AD14: 0
A15: B46 | B15: C | C15: 2 | E15: 0 | F15: 0 | G15: 0 | H15: 0 | I15: 0 | J15: 0 | K15: 0 | L15: 0 | M15: 0 | N15: 0 | O15: 1 | P15: 0 | Q15: 0 | R15: 0 | S15: 0 | T15: 0 | U15: 1 | V15: 0 | W15: 1 | X15: 0 | Y15: 0 | Z15: 0 | AA15: 0 | AB15: 0 | AC15: 0 | AD15: 1
A16: B47 | B16: C | C16: 4 | E16: 0 | F16: 0 | G16: 0 | H16: 0 | I16: 0 | J16: 0 | K16: 0 | L16: 0 | M16: 0 | N16: 0 | O16: 0 | P16: 0 | Q16: 0 | R16: 0 | S16: 0 | T16: 0 | U16: 0 | V16: 0 | W16: 1 | X16: 0 | Y16: 0 | Z16: 0 | AA16: 0 | AB16: 0 | AC16: 0 | AD16: 1
A17: B48 | B17: C | C17: 4 | E17: 0 | F17: 0 | G17: 0 | H17: 0 | I17: 0 | J17: 0 | K17: 1 | L17: 0 | M17: 0 | N17: 0 | O17: 0 | P17: 2 | Q17: 0 | R17: 0 | S17: 0 | T17: 0 | U17: 0 | V17: 0 | W17: 0 | X17: 0 | Y17: 0 | Z17: 0 | AA17: 0 | AB17: 0 | AC17: 0 | AD17: 0
A18: B5 | B18: C | C18: 1 | E18: 0 | F18: 0 | G18: 0 | H18: 0 | I18: 0 | J18: 0 | K18: 0 | L18: 0 | M18: 0 | N18: 0 | O18: 0 | P18: 0 | Q18: 0 | R18: 0 | S18: 0 | T18: 0 | U18: 0 | V18: 0 | W18: 0 | X18: 0 | Y18: 0 | Z18: 0 | AA18: 0 | AB18: 0 | AC18: 0 | AD18: 1
A19: B50 | B19: C | C19: 4 | E19: 0 | F19: 0 | G19: 0 | H19: 0 | I19: 0 | J19: 0 | K19: 0 | L19: 0 | M19: 0 | N19: 0 | O19: 1 | P19: 0 | Q19: 0 | R19: 0 | S19: 0 | T19: 0 | U19: 1 | V19: 0 | W19: 1 | X19: 0 | Y19: 0 | Z19: 0 | AA19: 0 | AB19: 0 | AC19: 0 | AD19: 1
A20: B51 | B20: C | C20: 10 | E20: 3 | F20: 0 | G20: 0 | H20: 3 | I20: 0 | J20: 3 | K20: 0 | L20: 0 | M20: 0 | N20: 3 | O20: 4 | P20: 16 | Q20: 0 | R20: 0 | S20: 0 | T20: 2 | U20: 10 | V20: 0 | W20: 6 | X20: 0 | Y20: 0 | Z20: 0 | AA20: 0 | AB20: 3 | AC20: 0 | AD20: 1
A21: B52 | B21: C | C21: 4 | E21: 0 | F21: 0 | G21: 0 | H21: 0 | I21: 0 | J21: 0 | K21: 0 | L21: 0 | M21: 0 | N21: 0 | O21: 2 | P21: 1 | Q21: 0 | R21: 0 | S21: 0 | T21: 0 | U21: 1 | V21: 0 | W21: 2 | X21: 0 | Y21: 0 | Z21: 0 | AA21: 0 | AB21: 0 | AC21: 0 | AD21: 0
A22: B55 | B22: C | C22: 9 | E22: 0 | F22: 0 | G22: 0 | H22: 0 | I22: 0 | J22: 1 | K22: 0 | L22: 0 | M22: 0 | N22: 0 | O22: 4 | P22: 4 | Q22: 1 | R22: 0 | S22: 0 | T22: 3 | U22: 4 | V22: 0 | W22: 6 | X22: 0 | Y22: 0 | Z22: 0 | AA22: 0 | AB22: 3 | AC22: 0 | AD22: 1
A23: B58 | B23: C | C23: 10 | E23: 0 | F23: 0 | G23: 0 | H23: 0 | I23: 0 | J23: 0 | K23: 0 | L23: 0 | M23: 0 | N23: 1 | O23: 2 | P23: 8 | Q23: 0 | R23: 0 | S23: 0 | T23: 2 | U23: 6 | V23: 1 | W23: 5 | X23: 0 | Y23: 0 | Z23: 0 | AA23: 0 | AB23: 0 | AC23: 0 | AD23: 1
A24: B59 | B24: C | C24: 4 | E24: 0 | F24: 0 | G24: 0 | H24: 0 | I24: 0 | J24: 0 | K24: 0 | L24: 0 | M24: 0 | N24: 0 | O24: 3 | P24: 1 | Q24: 0 | R24: 0 | S24: 0 | T24: 1 | U24: 1 | V24: 0 | W24: 0 | X24: 0 | Y24: 0 | Z24: 0 | AA24: 0 | AB24: 0 | AC24: 0 | AD24: 1
A25: B60 | B25: C | C25: 4 | E25: 0 | F25: 0 | G25: 0 | H25: 0 | I25: 0 | J25: 0 | K25: 0 | L25: 0 | M25: 0 | N25: 0 | O25: 3 | P25: 1 | Q25: 0 | R25: 0 | S25: 0 | T25: 1 | U25: 0 | V25: 0 | W25: 0 | X25: 0 | Y25: 0 | Z25: 0 | AA25: 0 | AB25: 0 | AC25: 0 | AD25: 0
A26: B65 | B26: C | C26: 4 | E26: 0 | F26: 0 | G26: 0 | H26: 0 | I26: 0 | J26: 0 | K26: 0 | L26: 0 | M26: 0 | N26: 2 | O26: 1 | P26: 0 | Q26: 0 | R26: 0 | S26: 0 | T26: 1 | U26: 3 | V26: 0 | W26: 1 | X26: 0 | Y26: 0 | Z26: 0 | AA26: 0 | AB26: 0 | AC26: 0 | AD26: 1
A27: B68 | B27: C | C27: 4 | E27: 1 | F27: 0 | G27: 0 | H27: 0 | I27: 0 | J27: 0 | K27: 0 | L27: 0 | M27: 0 | N27: 0 | O27: 2 | P27: 0 | Q27: 0 | R27: 0 | S27: 0 | T27: 0 | U27: 0 | V27: 0 | W27: 0 | X27: 0 | Y27: 0 | Z27: 0 | AA27: 0 | AB27: 0 | AC27: 0 | AD27: 1
A28: B69 | B28: C | C28: 4 | E28: 1 | F28: 0 | G28: 0 | H28: 0 | I28: 0 | J28: 0 | K28: 0 | L28: 0 | M28: 0 | N28: 0 | O28: 3 | P28: 0 | Q28: 0 | R28: 0 | S28: 0 | T28: 0 | U28: 1 | V28: 1 | W28: 1 | X28: 0 | Y28: 0 | Z28: 0 | AA28: 0 | AB28: 0 | AC28: 0 | AD28: 1
A29: B71 | B29: C | C29: 4 | E29: 0 | F29: 0 | G29: 0 | H29: 0 | I29: 0 | J29: 0 | K29: 0 | L29: 0 | M29: 0 | N29: 0 | O29: 1 | P29: 0 | Q29: 0 | R29: 0 | S29: 0 | T29: 1 | U29: 0 | V29: 0 | W29: 0 | X29: 0 | Y29: 0 | Z29: 0 | AA29: 0 | AB29: 0 | AC29: 0 | AD29: 1
A30: B75 | B30: C | C30: 18 | D30: 18 | E30: 5 | F30: 0 | G30: 0 | H30: 1 | I30: 0 | J30: 1 | K30: 0 | L30: 2 | M30: 1 | N30: 0 | O30: 7 | P30: 50 | Q30: 0 | R30: 0 | S30: 0 | T30: 3 | U30: 27 | V30: 1 | W30: 23 | X30: 0 | Y30: 0 | Z30: 0 | AA30: 0 | AB30: 6 | AC30: 1 | AD30: 1
A31: B77 | B31: C | C31: 8 | E31: 0 | F31: 0 | G31: 0 | H31: 1 | I31: 0 | J31: 0 | K31: 0 | L31: 0 | M31: 0 | N31: 0 | O31: 11 | P31: 11 | Q31: 0 | R31: 0 | S31: 0 | T31: 1 | U31: 4 | V31: 0 | W31: 3 | X31: 0 | Y31: 0 | Z31: 0 | AA31: 0 | AB31: 1 | AC31: 0 | AD31: 1
A32: B8 | B32: C | C32: 5 | E32: 0 | F32: 0 | G32: 0 | H32: 0 | I32: 0 | J32: 1 | K32: 0 | L32: 0 | M32: 0 | N32: 0 | O32: 0 | P32: 1 | Q32: 0 | R32: 0 | S32: 0 | T32: 0 | U32: 2 | V32: 0 | W32: 3 | X32: 0 | Y32: 0 | Z32: 0 | AA32: 0 | AB32: 0 | AC32: 0 | AD32: 1
A33: B80 | B33: C | C33: 4 | E33: 0 | F33: 0 | G33: 0 | H33: 0 | I33: 0 | J33: 0 | K33: 0 | L33: 0 | M33: 0 | N33: 0 | O33: 0 | P33: 1 | Q33: 0 | R33: 0 | S33: 0 | T33: 0 | U33: 0 | V33: 0 | W33: 0 | X33: 0 | Y33: 0 | Z33: 0 | AA33: 0 | AB33: 0 | AC33: 0 | AD33: 1
A34: B81 | B34: C | C34: 4 | E34: 0 | F34: 0 | G34: 0 | H34: 0 | I34: 0 | J34: 1 | K34: 0 | L34: 0 | M34: 0 | N34: 0 | O34: 1 | P34: 3 | Q34: 0 | R34: 0 | S34: 0 | T34: 0 | U34: 0 | V34: 0 | W34: 0 | X34: 0 | Y34: 0 | Z34: 0 | AA34: 0 | AB34: 0 | AC34: 0 | AD34: 0
A35: B84 | B35: C | C35: 21 | E35: 0 | F35: 0 | G35: 0 | H35: 0 | I35: 0 | J35: 1 | K35: 0 | L35: 0 | M35: 0 | N35: 0 | O35: 0 | P35: 0 | Q35: 0 | R35: 0 | S35: 0 | T35: 0 | U35: 0 | V35: 1 | W35: 0 | X35: 0 | Y35: 0 | Z35: 0 | AA35: 0 | AB35: 1 | AC35: 0 | AD35: 1
A36: B88 | B36: C | C36: 4 | E36: 1 | F36: 0 | G36: 0 | H36: 0 | I36: 0 | J36: 0 | K36: 0 | L36: 0 | M36: 0 | N36: 0 | O36: 1 | P36: 1 | Q36: 0 | R36: 0 | S36: 0 | T36: 0 | U36: 7 | V36: 0 | W36: 0 | X36: 0 | Y36: 0 | Z36: 0 | AA36: 0 | AB36: 0 | AC36: 0 | AD36: 1
A37: B94 | B37: C | C37: 4 | E37: 0 | F37: 0 | G37: 0 | H37: 0 | I37: 0 | J37: 0 | K37: 0 | L37: 0 | M37: 0 | N37: 0 | O37: 1 | P37: 4 | Q37: 0 | R37: 0 | S37: 0 | T37: 0 | U37: 4 | V37: 0 | W37: 2 | X37: 0 | Y37: 0 | Z37: 0 | AA37: 0 | AB37: 0 | AC37: 0 | AD37: 0
A38: B95 | B38: C | C38: 4 | E38: 0 | F38: 0 | G38: 0 | H38: 0 | I38: 0 | J38: 0 | K38: 0 | L38: 0 | M38: 0 | N38: 0 | O38: 1 | P38: 1 | Q38: 0 | R38: 0 | S38: 0 | T38: 0 | U38: 2 | V38: 1 | W38: 1 | X38: 0 | Y38: 0 | Z38: 0 | AA38: 0 | AB38: 0 | AC38: 0 | AD38: 0
A39: B98 | B39: C | C39: 4 | E39: 1 | F39: 0 | G39: 0 | H39: 0 | I39: 0 | J39: 0 | K39: 0 | L39: 0 | M39: 0 | N39: 0 | O39: 1 | P39: 0 | Q39: 0 | R39: 0 | S39: 0 | T39: 1 | U39: 1 | V39: 0 | W39: 0 | X39: 0 | Y39: 0 | Z39: 0 | AA39: 0 | AB39: 0 | AC39: 0 | AD39: 0
A40: LG10 | B40: C | C40: 25 | D40: 23 | E40: 1 | F40: 0 | G40: 0 | H40: 3 | I40: 0 | J40: 1 | K40: 0 | L40: 0 | M40: 1 | N40: 0 | O40: 11 | P40: 18 | Q40: 0 | R40: 1 | S40: 0 | T40: 7 | U40: 17 | V40: 1 | W40: 11 | X40: 0 | Y40: 0 | Z40: 0 | AA40: 0 | AB40: 15 | AC40: 1 | AD40: 1
A41: LG11 | B41: C | C41: 4 | E41: 2 | F41: 0 | G41: 0 | H41: 0 | I41: 0 | J41: 0 | K41: 0 | L41: 0 | M41: 0 | N41: 0 | O41: 2 | P41: 0 | Q41: 0 | R41: 0 | S41: 0 | T41: 1 | U41: 8 | V41: 0 | W41: 0 | X41: 0 | Y41: 0 | Z41: 0 | AA41: 0 | AB41: 0 | AC41: 0 | AD41: 1
A42: LG13 | B42: C | C42: 6 | E42: 0 | F42: 0 | G42: 0 | H42: 1 | I42: 0 | J42: 0 | K42: 0 | L42: 0 | M42: 0 | N42: 0 | O42: 2 | P42: 5 | Q42: 0 | R42: 0 | S42: 0 | T42: 1 | U42: 8 | V42: 0 | W42: 0 | X42: 0 | Y42: 0 | Z42: 0 | AA42: 0 | AB42: 0 | AC42: 0 | AD42: 1
A43: LG14 | B43: C | C43: 9 | E43: 0 | F43: 0 | G43: 0 | H43: 2 | I43: 0 | J43: 0 | K43: 0 | L43: 0 | M43: 0 | N43: 0 | O43: 3 | P43: 8 | Q43: 0 | R43: 0 | S43: 0 | T43: 4 | U43: 6 | V43: 1 | W43: 3 | X43: 0 | Y43: 0 | Z43: 0 | AA43: 0 | AB43: 0 | AC43: 0 | AD43: 1
A44: LG18 | B44: C | C44: 30 | E44: 7 | F44: 0 | G44: 0 | H44: 3 | I44: 0 | J44: 0 | K44: 0 | L44: 1 | M44: 7 | N44: 3 | O44: 8 | P44: 42 | Q44: 0 | R44: 0 | S44: 0 | T44: 18 | U44: 34 | V44: 1 | W44: 19 | X44: 0 | Y44: 0 | Z44: 0 | AA44: 0 | AB44: 7 | AC44: 0 | AD44: 0
A45: LG20 | B45: C | C45: 30 | E45: 3 | F45: 0 | G45: 0 | H45: 3 | I45: 0 | J45: 6 | K45: 0 | L45: 2 | M45: 2 | N45: 4 | O45: 20 | P45: 52 | Q45: 0 | R45: 0 | S45: 0 | T45: 19 | U45: 30 | V45: 2 | W45: 35 | X45: 0 | Y45: 0 | Z45: 0 | AA45: 0 | AB45: 34 | AC45: 0 | AD45: 1
A46: LG21 | B46: C | C46: 5 | E46: 0 | F46: 0 | G46: 0 | H46: 0 | I46: 0 | J46: 0 | K46: 0 | L46: 0 | M46: 0 | N46: 0 | O46: 2 | P46: 1 | Q46: 0 | R46: 0 | S46: 0 | T46: 1 | U46: 4 | V46: 0 | W46: 2 | X46: 0 | Y46: 0 | Z46: 0 | AA46: 0 | AB46: 0 | AC46: 0 | AD46: 1
A47: LG22 | B47: C | C47: 17 | E47: 3 | F47: 0 | G47: 0 | H47: 2 | I47: 0 | J47: 1 | K47: 0 | L47: 0 | M47: 0 | N47: 0 | O47: 13 | P47: 19 | Q47: 0 | R47: 0 | S47: 0 | T47: 9 | U47: 21 | V47: 0 | W47: 7 | X47: 0 | Y47: 0 | Z47: 0 | AA47: 0 | AB47: 2 | AC47: 0 | AD47: 1
A48: LG25 | B48: C | C48: 20 | E48: 1 | F48: 0 | G48: 0 | H48: 3 | I48: 0 | J48: 2 | K48: 0 | L48: 3 | M48: 0 | N48: 6 | O48: 8 | P48: 21 | Q48: 0 | R48: 0 | S48: 0 | T48: 7 | U48: 19 | V48: 1 | W48: 9 | X48: 0 | Y48: 0 | Z48: 0 | AA48: 0 | AB48: 4 | AC48: 0 | AD48: 1
A49: LG26 | B49: C | C49: 7 | E49: 2 | F49: 0 | G49: 0 | H49: 3 | I49: 0 | J49: 0 | K49: 0 | L49: 0 | M49: 0 | N49: 1 | O49: 6 | P49: 8 | Q49: 0 | R49: 0 | S49: 0 | T49: 8 | U49: 8 | V49: 0 | W49: 5 | X49: 0 | Y49: 0 | Z49: 0 | AA49: 0 | AB49: 0 | AC49: 0 | AD49: 1
A50: LG29 | B50: C | C50: 29 | D50: 27 | E50: 6 | F50: 0 | G50: 0 | H50: 2 | I50: 0 | J50: 2 | K50: 0 | L50: 0 | M50: 2 | N50: 1 | O50: 21 | P50: 38 | Q50: 0 | R50: 0 | S50: 0 | T50: 15 | U50: 32 | V50: 2 | W50: 21 | X50: 0 | Y50: 0 | Z50: 0 | AA50: 0 | AB50: 10 | AC50: 2 | AD50: 1
A51: LG30 | B51: C | C51: 29 | D51: 22 | E51: 1 | F51: 0 | G51: 0 | H51: 1 | I51: 0 | J51: 2 | K51: 0 | L51: 3 | M51: 14 | N51: 5 | O51: 22 | P51: 51 | Q51: 1 | R51: 0 | S51: 0 | T51: 9 | U51: 26 | V51: 1 | W51: 37 | X51: 0 | Y51: 0 | Z51: 0 | AA51: 0 | AB51: 19 | AC51: 1 | AD51: 0
A52: LG32 | B52: C | C52: 28 | E52: 4 | F52: 0 | G52: 0 | H52: 1 | I52: 0 | J52: 2 | K52: 0 | L52: 1 | M52: 10 | N52: 0 | O52: 27 | P52: 50 | Q52: 0 | R52: 0 | S52: 0 | T52: 11 | U52: 28 | V52: 1 | W52: 18 | X52: 0 | Y52: 0 | Z52: 0 | AA52: 0 | AB52: 15 | AC52: 0 | AD52: 1
A53: LG33 | B53: C | C53: 7 | E53: 1 | F53: 0 | G53: 0 | H53: 0 | I53: 0 | J53: 0 | K53: 0 | L53: 0 | M53: 0 | N53: 0 | O53: 3 | P53: 1 | Q53: 0 | R53: 0 | S53: 0 | T53: 1 | U53: 3 | V53: 0 | W53: 3 | X53: 0 | Y53: 0 | Z53: 0 | AA53: 0 | AB53: 0 | AC53: 0 | AD53: 1
A54: LG34 | B54: C | C54: 26 | E54: 1 | F54: 0 | G54: 0 | H54: 2 | I54: 0 | J54: 1 | K54: 0 | L54: 2 | M54: 7 | N54: 7 | O54: 16 | P54: 48 | Q54: 0 | R54: 0 | S54: 0 | T54: 13 | U54: 32 | V54: 0 | W54: 12 | X54: 0 | Y54: 0 | Z54: 0 | AA54: 0 | AB54: 9 | AC54: 0 | AD54: 1
A55: LG37 | B55: C | C55: 27 | D55: 25 | E55: 2 | F55: 0 | G55: 0 | H55: 0 | I55: 0 | J55: 1 | K55: 0 | L55: 0 | M55: 5 | N55: 5 | O55: 20 | P55: 42 | Q55: 0 | R55: 0 | S55: 0 | T55: 10 | U55: 31 | V55: 2 | W55: 25 | X55: 1 | Y55: 0 | Z55: 0 | AA55: 2 | AB55: 16 | AC55: 3 | AD55: 1
A56: LG40 | B56: C | C56: 27 | D56: 17 | E56: 3 | F56: 0 | G56: 0 | H56: 5 | I56: 2 | J56: 2 | K56: 0 | L56: 0 | M56: 1 | N56: 1 | O56: 14 | P56: 50 | Q56: 0 | R56: 0 | S56: 0 | T56: 4 | U56: 31 | V56: 0 | W56: 19 | X56: 1 | Y56: 0 | Z56: 0 | AA56: 0 | AB56: 35 | AC56: 1 | AD56: 1
A57: LG41 | B57: C | C57: 17 | E57: 3 | F57: 0 | G57: 0 | H57: 2 | I57: 0 | J57: 2 | K57: 0 | L57: 1 | M57: 2 | N57: 0 | O57: 16 | P57: 29 | Q57: 0 | R57: 0 | S57: 0 | T57: 6 | U57: 28 | V57: 1 | W57: 13 | X57: 0 | Y57: 0 | Z57: 0 | AA57: 0 | AB57: 11 | AC57: 0 | AD57: 1
A58: LG42 | B58: C | C58: 30 | D58: 22 | E58: 1 | F58: 0 | G58: 0 | H58: 1 | I58: 0 | J58: 2 | K58: 0 | L58: 0 | M58: 1 | N58: 0 | O58: 29 | P58: 27 | Q58: 0 | R58: 1 | S58: 0 | T58: 8 | U58: 35 | V58: 1 | W58: 23 | X58: 0 | Y58: 0 | Z58: 0 | AA58: 0 | AB58: 42 | AC58: 2 | AD58: 1
A59: LG44 | B59: C | C59: 3 | E59: 2 | F59: 0 | G59: 0 | H59: 2 | I59: 0 | J59: 0 | K59: 0 | L59: 0 | M59: 0 | N59: 0 | O59: 1 | P59: 1 | Q59: 0 | R59: 0 | S59: 0 | T59: 0 | U59: 3 | V59: 0 | W59: 1 | X59: 0 | Y59: 0 | Z59: 0 | AA59: 0 | AB59: 0 | AC59: 0 | AD59: 1
A60: LG45 | B60: C | C60: 9 | E60: 0 | F60: 0 | G60: 0 | H60: 1 | I60: 0 | J60: 0 | K60: 0 | L60: 0 | M60: 0 | N60: 0 | O60: 4 | P60: 6 | Q60: 0 | R60: 0 | S60: 0 | T60: 3 | U60: 8 | V60: 0 | W60: 1 | X60: 0 | Y60: 0 | Z60: 0 | AA60: 0 | AB60: 1 | AC60: 0 | AD60: 1
A61: LG47 | B61: C | C61: 8 | E61: 0 | F61: 0 | G61: 0 | H61: 0 | I61: 0 | J61: 0 | K61: 0 | L61: 0 | M61: 0 | N61: 1 | O61: 12 | P61: 11 | Q61: 0 | R61: 0 | S61: 0 | T61: 1 | U61: 3 | V61: 0 | W61: 1 | X61: 0 | Y61: 0 | Z61: 0 | AA61: 0 | AB61: 0 | AC61: 0 | AD61: 1
A62: LG49 | B62: C | C62: 7 | E62: 0 | F62: 0 | G62: 0 | H62: 0 | I62: 0 | J62: 0 | K62: 0 | L62: 0 | M62: 0 | N62: 0 | O62: 4 | P62: 0 | Q62: 0 | R62: 0 | S62: 0 | T62: 0 | U62: 1 | V62: 0 | W62: 2 | X62: 0 | Y62: 0 | Z62: 0 | AA62: 0 | AB62: 0 | AC62: 0 | AD62: 1
A63: LG5 | B63: C | C63: 9 | E63: 1 | F63: 0 | G63: 0 | H63: 1 | I63: 0 | J63: 0 | K63: 0 | L63: 0 | M63: 0 | N63: 3 | O63: 6 | P63: 6 | Q63: 0 | R63: 0 | S63: 0 | T63: 5 | U63: 6 | V63: 0 | W63: 1 | X63: 0 | Y63: 0 | Z63: 0 | AA63: 0 | AB63: 0 | AC63: 0 | AD63: 1
A64: LG50 | B64: C | C64: 29 | E64: 9 | F64: 0 | G64: 0 | H64: 3 | I64: 0 | J64: 1 | K64: 0 | L64: 2 | M64: 2 | N64: 10 | O64: 25 | P64: 40 | Q64: 1 | R64: 0 | S64: 0 | T64: 13 | U64: 30 | V64: 0 | W64: 23 | X64: 0 | Y64: 0 | Z64: 0 | AA64: 0 | AB64: 1 | AC64: 0 | AD64: 0
A65: LG51 | B65: C | C65: 5 | E65: 0 | F65: 0 | G65: 0 | H65: 0 | I65: 0 | J65: 0 | K65: 0 | L65: 0 | M65: 0 | N65: 0 | O65: 10 | P65: 5 | Q65: 0 | R65: 0 | S65: 0 | T65: 3 | U65: 6 | V65: 0 | W65: 9 | X65: 0 | Y65: 0 | Z65: 0 | AA65: 0 | AB65: 0 | AC65: 0 | AD65: 1
A66: LG54 | B66: C | C66: 24 | E66: 1 | F66: 1 | G66: 0 | H66: 0 | I66: 0 | J66: 0 | K66: 0 | L66: 0 | M66: 0 | N66: 0 | O66: 3 | P66: 7 | Q66: 0 | R66: 0 | S66: 0 | T66: 2 | U66: 3 | V66: 0 | W66: 3 | X66: 0 | Y66: 0 | Z66: 0 | AA66: 0 | AB66: 0 | AC66: 0 | AD66: 1
A67: LG56 | B67: C | C67: 7 | E67: 0 | F67: 0 | G67: 0 | H67: 0 | I67: 0 | J67: 0 | K67: 0 | L67: 0 | M67: 0 | N67: 0 | O67: 4 | P67: 1 | Q67: 0 | R67: 0 | S67: 0 | T67: 0 | U67: 6 | V67: 0 | W67: 1 | X67: 0 | Y67: 0 | Z67: 0 | AA67: 0 | AB67: 0 | AC67: 0 | AD67: 1
A68: LG57 | B68: C | C68: 29 | D68: 27 | E68: 7 | F68: 0 | G68: 1 | H68: 2 | I68: 0 | J68: 2 | K68: 0 | L68: 6 | M68: 6 | N68: 2 | O68: 20 | P68: 52 | Q68: 0 | R68: 0 | S68: 0 | T68: 15 | U68: 33 | V68: 0 | W68: 22 | X68: 0 | Y68: 0 | Z68: 0 | AA68: 0 | AB68: 7 | AC68: 1 | AD68: 0
A69: LG58 | B69: C | C69: 29 | D69: 26 | E69: 4 | F69: 0 | G69: 0 | H69: 2 | I69: 0 | J69: 4 | K69: 0 | L69: 6 | M69: 6 | N69: 2 | O69: 27 | P69: 47 | Q69: 1 | R69: 0 | S69: 0 | T69: 19 | U69: 28 | V69: 2 | W69: 30 | X69: 0 | Y69: 0 | Z69: 0 | AA69: 2 | AB69: 20 | AC69: 2 | AD69: 0
A70: LG3 | B70: C | C70: 30 | E70: 5 | F70: 0 | G70: 1 | H70: 7 | I70: 0 | J70: 0 | K70: 1 | L70: 3 | M70: 3 | N70: 9 | O70: 17 | P70: 87 | Q70: 0 | R70: 0 | S70: 0 | T70: 21 | U70: 50 | V70: 0 | W70: 22 | X70: 0 | Y70: 0 | Z70: 0 | AA70: 0 | AB70: 19 | AC70: 0 | AD70: 0
A71: LG59 | B71: C | C71: 28 | E71: 4 | F71: 0 | G71: 0 | H71: 3 | I71: 0 | J71: 1 | K71: 0 | L71: 5 | M71: 9 | N71: 5 | O71: 17 | P71: 44 | Q71: 0 | R71: 0 | S71: 0 | T71: 17 | U71: 26 | V71: 2 | W71: 23 | X71: 0 | Y71: 0 | Z71: 0 | AA71: 0 | AB71: 7 | AC71: 0 | AD71: 1
A72: LG60 | B72: C | C72: 28 | D72: 23 | E72: 4 | F72: 0 | G72: 0 | H72: 1 | I72: 0 | J72: 2 | K72: 0 | L72: 0 | M72: 2 | N72: 3 | O72: 14 | P72: 49 | Q72: 0 | R72: 0 | S72: 0 | T72: 13 | U72: 29 | V72: 2 | W72: 17 | X72: 0 | Y72: 0 | Z72: 0 | AA72: 0 | AB72: 20 | AC72: 1 | AD72: 0
A73: LG62 | B73: C | C73: 29 | E73: 4 | F73: 0 | G73: 0 | H73: 3 | I73: 0 | J73: 3 | K73: 0 | L73: 5 | M73: 13 | N73: 13 | O73: 13 | P73: 41 | Q73: 0 | R73: 0 | S73: 0 | T73: 17 | U73: 36 | V73: 0 | W73: 15 | X73: 0 | Y73: 0 | Z73: 0 | AA73: 0 | AB73: 14 | AC73: 0 | AD73: 1
A74: LG63 | B74: C | C74: 8 | E74: 1 | F74: 0 | G74: 0 | H74: 0 | I74: 0 | J74: 0 | K74: 0 | L74: 0 | M74: 0 | N74: 0 | O74: 5 | P74: 6 | Q74: 0 | R74: 0 | S74: 0 | T74: 3 | U74: 8 | V74: 0 | W74: 1 | X74: 0 | Y74: 0 | Z74: 0 | AA74: 0 | AB74: 3 | AC74: 0 | AD74: 1
A75: LG65 | B75: C | C75: 28 | E75: 4 | F75: 0 | G75: 0 | H75: 2 | I75: 0 | J75: 1 | K75: 0 | L75: 1 | M75: 2 | N75: 3 | O75: 15 | P75: 58 | Q75: 0 | R75: 0 | S75: 0 | T75: 15 | U75: 21 | V75: 1 | W75: 22 | X75: 0 | Y75: 0 | Z75: 0 | AA75: 0 | AB75: 8 | AC75: 0 | AD75: 0
A76: LG66 | B76: C | C76: 6 | E76: 1 | F76: 0 | G76: 0 | H76: 0 | I76: 0 | J76: 1 | K76: 0 | L76: 0 | M76: 0 | N76: 2 | O76: 5 | P76: 1 | Q76: 0 | R76: 0 | S76: 0 | T76: 1 | U76: 2 | V76: 0 | W76: 0 | X76: 0 | Y76: 0 | Z76: 0 | AA76: 0 | AB76: 0 | AC76: 0 | AD76: 1
A77: LG70 | B77: C | C77: 6 | E77: 0 | F77: 0 | G77: 0 | H77: 2 | I77: 0 | J77: 1 | K77: 0 | L77: 0 | M77: 0 | N77: 0 | O77: 6 | P77: 4 | Q77: 0 | R77: 0 | S77: 0 | T77: 2 | U77: 0 | V77: 0 | W77: 1 | X77: 0 | Y77: 0 | Z77: 0 | AA77: 0 | AB77: 0 | AC77: 0 | AD77: 1
A78: LG72 | B78: C | C78: 10 | E78: 2 | F78: 0 | G78: 0 | H78: 0 | I78: 0 | J78: 0 | K78: 0 | L78: 1 | M78: 0 | N78: 1 | O78: 0 | P78: 3 | Q78: 0 | R78: 0 | S78: 0 | T78: 1 | U78: 5 | V78: 0 | W78: 2 | X78: 0 | Y78: 0 | Z78: 0 | AA78: 0 | AB78: 0 | AC78: 0 | AD78: 1
A79: LG73 | B79: C | C79: 29 | D79: 28 | E79: 7 | F79: 0 | G79: 0 | H79: 0 | I79: 0 | J79: 2 | K79: 0 | L79: 0 | M79: 5 | N79: 7 | O79: 18 | P79: 54 | Q79: 0 | R79: 0 | S79: 0 | T79: 16 | U79: 47 | V79: 2 | W79: 25 | X79: 0 | Y79: 0 | Z79: 0 | AA79: 1 | AB79: 8 | AC79: 0 | AD79: 0
A80: LG74 | B80: C | C80: 12 | E80: 0 | F80: 0 | G80: 0 | H80: 2 | I80: 0 | J80: 0 | K80: 0 | L80: 0 | M80: 0 | N80: 1 | O80: 3 | P80: 5 | Q80: 0 | R80: 0 | S80: 0 | T80: 3 | U80: 7 | V80: 0 | W80: 2 | X80: 0 | Y80: 0 | Z80: 0 | AA80: 0 | AB80: 2 | AC80: 0 | AD80: 1
A81: LG76 | B81: C | C81: 13 | E81: 1 | F81: 0 | G81: 0 | H81: 0 | I81: 0 | J81: 2 | K81: 0 | L81: 0 | M81: 0 | N81: 3 | O81: 8 | P81: 3 | Q81: 0 | R81: 0 | S81: 0 | T81: 4 | U81: 18 | V81: 0 | W81: 9 | X81: 0 | Y81: 0 | Z81: 0 | AA81: 0 | AB81: 10 | AC81: 0 | AD81: 1
A82: LG77 | B82: C | C82: 10 | E82: 0 | F82: 0 | G82: 0 | H82: 1 | I82: 0 | J82: 0 | K82: 0 | L82: 0 | M82: 0 | N82: 0 | O82: 8 | P82: 11 | Q82: 0 | R82: 0 | S82: 0 | T82: 2 | U82: 6 | V82: 0 | W82: 6 | X82: 0 | Y82: 0 | Z82: 0 | AA82: 0 | AB82: 0 | AC82: 0 | AD82: 1
A83: LG78 | B83: C | C83: 29 | E83: 0 | F83: 0 | G83: 0 | H83: 0 | I83: 0 | J83: 0 | K83: 0 | L83: 0 | M83: 0 | N83: 0 | O83: 4 | P83: 4 | Q83: 0 | R83: 0 | S83: 0 | T83: 0 | U83: 3 | V83: 0 | W83: 1 | X83: 0 | Y83: 0 | Z83: 0 | AA83: 0 | AB83: 0 | AC83: 0 | AD83: 1
A84: LG79 | B84: C | C84: 14 | E84: 1 | F84: 0 | G84: 0 | H84: 1 | I84: 0 | J84: 0 | K84: 0 | L84: 0 | M84: 0 | N84: 0 | O84: 3 | P84: 8 | Q84: 0 | R84: 0 | S84: 0 | T84: 2 | U84: 2 | V84: 0 | W84: 0 | X84: 0 | Y84: 0 | Z84: 0 | AA84: 0 | AB84: 0 | AC84: 0 | AD84: 1
A85: LG8 | B85: C | C85: 20 | E85: 4 | F85: 0 | G85: 0 | H85: 2 | I85: 1 | J85: 0 | K85: 0 | L85: 4 | M85: 10 | N85: 4 | O85: 23 | P85: 55 | Q85: 0 | R85: 0 | S85: 0 | T85: 17 | U85: 25 | V85: 0 | W85: 14 | X85: 0 | Y85: 0 | Z85: 0 | AA85: 0 | AB85: 1 | AC85: 0 | AD85: 1
A86: LG80 | B86: C | C86: 25 | E86: 0 | F86: 0 | G86: 0 | H86: 0 | I86: 0 | J86: 0 | K86: 0 | L86: 0 | M86: 0 | N86: 0 | O86: 1 | P86: 3 | Q86: 0 | R86: 0 | S86: 0 | T86: 0 | U86: 5 | V86: 0 | W86: 1 | X86: 0 | Y86: 0 | Z86: 0 | AA86: 0 | AB86: 0 | AC86: 0 | AD86: 1
A87: LG81 | B87: C | C87: 15 | E87: 2 | F87: 0 | G87: 0 | H87: 0 | I87: 1 | J87: 0 | K87: 0 | L87: 0 | M87: 1 | N87: 0 | O87: 12 | P87: 18 | Q87: 0 | R87: 0 | S87: 0 | T87: 3 | U87: 15 | V87: 1 | W87: 10 | X87: 0 | Y87: 0 | Z87: 0 | AA87: 0 | AB87: 1 | AC87: 0 | AD87: 1
A88: LG83 | B88: C | C88: 28 | D88: 27 | E88: 2 | F88: 0 | G88: 0 | H88: 3 | I88: 0 | J88: 1 | K88: 0 | L88: 0 | M88: 3 | N88: 5 | O88: 22 | P88: 56 | Q88: 0 | R88: 0 | S88: 0 | T88: 5 | U88: 30 | V88: 3 | W88: 33 | X88: 1 | Y88: 0 | Z88: 0 | AA88: 0 | AB88: 12 | AC88: 0 | AD88: 0
A89: LG85 | B89: C | C89: 16 | E89: 0 | F89: 0 | G89: 0 | H89: 0 | I89: 0 | J89: 1 | K89: 0 | L89: 0 | M89: 1 | N89: 3 | O89: 9 | P89: 21 | Q89: 0 | R89: 0 | S89: 0 | T89: 4 | U89: 19 | V89: 0 | W89: 13 | X89: 0 | Y89: 0 | Z89: 0 | AA89: 0 | AB89: 6 | AC89: 0 | AD89: 1
A90: LG87 | B90: C | C90: 28 | D90: 21 | E90: 1 | F90: 0 | G90: 0 | H90: 0 | I90: 0 | J90: 2 | K90: 0 | L90: 0 | M90: 4 | N90: 5 | O90: 23 | P90: 48 | Q90: 0 | R90: 0 | S90: 0 | T90: 3 | U90: 28 | V90: 2 | W90: 25 | X90: 0 | Y90: 0 | Z90: 0 | AA90: 0 | AB90: 19 | AC90: 4 | AD90: 1
A91: LG88 | B91: C | C91: 28 | D91: 23 | E91: 2 | F91: 0 | G91: 0 | H91: 2 | I91: 0 | J91: 2 | K91: 0 | L91: 0 | M91: 7 | N91: 11 | O91: 21 | P91: 39 | Q91: 0 | R91: 0 | S91: 0 | T91: 15 | U91: 36 | V91: 4 | W91: 32 | X91: 0 | Y91: 0 | Z91: 0 | AA91: 0 | AB91: 11 | AC91: 3 | AD91: 0
A92: LG90 | B92: C | C92: 16 | E92: 1 | F92: 0 | G92: 0 | H92: 2 | I92: 0 | J92: 2 | K92: 0 | L92: 0 | M92: 1 | N92: 2 | O92: 4 | P92: 20 | Q92: 0 | R92: 0 | S92: 0 | T92: 6 | U92: 19 | V92: 0 | W92: 6 | X92: 0 | Y92: 0 | Z92: 0 | AA92: 0 | AB92: 3 | AC92: 0 | AD92: 1
A93: LG98 | B93: C | C93: 7 | E93: 0 | F93: 0 | G93: 0 | H93: 0 | I93: 0 | J93: 0 | K93: 0 | L93: 0 | M93: 0 | N93: 0 | O93: 1 | P93: 1 | Q93: 0 | R93: 0 | S93: 0 | T93: 0 | U93: 4 | V93: 0 | W93: 0 | X93: 0 | Y93: 0 | Z93: 0 | AA93: 0 | AB93: 0 | AC93: 0 | AD93: 1
A94: VB10 | B94: C | C94: 28 | D94: 20 | E94: 2 | F94: 0 | G94: 0 | H94: 2 | I94: 0 | J94: 2 | K94: 0 | L94: 0 | M94: 0 | N94: 1 | O94: 19 | P94: 37 | Q94: 1 | R94: 0 | S94: 0 | T94: 9 | U94: 44 | V94: 2 | W94: 15 | X94: 0 | Y94: 0 | Z94: 0 | AA94: 4 | AB94: 14 | AC94: 0 | AD94: 0
A95: VB16 | B95: C | C95: 5 | E95: 0 | F95: 0 | G95: 0 | H95: 0 | I95: 0 | J95: 1 | K95: 0 | L95: 0 | M95: 0 | N95: 0 | O95: 0 | P95: 5 | Q95: 0 | R95: 0 | S95: 0 | T95: 0 | U95: 2 | V95: 1 | W95: 1 | X95: 0 | Y95: 0 | Z95: 0 | AA95: 0 | AB95: 0 | AC95: 0 | AD95: 1
A96: VB18 | B96: C | C96: 5 | E96: 0 | F96: 0 | G96: 0 | H96: 0 | I96: 0 | J96: 0 | K96: 0 | L96: 0 | M96: 0 | N96: 0 | O96: 0 | P96: 0 | Q96: 0 | R96: 0 | S96: 0 | T96: 0 | U96: 1 | V96: 0 | W96: 0 | X96: 0 | Y96: 0 | Z96: 0 | AA96: 0 | AB96: 0 | AC96: 0 | AD96: 1
A97: VB2 | B97: C | C97: 22 | D97: 20 | E97: 4 | F97: 0 | G97: 0 | H97: 0 | I97: 0 | J97: 1 | K97: 0 | L97: 1 | M97: 7 | N97: 3 | O97: 12 | P97: 46 | Q97: 0 | R97: 0 | S97: 0 | T97: 11 | U97: 28 | V97: 2 | W97: 22 | X97: 0 | Y97: 0 | Z97: 0 | AA97: 0 | AB97: 8 | AC97: 1 | AD97: 0
A98: VB23 | B98: C | C98: 28 | D98: 26 | E98: 1 | F98: 0 | G98: 0 | H98: 1 | I98: 0 | J98: 2 | K98: 1 | L98: 1 | M98: 22 | N98: 4 | O98: 22 | P98: 44 | Q98: 0 | R98: 0 | S98: 0 | T98: 11 | U98: 25 | V98: 2 | W98: 16 | X98: 1 | Y98: 0 | Z98: 0 | AA98: 3 | AB98: 8 | AC98: 0 | AD98: 0
A99: VB24 | B99: C | C99: 7 | E99: 0 | F99: 0 | G99: 0 | H99: 1 | I99: 0 | J99: 0 | K99: 0 | L99: 0 | M99: 0 | N99: 0 | O99: 3 | P99: 6 | Q99: 0 | R99: 0 | S99: 0 | T99: 1 | U99: 0 | V99: 0 | W99: 2 | X99: 0 | Y99: 0 | Z99: 0 | AA99: 0 | AB99: 0 | AC99: 0 | AD99: 1
A100: VB27 | B100: C | C100: 11 | E100: 0 | F100: 0 | G100: 0 | H100: 0 | I100: 0 | J100: 1 | K100: 0 | L100: 0 | M100: 0 | N100: 0 | O100: 3 | P100: 13 | Q100: 0 | R100: 0 | S100: 0 | T100: 1 | U100: 6 | V100: 0 | W100: 2 | X100: 0 | Y100: 0 | Z100: 0 | AA100: 0 | AB100: 0 | AC100: 0 | AD100: 1
A101: VB29 | B101: C | C101: 12 | E101: 0 | F101: 0 | G101: 0 | H101: 1 | I101: 0 | J101: 0 | K101: 0 | L101: 0 | M101: 0 | N101: 2 | O101: 6 | P101: 15 | Q101: 0 | R101: 0 | S101: 0 | T101: 1 | U101: 9 | V101: 0 | W101: 6 | X101: 0 | Y101: 0 | Z101: 0 | AA101: 0 | AB101: 0 | AC101: 0 | AD101: 1
A102: VB30 | B102: C | C102: 7 | E102: 0 | F102: 0 | G102: 0 | H102: 0 | I102: 0 | J102: 0 | K102: 0 | L102: 0 | M102: 0 | N102: 0 | O102: 2 | P102: 0 | Q102: 0 | R102: 0 | S102: 0 | T102: 0 | U102: 0 | V102: 0 | W102: 0 | X102: 0 | Y102: 0 | Z102: 0 | AA102: 0 | AB102: 0 | AC102: 0 | AD102: 1
A103: VB35 | B103: C | C103: 7 | E103: 0 | F103: 0 | G103: 0 | H103: 1 | I103: 0 | J103: 0 | K103: 0 | L103: 0 | M103: 0 | N103: 0 | O103: 2 | P103: 1 | Q103: 0 | R103: 0 | S103: 0 | T103: 0 | U103: 2 | V103: 0 | W103: 3 | X103: 0 | Y103: 0 | Z103: 0 | AA103: 0 | AB103: 0 | AC103: 0 | AD103: 1
A104: VB36 | B104: C | C104: 11 | E104: 0 | F104: 0 | G104: 0 | H104: 0 | I104: 0 | J104: 0 | K104: 0 | L104: 0 | M104: 1 | N104: 7 | O104: 6 | P104: 9 | Q104: 0 | R104: 0 | S104: 0 | T104: 1 | U104: 7 | V104: 0 | W104: 8 | X104: 0 | Y104: 0 | Z104: 0 | AA104: 0 | AB104: 1 | AC104: 0 | AD104: 1
A105: VB4 | B105: C | C105: 7 | E105: 0 | F105: 0 | G105: 0 | H105: 0 | I105: 0 | J105: 0 | K105: 0 | L105: 0 | M105: 0 | N105: 0 | O105: 5 | P105: 5 | Q105: 0 | R105: 0 | S105: 0 | T105: 1 | U105: 3 | V105: 0 | W105: 1 | X105: 0 | Y105: 0 | Z105: 0 | AA105: 0 | AB105: 0 | AC105: 0 | AD105: 1
A106: VB40 | B106: C | C106: 6 | E106: 1 | F106: 0 | G106: 0 | H106: 0 | I106: 0 | J106: 0 | K106: 0 | L106: 0 | M106: 0 | N106: 0 | O106: 0 | P106: 0 | Q106: 0 | R106: 0 | S106: 0 | T106: 0 | U106: 0 | V106: 0 | W106: 1 | X106: 0 | Y106: 0 | Z106: 0 | AA106: 0 | AB106: 0 | AC106: 0 | AD106: 1
A107: VB42 | B107: C | C107: 5 | E107: 0 | F107: 0 | G107: 0 | H107: 0 | I107: 0 | J107: 0 | K107: 0 | L107: 0 | M107: 0 | N107: 0 | O107: 2 | P107: 0 | Q107: 0 | R107: 0 | S107: 0 | T107: 0 | U107: 5 | V107: 0 | W107: 0 | X107: 0 | Y107: 0 | Z107: 0 | AA107: 0 | AB107: 0 | AC107: 0 | AD107: 1
A108: VB45 | B108: C | C108: 6 | E108: 0 | F108: 0 | G108: 0 | H108: 0 | I108: 0 | J108: 0 | K108: 0 | L108: 0 | M108: 0 | N108: 0 | O108: 0 | P108: 1 | Q108: 0 | R108: 0 | S108: 0 | T108: 0 | U108: 2 | V108: 0 | W108: 0 | X108: 0 | Y108: 0 | Z108: 0 | AA108: 0 | AB108: 0 | AC108: 0 | AD108: 1
A109: VB46 | B109: C | C109: 7 | E109: 0 | F109: 0 | G109: 0 | H109: 0 | I109: 0 | J109: 0 | K109: 0 | L109: 0 | M109: 0 | N109: 1 | O109: 1 | P109: 2 | Q109: 0 | R109: 0 | S109: 0 | T109: 1 | U109: 2 | V109: 0 | W109: 0 | X109: 0 | Y109: 0 | Z109: 0 | AA109: 0 | AB109: 0 | AC109: 0 | AD109: 1
A110: VB47 | B110: C | C110: 6 | E110: 0 | F110: 0 | G110: 0 | H110: 0 | I110: 0 | J110: 1 | K110: 0 | L110: 0 | M110: 0 | N110: 0 | O110: 2 | P110: 1 | Q110: 0 | R110: 0 | S110: 0 | T110: 0 | U110: 3 | V110: 0 | W110: 2 | X110: 0 | Y110: 0 | Z110: 0 | AA110: 0 | AB110: 0 | AC110: 0 | AD110: 1
A111: VB48 | B111: C | C111: 6 | E111: 0 | F111: 0 | G111: 0 | H111: 0 | I111: 0 | J111: 0 | K111: 0 | L111: 0 | M111: 0 | N111: 1 | O111: 1 | P111: 3 | Q111: 0 | R111: 0 | S111: 0 | T111: 0 | U111: 3 | V111: 0 | W111: 2 | X111: 0 | Y111: 0 | Z111: 0 | AA111: 0 | AB111: 0 | AC111: 0 | AD111: 1
A112: VB49 | B112: C | C112: 4 | E112: 0 | F112: 0 | G112: 0 | H112: 0 | I112: 0 | J112: 0 | K112: 0 | L112: 0 | M112: 0 | N112: 0 | O112: 1 | P112: 2 | Q112: 0 | R112: 0 | S112: 0 | T112: 0 | U112: 1 | V112: 0 | W112: 0 | X112: 0 | Y112: 0 | Z112: 0 | AA112: 0 | AB112: 0 | AC112: 0 | AD112: 1
A113: VB5 | B113: C | C113: 28 | E113: 2 | F113: 0 | G113: 0 | H113: 0 | I113: 0 | J113: 2 | K113: 0 | L113: 2 | M113: 5 | N113: 9 | O113: 10 | P113: 42 | Q113: 0 | R113: 0 | S113: 0 | T113: 9 | U113: 17 | V113: 1 | W113: 8 | X113: 0 | Y113: 0 | Z113: 0 | AA113: 0 | AB113: 1 | AC113: 0 | AD113: 1
A114: VB50 | B114: C | C114: 5 | E114: 0 | F114: 0 | G114: 0 | H114: 0 | I114: 0 | J114: 0 | K114: 0 | L114: 0 | M114: 0 | N114: 0 | O114: 0 | P114: 0 | Q114: 0 | R114: 0 | S114: 0 | T114: 0 | U114: 1 | V114: 0 | W114: 1 | X114: 0 | Y114: 0 | Z114: 0 | AA114: 0 | AB114: 0 | AC114: 0 | AD114: 1
A115: VB52 | B115: C | C115: 5 | E115: 0 | F115: 0 | G115: 0 | H115: 0 | I115: 0 | J115: 0 | K115: 0 | L115: 0 | M115: 0 | N115: 0 | O115: 0 | P115: 1 | Q115: 0 | R115: 0 | S115: 0 | T115: 1 | U115: 1 | V115: 0 | W115: 0 | X115: 0 | Y115: 0 | Z115: 0 | AA115: 0 | AB115: 0 | AC115: 0 | AD115: 1
A116: VB54 | B116: C | C116: 6 | E116: 0 | F116: 0 | G116: 0 | H116: 0 | I116: 0 | J116: 0 | K116: 0 | L116: 0 | M116: 0 | N116: 0 | O116: 2 | P116: 1 | Q116: 0 | R116: 0 | S116: 0 | T116: 0 | U116: 1 | V116: 0 | W116: 2 | X116: 0 | Y116: 0 | Z116: 0 | AA116: 0 | AB116: 0 | AC116: 0 | AD116: 1
A117: VB56 | B117: C | C117: 5 | E117: 0 | F117: 0 | G117: 0 | H117: 0 | I117: 0 | J117: 1 | K117: 0 | L117: 0 | M117: 0 | N117: 0 | O117: 2 | P117: 1 | Q117: 0 | R117: 0 | S117: 0 | T117: 0 | U117: 2 | V117: 0 | W117: 1 | X117: 0 | Y117: 0 | Z117: 0 | AA117: 0 | AB117: 0 | AC117: 0 | AD117: 1
A118: VB57 | B118: C | C118: 6 | E118: 0 | F118: 0 | G118: 0 | H118: 0 | I118: 0 | J118: 0 | K118: 0 | L118: 0 | M118: 0 | N118: 0 | O118: 3 | P118: 2 | Q118: 0 | R118: 0 | S118: 0 | T118: 1 | U118: 1 | V118: 0 | W118: 0 | X118: 0 | Y118: 0 | Z118: 0 | AA118: 0 | AB118: 0 | AC118: 0 | AD118: 1
A119: VB59 | B119: C | C119: 5 | E119: 0 | F119: 0 | G119: 0 | H119: 0 | I119: 0 | J119: 1 | K119: 0 | L119: 0 | M119: 0 | N119: 0 | O119: 3 | P119: 0 | Q119: 0 | R119: 0 | S119: 0 | T119: 1 | U119: 2 | V119: 0 | W119: 0 | X119: 0 | Y119: 0 | Z119: 0 | AA119: 0 | AB119: 0 | AC119: 0 | AD119: 1
A120: VB60 | B120: C | C120: 6 | E120: 0 | F120: 0 | G120: 0 | H120: 1 | I120: 0 | J120: 0 | K120: 0 | L120: 0 | M120: 0 | N120: 2 | O120: 2 | P120: 1 | Q120: 0 | R120: 0 | S120: 0 | T120: 1 | U120: 4 | V120: 0 | W120: 0 | X120: 0 | Y120: 0 | Z120: 0 | AA120: 0 | AB120: 0 | AC120: 0 | AD120: 1
A121: VB61 | B121: C | C121: 4 | E121: 0 | F121: 0 | G121: 0 | H121: 0 | I121: 0 | J121: 1 | K121: 0 | L121: 0 | M121: 0 | N121: 0 | O121: 1 | P121: 1 | Q121: 0 | R121: 0 | S121: 0 | T121: 1 | U121: 2 | V121: 0 | W121: 4 | X121: 0 | Y121: 0 | Z121: 0 | AA121: 0 | AB121: 0 | AC121: 0 | AD121: 1
A122: VB63 | B122: C | C122: 3 | E122: 0 | F122: 0 | G122: 0 | H122: 0 | I122: 0 | J122: 0 | K122: 0 | L122: 0 | M122: 0 | N122: 0 | O122: 0 | P122: 1 | Q122: 0 | R122: 0 | S122: 0 | T122: 0 | U122: 1 | V122: 0 | W122: 1 | X122: 0 | Y122: 0 | Z122: 0 | AA122: 0 | AB122: 0 | AC122: 0 | AD122: 1
A123: VB64 | B123: C | C123: 5 | E123: 0 | F123: 0 | G123: 0 | H123: 0 | I123: 0 | J123: 0 | K123: 0 | L123: 0 | M123: 0 | N123: 0 | O123: 1 | P123: 3 | Q123: 0 | R123: 0 | S123: 0 | T123: 0 | U123: 0 | V123: 0 | W123: 1 | X123: 0 | Y123: 0 | Z123: 0 | AA123: 0 | AB123: 0 | AC123: 0 | AD123: 0
A124: VB65 | B124: C | C124: 27 | E124: 1 | F124: 0 | G124: 0 | H124: 4 | I124: 1 | J124: 1 | K124: 0 | L124: 0 | M124: 3 | N124: 12 | O124: 14 | P124: 33 | Q124: 0 | R124: 0 | S124: 0 | T124: 8 | U124: 14 | V124: 0 | W124: 19 | X124: 0 | Y124: 0 | Z124: 0 | AA124: 0 | AB124: 13 | AC124: 0 | AD124: 1
A125: VB67 | B125: C | C125: 5 | E125: 0 | F125: 0 | G125: 0 | H125: 0 | I125: 0 | J125: 0 | K125: 0 | L125: 0 | M125: 0 | N125: 0 | O125: 0 | P125: 0 | Q125: 0 | R125: 0 | S125: 0 | T125: 0 | U125: 2 | V125: 0 | W125: 0 | X125: 0 | Y125: 0 | Z125: 0 | AA125: 0 | AB125: 0 | AC125: 0 | AD125: 0
A126: VB70 | B126: C | C126: 5 | E126: 1 | F126: 0 | G126: 0 | H126: 0 | I126: 0 | J126: 0 | K126: 0 | L126: 0 | M126: 0 | N126: 0 | O126: 1 | P126: 2 | Q126: 0 | R126: 0 | S126: 0 | T126: 0 | U126: 2 | V126: 0 | W126: 0 | X126: 0 | Y126: 0 | Z126: 0 | AA126: 0 | AB126: 0 | AC126: 0 | AD126: 1
A127: VB71 | B127: C | C127: 5 | E127: 1 | F127: 0 | G127: 0 | H127: 0 | I127: 0 | J127: 0 | K127: 0 | L127: 0 | M127: 0 | N127: 1 | O127: 0 | P127: 0 | Q127: 0 | R127: 0 | S127: 0 | T127: 0 | U127: 0 | V127: 0 | W127: 0 | X127: 0 | Y127: 0 | Z127: 0 | AA127: 0 | AB127: 0 | AC127: 0 | AD127: 1
A128: VB72 | B128: C | C128: 3 | E128: 0 | F128: 0 | G128: 0 | H128: 0 | I128: 0 | J128: 0 | K128: 0 | L128: 0 | M128: 0 | N128: 0 | O128: 1 | P128: 0 | Q128: 0 | R128: 0 | S128: 0 | T128: 0 | U128: 0 | V128: 0 | W128: 0 | X128: 0 | Y128: 0 | Z128: 0 | AA128: 0 | AB128: 0 | AC128: 0 | AD128: 1
A129: VB79 | B129: C | C129: 5 | E129: 0 | F129: 0 | G129: 0 | H129: 0 | I129: 0 | J129: 0 | K129: 0 | L129: 0 | M129: 0 | N129: 0 | O129: 0 | P129: 3 | Q129: 0 | R129: 0 | S129: 0 | T129: 0 | U129: 5 | V129: 0 | W129: 0 | X129: 0 | Y129: 0 | Z129: 0 | AA129: 0 | AB129: 0 | AC129: 0 | AD129: 0
A130: VB8 | B130: C | C130: 7 | E130: 0 | F130: 0 | G130: 0 | H130: 0 | I130: 0 | J130: 0 | K130: 0 | L130: 0 | M130: 0 | N130: 0 | O130: 2 | P130: 0 | Q130: 0 | R130: 0 | S130: 0 | T130: 0 | U130: 0 | V130: 0 | W130: 1 | X130: 0 | Y130: 0 | Z130: 0 | AA130: 0 | AB130: 0 | AC130: 0 | AD130: 1
A131: VB81 | B131: C | C131: 6 | E131: 0 | F131: 0 | G131: 0 | H131: 0 | I131: 0 | J131: 0 | K131: 0 | L131: 0 | M131: 0 | N131: 1 | O131: 1 | P131: 2 | Q131: 0 | R131: 0 | S131: 0 | T131: 0 | U131: 3 | V131: 0 | W131: 1 | X131: 0 | Y131: 0 | Z131: 0 | AA131: 0 | AB131: 0 | AC131: 0 | AD131: 1
A132: VB83 | B132: C | C132: 4 | E132: 0 | F132: 0 | G132: 0 | H132: 0 | I132: 0 | J132: 0 | K132: 0 | L132: 0 | M132: 0 | N132: 0 | O132: 0 | P132: 3 | Q132: 0 | R132: 0 | S132: 0 | T132: 1 | U132: 3 | V132: 0 | W132: 0 | X132: 0 | Y132: 0 | Z132: 0 | AA132: 0 | AB132: 0 | AC132: 0 | AD132: 1
A133: VB86 | B133: C | C133: 5 | E133: 0 | F133: 0 | G133: 0 | H133: 0 | I133: 0 | J133: 0 | K133: 0 | L133: 0 | M133: 0 | N133: 1 | O133: 1 | P133: 2 | Q133: 0 | R133: 0 | S133: 0 | T133: 0 | U133: 0 | V133: 0 | W133: 0 | X133: 0 | Y133: 0 | Z133: 0 | AA133: 0 | AB133: 0 | AC133: 0 | AD133: 1
A134: VB87 | B134: C | C134: 7 | E134: 0 | F134: 0 | G134: 0 | H134: 0 | I134: 0 | J134: 0 | K134: 0 | L134: 0 | M134: 0 | N134: 0 | O134: 1 | P134: 8 | Q134: 0 | R134: 0 | S134: 0 | T134: 4 | U134: 5 | V134: 0 | W134: 2 | X134: 0 | Y134: 0 | Z134: 0 | AA134: 0 | AB134: 0 | AC134: 0 | AD134: 1
A135: VB88 | B135: C | C135: 6 | E135: 0 | F135: 0 | G135: 0 | H135: 0 | I135: 0 | J135: 0 | K135: 0 | L135: 0 | M135: 0 | N135: 0 | O135: 0 | P135: 1 | Q135: 0 | R135: 0 | S135: 0 | T135: 0 | U135: 1 | V135: 0 | W135: 0 | X135: 0 | Y135: 0 | Z135: 0 | AA135: 0 | AB135: 0 | AC135: 0 | AD135: 1
A136: VB89 | B136: C | C136: 27 | E136: 2 | F136: 0 | G136: 0 | H136: 1 | I136: 0 | J136: 0 | K136: 0 | L136: 2 | M136: 11 | N136: 13 | O136: 10 | P136: 69 | Q136: 0 | R136: 0 | S136: 0 | T136: 11 | U136: 20 | V136: 0 | W136: 18 | X136: 0 | Y136: 0 | Z136: 0 | AA136: 0 | AB136: 1 | AC136: 0 | AD136: 0
A137: VB93 | B137: C | C137: 5 | E137: 0 | F137: 0 | G137: 0 | H137: 0 | I137: 0 | J137: 0 | K137: 0 | L137: 0 | M137: 0 | N137: 0 | O137: 0 | P137: 0 | Q137: 0 | R137: 0 | S137: 0 | T137: 0 | U137: 1 | V137: 0 | W137: 0 | X137: 0 | Y137: 0 | Z137: 0 | AA137: 0 | AB137: 0 | AC137: 0 | AD137: 1
A138: VB94 | B138: C | C138: 22 | D138: 20 | E138: 3 | F138: 0 | G138: 0 | H138: 1 | I138: 0 | J138: 0 | K138: 0 | L138: 1 | M138: 2 | N138: 0 | O138: 8 | P138: 27 | Q138: 0 | R138: 0 | S138: 0 | T138: 4 | U138: 37 | V138: 1 | W138: 13 | X138: 1 | Y138: 0 | Z138: 0 | AA138: 3 | AB138: 0 | AC138: 1 | AD138: 1
A139: VB95 | B139: C | C139: 6 | E139: 0 | F139: 0 | G139: 0 | H139: 0 | I139: 0 | J139: 0 | K139: 0 | L139: 0 | M139: 0 | N139: 0 | O139: 0 | P139: 1 | Q139: 0 | R139: 0 | S139: 0 | T139: 0 | U139: 0 | V139: 0 | W139: 0 | X139: 0 | Y139: 0 | Z139: 0 | AA139: 0 | AB139: 0 | AC139: 0 | AD139: 1
A140: VB96 | B140: C | C140: 6 | E140: 0 | F140: 0 | G140: 0 | H140: 0 | I140: 0 | J140: 0 | K140: 0 | L140: 0 | M140: 0 | N140: 0 | O140: 2 | P140: 0 | Q140: 0 | R140: 0 | S140: 0 | T140: 0 | U140: 1 | V140: 0 | W140: 0 | X140: 0 | Y140: 0 | Z140: 0 | AA140: 0 | AB140: 0 | AC140: 0 | AD140: 1
A141: W68 | B141: C | C141: 24 | D141: 24 | E141: 1 | F141: 0 | G141: 0 | H141: 4 | I141: 0 | J141: 1 | K141: 0 | L141: 1 | M141: 4 | N141: 7 | O141: 26 | P141: 25 | Q141: 0 | R141: 0 | S141: 0 | T141: 2 | U141: 33 | V141: 1 | W141: 17 | X141: 0 | Y141: 0 | Z141: 0 | AA141: 1 | AB141: 13 | AC141: 0 | AD141: 1
A142: VB3 | B142: C | C142: 28 | E142: 9 | F142: 0 | G142: 0 | H142: 3 | I142: 0 | J142: 2 | K142: 0 | L142: 6 | M142: 4 | N142: 2 | O142: 19 | P142: 103 | Q142: 0 | R142: 0 | S142: 0 | T142: 25 | U142: 23 | V142: 0 | W142: 23 | X142: 0 | Y142: 0 | Z142: 0 | AA142: 0 | AB142: 2 | AC142: 0 | AD142: 0
A143: DR10 | B143: M | C143: 6 | E143: 0 | F143: 0 | G143: 0 | H143: 0 | I143: 0 | J143: 0 | K143: 0 | L143: 0 | M143: 0 | N143: 0 | O143: 3 | P143: 2 | Q143: 0 | R143: 0 | S143: 0 | T143: 0 | U143: 1 | V143: 0 | W143: 0 | X143: 0 | Y143: 0 | Z143: 0 | AA143: 0 | AB143: 0 | AC143: 0 | AD143: 1
A144: DR17 | B144: M | C144: 5 | E144: 0 | F144: 0 | G144: 0 | H144: 0 | I144: 0 | J144: 0 | K144: 0 | L144: 0 | M144: 0 | N144: 0 | O144: 1 | P144: 2 | Q144: 0 | R144: 0 | S144: 0 | T144: 1 | U144: 5 | V144: 1 | W144: 0 | X144: 0 | Y144: 0 | Z144: 0 | AA144: 0 | AB144: 0 | AC144: 0 | AD144: 1
A145: DR23 | B145: M | C145: 5 | E145: 0 | F145: 0 | G145: 0 | H145: 0 | I145: 0 | J145: 0 | K145: 0 | L145: 0 | M145: 0 | N145: 0 | O145: 1 | P145: 1 | Q145: 0 | R145: 0 | S145: 0 | T145: 1 | U145: 3 | V145: 0 | W145: 0 | X145: 0 | Y145: 0 | Z145: 0 | AA145: 0 | AB145: 0 | AC145: 0 | AD145: 1
A146: DR41 | B146: M | C146: 3 | E146: 0 | F146: 0 | G146: 0 | H146: 0 | I146: 0 | J146: 0 | K146: 0 | L146: 0 | M146: 0 | N146: 0 | O146: 1 | P146: 1 | Q146: 0 | R146: 0 | S146: 0 | T146: 0 | U146: 1 | V146: 0 | W146: 0 | X146: 0 | Y146: 0 | Z146: 0 | AA146: 0 | AB146: 0 | AC146: 0 | AD146: 0
A147: DR43 | B147: M | C147: 5 | E147: 0 | F147: 0 | G147: 0 | H147: 0 | I147: 0 | J147: 0 | K147: 0 | L147: 0 | M147: 0 | N147: 0 | O147: 1 | P147: 1 | Q147: 0 | R147: 0 | S147: 0 | T147: 0 | U147: 0 | V147: 0 | W147: 0 | X147: 0 | Y147: 0 | Z147: 0 | AA147: 0 | AB147: 0 | AC147: 0 | AD147: 1
A148: DR52 | B148: M | C148: 5 | E148: 0 | F148: 0 | G148: 0 | H148: 0 | I148: 0 | J148: 0 | K148: 0 | L148: 0 | M148: 0 | N148: 0 | O148: 3 | P148: 0 | Q148: 0 | R148: 0 | S148: 0 | T148: 0 | U148: 0 | V148: 0 | W148: 0 | X148: 0 | Y148: 0 | Z148: 0 | AA148: 0 | AB148: 0 | AC148: 0 | AD148: 1
A149: DR57 | B149: M | C149: 2 | E149: 0 | F149: 0 | G149: 0 | H149: 0 | I149: 0 | J149: 0 | K149: 0 | L149: 0 | M149: 0 | N149: 0 | O149: 2 | P149: 1 | Q149: 0 | R149: 0 | S149: 0 | T149: 0 | U149: 0 | V149: 0 | W149: 0 | X149: 0 | Y149: 0 | Z149: 0 | AA149: 0 | AB149: 0 | AC149: 0 | AD149: 1
A150: DR59 | B150: M | C150: 5 | E150: 0 | F150: 0 | G150: 0 | H150: 0 | I150: 0 | J150: 0 | K150: 0 | L150: 0 | M150: 0 | N150: 0 | O150: 1 | P150: 4 | Q150: 0 | R150: 0 | S150: 0 | T150: 0 | U150: 0 | V150: 0 | W150: 0 | X150: 0 | Y150: 0 | Z150: 0 | AA150: 0 | AB150: 0 | AC150: 0 | AD150: 1
A151: DR73 | B151: M | C151: 4 | E151: 0 | F151: 0 | G151: 0 | H151: 0 | I151: 0 | J151: 1 | K151: 0 | L151: 0 | M151: 0 | N151: 0 | O151: 4 | P151: 2 | Q151: 0 | R151: 0 | S151: 0 | T151: 0 | U151: 0 | V151: 0 | W151: 2 | X151: 0 | Y151: 0 | Z151: 0 | AA151: 0 | AB151: 0 | AC151: 0 | AD151: 0
A152: DR79 | B152: M | C152: 6 | E152: 0 | F152: 0 | G152: 0 | H152: 0 | I152: 0 | J152: 0 | K152: 0 | L152: 0 | M152: 1 | N152: 0 | O152: 2 | P152: 3 | Q152: 0 | R152: 0 | S152: 0 | T152: 0 | U152: 2 | V152: 0 | W152: 1 | X152: 0 | Y152: 0 | Z152: 0 | AA152: 0 | AB152: 1 | AC152: 0 | AD152: 1
A153: DR81 | B153: M | C153: 4 | E153: 0 | F153: 0 | G153: 0 | H153: 0 | I153: 0 | J153: 0 | K153: 0 | L153: 0 | M153: 0 | N153: 0 | O153: 0 | P153: 2 | Q153: 0 | R153: 0 | S153: 0 | T153: 0 | U153: 2 | V153: 0 | W153: 5 | X153: 0 | Y153: 0 | Z153: 0 | AA153: 0 | AB153: 0 | AC153: 0 | AD153: 0
A154: DR84 | B154: M | C154: 9 | E154: 3 | F154: 0 | G154: 0 | H154: 0 | I154: 0 | J154: 0 | K154: 0 | L154: 0 | M154: 0 | N154: 0 | O154: 1 | P154: 5 | Q154: 0 | R154: 0 | S154: 0 | T154: 0 | U154: 3 | V154: 0 | W154: 0 | X154: 0 | Y154: 0 | Z154: 0 | AA154: 0 | AB154: 1 | AC154: 0 | AD154: 0
A155: DR89 | B155: M | C155: 4 | E155: 0 | F155: 0 | G155: 0 | H155: 0 | I155: 0 | J155: 0 | K155: 0 | L155: 0 | M155: 0 | N155: 0 | O155: 0 | P155: 0 | Q155: 0 | R155: 0 | S155: 0 | T155: 1 | U155: 1 | V155: 0 | W155: 1 | X155: 0 | Y155: 0 | Z155: 0 | AA155: 0 | AB155: 0 | AC155: 0 | AD155: 1
A156: G14 | B156: M | C156: 5 | E156: 0 | F156: 0 | G156: 0 | H156: 0 | I156: 0 | J156: 0 | K156: 0 | L156: 0 | M156: 0 | N156: 0 | O156: 3 | P156: 0 | Q156: 0 | R156: 0 | S156: 0 | T156: 0 | U156: 2 | V156: 0 | W156: 0 | X156: 0 | Y156: 0 | Z156: 0 | AA156: 0 | AB156: 0 | AC156: 0 | AD156: 1
A157: G18 | B157: M | C157: 28 | E157: 4 | F157: 0 | G157: 0 | H157: 1 | I157: 0 | J157: 1 | K157: 0 | L157: 1 | M157: 1 | N157: 3 | O157: 13 | P157: 48 | Q157: 1 | R157: 0 | S157: 0 | T157: 13 | U157: 15 | V157: 3 | W157: 17 | X157: 0 | Y157: 0 | Z157: 0 | AA157: 0 | AB157: 10 | AC157: 0 | AD157: 0
A158: G25 | B158: M | C158: 7 | E158: 0 | F158: 0 | G158: 0 | H158: 0 | I158: 0 | J158: 0 | K158: 0 | L158: 0 | M158: 0 | N158: 0 | O158: 2 | P158: 5 | Q158: 0 | R158: 0 | S158: 0 | T158: 1 | U158: 0 | V158: 0 | W158: 1 | X158: 0 | Y158: 0 | Z158: 0 | AA158: 0 | AB158: 0 | AC158: 0 | AD158: 1
A159: G28 | B159: M | C159: 17 | E159: 0 | F159: 0 | G159: 0 | H159: 0 | I159: 0 | J159: 0 | K159: 0 | L159: 0 | M159: 0 | N159: 0 | O159: 2 | P159: 8 | Q159: 0 | R159: 0 | S159: 0 | T159: 2 | U159: 6 | V159: 0 | W159: 4 | X159: 0 | Y159: 0 | Z159: 0 | AA159: 0 | AB159: 2 | AC159: 0 | AD159: 1
A160: G30 | B160: M | C160: 7 | E160: 0 | F160: 0 | G160: 0 | H160: 0 | I160: 0 | J160: 0 | K160: 1 | L160: 0 | M160: 0 | N160: 0 | O160: 4 | P160: 3 | Q160: 0 | R160: 0 | S160: 0 | T160: 0 | U160: 6 | V160: 0 | W160: 1 | X160: 0 | Y160: 0 | Z160: 0 | AA160: 0 | AB160: 3 | AC160: 0 | AD160: 1
A161: G32 | B161: M | C161: 5 | E161: 0 | F161: 0 | G161: 0 | H161: 0 | I161: 0 | J161: 0 | K161: 0 | L161: 0 | M161: 0 | N161: 0 | O161: 3 | P161: 3 | Q161: 0 | R161: 0 | S161: 0 | T161: 1 | U161: 6 | V161: 0 | W161: 2 | X161: 0 | Y161: 0 | Z161: 0 | AA161: 0 | AB161: 0 | AC161: 0 | AD161: 1
A162: G34 | B162: M | C162: 28 | D162: 23 | E162: 5 | F162: 0 | G162: 0 | H162: 1 | I162: 0 | J162: 0 | K162: 0 | L162: 1 | M162: 1 | N162: 4 | O162: 14 | P162: 32 | Q162: 0 | R162: 0 | S162: 0 | T162: 5 | U162: 25 | V162: 0 | W162: 21 | X162: 0 | Y162: 0 | Z162: 1 | AA162: 3 | AB162: 7 | AC162: 1 | AD162: 0
A163: G4 | B163: M | C163: 14 | E163: 0 | F163: 0 | G163: 0 | H163: 0 | I163: 0 | J163: 0 | K163: 0 | L163: 0 | M163: 1 | N163: 1 | O163: 6 | P163: 15 | Q163: 0 | R163: 0 | S163: 0 | T163: 1 | U163: 6 | V163: 0 | W163: 2 | X163: 0 | Y163: 0 | Z163: 0 | AA163: 0 | AB163: 0 | AC163: 0 | AD163: 1
A164: G44 | B164: M | C164: 2 | E164: 0 | F164: 0 | G164: 0 | H164: 0 | I164: 0 | J164: 0 | K164: 0 | L164: 0 | M164: 0 | N164: 0 | O164: 1 | P164: 1 | Q164: 0 | R164: 0 | S164: 0 | T164: 0 | U164: 0 | V164: 0 | W164: 0 | X164: 0 | Y164: 0 | Z164: 0 | AA164: 0 | AB164: 0 | AC164: 0 | AD164: 1
A165: G52 | B165: M | C165: 5 | E165: 1 | F165: 0 | G165: 0 | H165: 0 | I165: 0 | J165: 0 | K165: 0 | L165: 0 | M165: 0 | N165: 0 | O165: 3 | P165: 3 | Q165: 0 | R165: 0 | S165: 0 | T165: 0 | U165: 5 | V165: 0 | W165: 2 | X165: 0 | Y165: 0 | Z165: 0 | AA165: 0 | AB165: 0 | AC165: 0 | AD165: 1
A166: G53 | B166: M | C166: 28 | D166: 28 | E166: 0 | F166: 0 | G166: 0 | H166: 0 | I166: 0 | J166: 0 | K166: 0 | L166: 0 | M166: 0 | N166: 0 | O166: 0 | P166: 0 | Q166: 0 | R166: 0 | S166: 0 | T166: 0 | U166: 0 | V166: 0 | W166: 0 | X166: 0 | Y166: 0 | Z166: 0 | AA166: 0 | AB166: 0 | AC166: 1 | AD166: 1
A167: G56 | B167: M | C167: 5 | E167: 0 | F167: 0 | G167: 0 | H167: 0 | I167: 0 | J167: 0 | K167: 0 | L167: 0 | M167: 0 | N167: 0 | O167: 3 | P167: 2 | Q167: 0 | R167: 0 | S167: 0 | T167: 1 | U167: 3 | V167: 0 | W167: 1 | X167: 0 | Y167: 0 | Z167: 0 | AA167: 0 | AB167: 0 | AC167: 0 | AD167: 1
A168: G71 | B168: M | C168: 5 | E168: 1 | F168: 0 | G168: 0 | H168: 0 | I168: 0 | J168: 0 | K168: 0 | L168: 0 | M168: 0 | N168: 0 | O168: 2 | P168: 0 | Q168: 0 | R168: 0 | S168: 0 | T168: 1 | U168: 2 | V168: 0 | W168: 1 | X168: 0 | Y168: 0 | Z168: 0 | AA168: 0 | AB168: 1 | AC168: 0 | AD168: 1
A169: G73 | B169: M | C169: 21 | D169: 21 | E169: 0 | F169: 0 | G169: 0 | H169: 0 | I169: 0 | J169: 1 | K169: 0 | L169: 0 | M169: 0 | N169: 0 | O169: 1 | P169: 0 | Q169: 0 | R169: 0 | S169: 0 | T169: 0 | U169: 0 | V169: 0 | W169: 1 | X169: 0 | Y169: 0 | Z169: 0 | AA169: 0 | AB169: 1 | AC169: 1 | AD169: 1
A170: G76 | B170: M | C170: 28 | E170: 0 | F170: 0 | G170: 0 | H170: 0 | I170: 0 | J170: 0 | K170: 0 | L170: 1 | M170: 0 | N170: 1 | O170: 6 | P170: 16 | Q170: 0 | R170: 0 | S170: 0 | T170: 3 | U170: 6 | V170: 0 | W170: 5 | X170: 0 | Y170: 0 | Z170: 0 | AA170: 0 | AB170: 3 | AC170: 0 | AD170: 0
A171: G80 | B171: M | C171: 9 | E171: 0 | F171: 0 | G171: 0 | H171: 0 | I171: 0 | J171: 0 | K171: 0 | L171: 0 | M171: 0 | N171: 1 | O171: 3 | P171: 1 | Q171: 0 | R171: 0 | S171: 0 | T171: 0 | U171: 1 | V171: 1 | W171: 1 | X171: 0 | Y171: 0 | Z171: 0 | AA171: 0 | AB171: 1 | AC171: 0 | AD171: 1
A172: G82 | B172: M | C172: 7 | E172: 1 | F172: 0 | G172: 0 | H172: 0 | I172: 0 | J172: 0 | K172: 0 | L172: 0 | M172: 0 | N172: 0 | O172: 0 | P172: 0 | Q172: 0 | R172: 0 | S172: 0 | T172: 0 | U172: 1 | V172: 0 | W172: 0 | X172: 0 | Y172: 0 | Z172: 0 | AA172: 0 | AB172: 0 | AC172: 0 | AD172: 1
A173: G83 | B173: M | C173: 28 | D173: 21 | E173: 0 | F173: 0 | G173: 0 | H173: 0 | I173: 0 | J173: 0 | K173: 0 | L173: 0 | M173: 2 | N173: 0 | O173: 3 | P173: 16 | Q173: 0 | R173: 0 | S173: 0 | T173: 2 | U173: 9 | V173: 0 | W173: 4 | X173: 0 | Y173: 0 | Z173: 0 | AA173: 0 | AB173: 14 | AC173: 1 | AD173: 1
A174: G94 | B174: M | C174: 28 | E174: 2 | F174: 0 | G174: 0 | H174: 1 | I174: 0 | J174: 2 | K174: 0 | L174: 0 | M174: 0 | N174: 4 | O174: 14 | P174: 48 | Q174: 0 | R174: 0 | S174: 0 | T174: 13 | U174: 27 | V174: 0 | W174: 14 | X174: 0 | Y174: 0 | Z174: 0 | AA174: 0 | AB174: 10 | AC174: 0 | AD174: 1
A175: G97 | B175: M | C175: 5 | E175: 0 | F175: 0 | G175: 0 | H175: 0 | I175: 0 | J175: 0 | K175: 0 | L175: 0 | M175: 0 | N175: 0 | O175: 1 | P175: 1 | Q175: 0 | R175: 0 | S175: 0 | T175: 2 | U175: 1 | V175: 0 | W175: 0 | X175: 0 | Y175: 0 | Z175: 0 | AA175: 0 | AB175: 0 | AC175: 0 | AD175: 1
A176: NG74 | B176: M | C176: 1 | E176: 0 | F176: 0 | G176: 0 | H176: 0 | I176: 0 | J176: 0 | K176: 0 | L176: 0 | M176: 0 | N176: 0 | O176: 0 | P176: 0 | Q176: 0 | R176: 0 | S176: 0 | T176: 0 | U176: 0 | V176: 0 | W176: 0 | X176: 0 | Y176: 0 | Z176: 0 | AA176: 0 | AB176: 0 | AC176: 0 | AD176: 1
A177: R10 | B177: M | C177: 5 | E177: 0 | F177: 0 | G177: 0 | H177: 0 | I177: 0 | J177: 0 | K177: 0 | L177: 0 | M177: 0 | N177: 0 | O177: 0 | P177: 1 | Q177: 0 | R177: 0 | S177: 0 | T177: 1 | U177: 3 | V177: 0 | W177: 3 | X177: 0 | Y177: 0 | Z177: 0 | AA177: 0 | AB177: 0 | AC177: 0 | AD177: 1
A178: R13 | B178: M | C178: 1 | E178: 0 | F178: 0 | G178: 0 | H178: 0 | I178: 0 | J178: 0 | K178: 0 | L178: 0 | M178: 0 | N178: 0 | O178: 0 | P178: 0 | Q178: 0 | R178: 0 | S178: 0 | T178: 0 | U178: 0 | V178: 0 | W178: 0 | X178: 0 | Y178: 0 | Z178: 0 | AA178: 0 | AB178: 0 | AC178: 0 | AD178: 1
A179: R20 | B179: M | C179: 3 | E179: 0 | F179: 0 | G179: 0 | H179: 0 | I179: 0 | J179: 0 | K179: 0 | L179: 0 | M179: 0 | N179: 0 | O179: 2 | P179: 0 | Q179: 0 | R179: 0 | S179: 0 | T179: 1 | U179: 1 | V179: 0 | W179: 1 | X179: 0 | Y179: 0 | Z179: 0 | AA179: 0 | AB179: 0 | AC179: 0 | AD179: 1
A180: R24 | B180: M | C180: 2 | E180: 0 | F180: 0 | G180: 0 | H180: 0 | I180: 0 | J180: 0 | K180: 0 | L180: 0 | M180: 0 | N180: 0 | O180: 0 | P180: 1 | Q180: 0 | R180: 0 | S180: 0 | T180: 2 | U180: 0 | V180: 0 | W180: 0 | X180: 0 | Y180: 0 | Z180: 0 | AA180: 0 | AB180: 0 | AC180: 0 | AD180: 1
A181: R33 | B181: M | C181: 2 | E181: 0 | F181: 0 | G181: 0 | H181: 0 | I181: 0 | J181: 0 | K181: 0 | L181: 0 | M181: 0 | N181: 0 | O181: 1 | P181: 0 | Q181: 0 | R181: 0 | S181: 0 | T181: 0 | U181: 1 | V181: 0 | W181: 0 | X181: 0 | Y181: 0 | Z181: 0 | AA181: 0 | AB181: 0 | AC181: 0 | AD181: 1
A182: R72 | B182: M | C182: 3 | E182: 3 | F182: 0 | G182: 0 | H182: 1 | I182: 0 | J182: 0 | K182: 0 | L182: 0 | M182: 0 | N182: 0 | O182: 1 | P182: 0 | Q182: 0 | R182: 0 | S182: 0 | T182: 2 | U182: 4 | V182: 0 | W182: 0 | X182: 0 | Y182: 0 | Z182: 0 | AA182: 0 | AB182: 0 | AC182: 0 | AD182: 0
A183: R81 | B183: M | C183: 3 | E183: 0 | F183: 0 | G183: 0 | H183: 0 | I183: 0 | J183: 0 | K183: 0 | L183: 0 | M183: 0 | N183: 0 | O183: 0 | P183: 0 | Q183: 0 | R183: 0 | S183: 0 | T183: 0 | U183: 1 | V183: 0 | W183: 0 | X183: 0 | Y183: 0 | Z183: 0 | AA183: 0 | AB183: 0 | AC183: 0 | AD183: 1
A184: R83 | B184: M | C184: 5 | E184: 0 | F184: 0 | G184: 0 | H184: 0 | I184: 0 | J184: 0 | K184: 0 | L184: 0 | M184: 0 | N184: 0 | O184: 0 | P184: 1 | Q184: 0 | R184: 0 | S184: 0 | T184: 0 | U184: 2 | V184: 0 | W184: 0 | X184: 0 | Y184: 0 | Z184: 0 | AA184: 0 | AB184: 0 | AC184: 0 | AD184: 1
A185: W1 | B185: M | C185: 9 | E185: 0 | F185: 0 | G185: 0 | H185: 1 | I185: 0 | J185: 0 | K185: 0 | L185: 0 | M185: 0 | N185: 1 | O185: 7 | P185: 9 | Q185: 0 | R185: 0 | S185: 0 | T185: 1 | U185: 15 | V185: 1 | W185: 1 | X185: 0 | Y185: 0 | Z185: 0 | AA185: 0 | AB185: 1 | AC185: 0 | AD185: 1
A186: W13 | B186: M | C186: 3 | E186: 0 | F186: 0 | G186: 0 | H186: 0 | I186: 0 | J186: 0 | K186: 0 | L186: 0 | M186: 0 | N186: 0 | O186: 3 | P186: 0 | Q186: 0 | R186: 0 | S186: 0 | T186: 0 | U186: 4 | V186: 0 | W186: 0 | X186: 0 | Y186: 0 | Z186: 0 | AA186: 0 | AB186: 0 | AC186: 0 | AD186: 1
A187: W27 | B187: M | C187: 5 | E187: 0 | F187: 0 | G187: 0 | H187: 2 | I187: 0 | J187: 0 | K187: 0 | L187: 0 | M187: 0 | N187: 0 | O187: 2 | P187: 1 | Q187: 0 | R187: 0 | S187: 0 | T187: 4 | U187: 2 | V187: 0 | W187: 2 | X187: 0 | Y187: 0 | Z187: 0 | AA187: 0 | AB187: 1 | AC187: 0 | AD187: 1
A188: W32 | B188: M | C188: 6 | E188: 0 | F188: 0 | G188: 0 | H188: 0 | I188: 0 | J188: 0 | K188: 0 | L188: 0 | M188: 0 | N188: 0 | O188: 2 | P188: 0 | Q188: 0 | R188: 0 | S188: 0 | T188: 0 | U188: 2 | V188: 0 | W188: 3 | X188: 0 | Y188: 0 | Z188: 0 | AA188: 0 | AB188: 0 | AC188: 0 | AD188: 1
A189: W33 | B189: M | C189: 17 | E189: 1 | F189: 0 | G189: 0 | H189: 2 | I189: 0 | J189: 1 | K189: 0 | L189: 0 | M189: 3 | N189: 1 | O189: 13 | P189: 19 | Q189: 0 | R189: 0 | S189: 0 | T189: 1 | U189: 20 | V189: 1 | W189: 9 | X189: 0 | Y189: 0 | Z189: 0 | AA189: 0 | AB189: 6 | AC189: 0 | AD189: 1
A190: W34 | B190: M | C190: 5 | E190: 1 | F190: 0 | G190: 0 | H190: 1 | I190: 0 | J190: 0 | K190: 0 | L190: 0 | M190: 0 | N190: 0 | O190: 5 | P190: 1 | Q190: 0 | R190: 0 | S190: 0 | T190: 1 | U190: 2 | V190: 1 | W190: 1 | X190: 0 | Y190: 0 | Z190: 0 | AA190: 0 | AB190: 2 | AC190: 0 | AD190: 1
A191: W35 | B191: M | C191: 9 | E191: 0 | F191: 0 | G191: 0 | H191: 0 | I191: 0 | J191: 0 | K191: 0 | L191: 1 | M191: 0 | N191: 0 | O191: 5 | P191: 22 | Q191: 0 | R191: 0 | S191: 0 | T191: 1 | U191: 5 | V191: 0 | W191: 7 | X191: 0 | Y191: 0 | Z191: 0 | AA191: 0 | AB191: 0 | AC191: 0 | AD191: 1
A192: W4 | B192: M | C192: 5 | E192: 1 | F192: 0 | G192: 0 | H192: 0 | I192: 0 | J192: 0 | K192: 0 | L192: 0 | M192: 0 | N192: 0 | O192: 9 | P192: 5 | Q192: 0 | R192: 0 | S192: 0 | T192: 0 | U192: 13 | V192: 0 | W192: 3 | X192: 0 | Y192: 0 | Z192: 0 | AA192: 0 | AB192: 1 | AC192: 0 | AD192: 1
A193: W48 | B193: M | C193: 9 | E193: 0 | F193: 0 | G193: 1 | H193: 0 | I193: 0 | J193: 0 | K193: 0 | L193: 0 | M193: 0 | N193: 0 | O193: 4 | P193: 20 | Q193: 0 | R193: 0 | S193: 0 | T193: 7 | U193: 3 | V193: 0 | W193: 0 | X193: 0 | Y193: 0 | Z193: 0 | AA193: 0 | AB193: 0 | AC193: 0 | AD193: 1
A194: W49 | B194: M | C194: 7 | E194: 2 | F194: 0 | G194: 0 | H194: 0 | I194: 0 | J194: 0 | K194: 0 | L194: 0 | M194: 0 | N194: 0 | O194: 6 | P194: 4 | Q194: 0 | R194: 0 | S194: 0 | T194: 0 | U194: 2 | V194: 1 | W194: 6 | X194: 0 | Y194: 0 | Z194: 0 | AA194: 0 | AB194: 1 | AC194: 0 | AD194: 1
A195: W5 | B195: M | C195: 7 | E195: 0 | F195: 0 | G195: 0 | H195: 1 | I195: 0 | J195: 1 | K195: 0 | L195: 1 | M195: 0 | N195: 4 | O195: 10 | P195: 4 | Q195: 0 | R195: 0 | S195: 0 | T195: 4 | U195: 6 | V195: 2 | W195: 3 | X195: 0 | Y195: 0 | Z195: 0 | AA195: 0 | AB195: 0 | AC195: 0 | AD195: 1
A196: W50 | B196: M | C196: 4 | E196: 0 | F196: 0 | G196: 0 | H196: 0 | I196: 0 | J196: 0 | K196: 0 | L196: 0 | M196: 0 | N196: 0 | O196: 1 | P196: 3 | Q196: 0 | R196: 0 | S196: 0 | T196: 0 | U196: 6 | V196: 0 | W196: 0 | X196: 0 | Y196: 0 | Z196: 0 | AA196: 0 | AB196: 0 | AC196: 0 | AD196: 1
A197: W51 | B197: M | C197: 4 | E197: 0 | F197: 0 | G197: 0 | H197: 0 | I197: 0 | J197: 0 | K197: 0 | L197: 0 | M197: 0 | N197: 0 | O197: 2 | P197: 0 | Q197: 0 | R197: 0 | S197: 0 | T197: 1 | U197: 1 | V197: 0 | W197: 1 | X197: 0 | Y197: 0 | Z197: 0 | AA197: 0 | AB197: 0 | AC197: 0 | AD197: 1
A198: W52 | B198: M | C198: 4 | E198: 0 | F198: 0 | G198: 0 | H198: 0 | I198: 0 | J198: 0 | K198: 0 | L198: 0 | M198: 0 | N198: 0 | O198: 1 | P198: 5 | Q198: 0 | R198: 0 | S198: 0 | T198: 0 | U198: 4 | V198: 0 | W198: 1 | X198: 0 | Y198: 0 | Z198: 0 | AA198: 0 | AB198: 0 | AC198: 0 | AD198: 1
A199: W53 | B199: M | C199: 3 | E199: 0 | F199: 0 | G199: 0 | H199: 0 | I199: 0 | J199: 0 | K199: 0 | L199: 0 | M199: 0 | N199: 0 | O199: 2 | P199: 0 | Q199: 0 | R199: 0 | S199: 0 | T199: 0 | U199: 1 | V199: 0 | W199: 1 | X199: 0 | Y199: 0 | Z199: 0 | AA199: 0 | AB199: 0 | AC199: 0 | AD199: 1
A200: W63 | B200: M | C200: 7 | E200: 0 | F200: 0 | G200: 0 | H200: 0 | I200: 0 | J200: 0 | K200: 0 | L200: 0 | M200: 0 | N200: 0 | O200: 1 | P200: 12 | Q200: 0 | R200: 0 | S200: 0 | T200: 1 | U200: 2 | V200: 0 | W200: 1 | X200: 0 | Y200: 0 | Z200: 0 | AA200: 0 | AB200: 0 | AC200: 0 | AD200: 1
... 185 more rows

Sheet Mortality
A1: Cohort 1 - from Time extract | B1: Cohort 1 Treatment | C1: Cohort 2 - from Time extract | D1: Cohort 2 Treatment | F1: Age | G1: #deaths Colony 1 | H1: Alive | I1: Mortality Rate | K1: Age | L1: #deaths Colony 1 | M1: Alive | N1: Mortality Rate | X1: Cohort 1 - from Time extract | Y1: Cohort 1 Treatment | Z1: Cohort 2 - from Time extract | AA1: Cohort 2 Treatment | AD1: Control 1 | AH1: Mite 1 | AL1: Control 2 | AP1: Mite 2 | AT1: Paraquat 2
A2: 10 | B2: C | D2: C | F2: 5 | G2: 14 | H2: =G35 -> 187 | I2: =G2/H2 -> 0.07486631016 | K2: 5 | L2: 72 | M2: =L35 -> 429 | N2: =L2/M2 -> 0.1678321678 | X2: 10 | Y2: C | AA2: C | AD2: 5 | AE2: 5 | AF2: =AE34 -> 135 | AG2: =AE2/AF2 -> 0.03703703704 | AH2: 5 | AI2: 9 | AJ2: =AI34 -> 52 | AK2: =AI2/AJ2 -> 0.1730769231 | AL2: 5 | AM2: 16 | AN2: =AM34 -> 104 | AO2: =AM2/AN2 -> 0.1538461538 | AP2: 5 | AQ2: 21 | AR2: =AQ34 -> 59 | AS2: =AQ2/AR2 -> 0.3559322034 | AT2: 5 | AU2: 21 | AV2: =AU34 -> 82 | AW2: =AU2/AV2 -> 0.256097561
A3: 29 | B3: C | C3: 5 | D3: C | F3: 6 | G3: 12 | H3: =H2-G2 -> 173 | I3: =G3/H3 -> 0.06936416185 | K3: 6 | L3: 50 | M3: =M2-L2 -> 357 | N3: =L3/M3 -> 0.1400560224 | X3: 29 | Y3: C | Z3: 5 | AA3: C | AD3: 6 | AE3: 6 | AF3: =AF2-AE2 -> 130 | AG3: =AE3/AF3 -> 0.04615384615 | AH3: 6 | AI3: 6 | AJ3: =AJ2-AI2 -> 43 | AK3: =AI3/AJ3 -> 0.1395348837 | AL3: 6 | AM3: 15 | AN3: =AN2-AM2 -> 88 | AO3: =AM3/AN3 -> 0.1704545455 | AP3: 6 | AQ3: 9 | AR3: =AR2-AQ2 -> 38 | AS3: =AQ3/AR3 -> 0.2368421053 | AT3: 6 | AU3: 14 | AV3: =AV2-AU2 -> 61 | AW3: =AU3/AV3 -> 0.2295081967
A4: 21 | B4: C | D4: C | F4: 7 | G4: 9 | H4: =H3-G3 -> 161 | I4: 0.05590062112 | K4: 7 | L4: 32 | M4: =M3-L3 -> 307 | N4: 0.1042345277 | X4: 21 | Y4: C | AA4: C | AD4: 7 | AE4: 5 | AF4: =AF3-AE3 -> 124 | AG4: =AE4/AF4 -> 0.04032258065 | AH4: 7 | AI4: 4 | AJ4: =AJ3-AI3 -> 37 | AK4: =AI4/AJ4 -> 0.1081081081 | AL4: 7 | AM4: 12 | AN4: =AN3-AM3 -> 73 | AO4: =AM4/AN4 -> 0.1643835616 | AP4: 7 | AQ4: 7 | AR4: =AR3-AQ3 -> 29 | AS4: =AQ4/AR4 -> 0.2413793103 | AT4: 7 | AU4: 4 | AV4: =AV3-AU3 -> 47 | AW4: =AU4/AV4 -> 0.08510638298
A5: 19 | B5: C | C5: 6 | D5: C | F5: 8 | G5: 9 | H5: 152 | I5: 0.05921052632 | K5: 8 | L5: 17 | M5: 275 | N5: 0.06181818182 | X5: 19 | Y5: C | Z5: 6 | AA5: C | AD5: 8 | AE5: 7 | AF5: 119 | AG5: 0.05882352941 | AH5: 8 | AI5: 2 | AJ5: 33 | AK5: 0.06060606061 | AL5: 8 | AM5: 3 | AN5: 61 | AO5: 0.04918032787 | AP5: 8 | AQ5: 1 | AR5: 22 | AS5: 0.04545454545 | AT5: 8 | AU5: 4 | AV5: 43 | AW5: 0.09302325581
A6: 15 | B6: C | C6: 6 | D6: C | F6: 9 | G6: 13 | H6: 143 | I6: 0.09090909091 | K6: 9 | L6: 27 | M6: 258 | N6: 0.1046511628 | X6: 15 | Y6: C | Z6: 6 | AA6: C | AD6: 9 | AE6: 7 | AF6: 112 | AG6: 0.0625 | AH6: 9 | AI6: 6 | AJ6: 31 | AK6: 0.1935483871 | AL6: 9 | AM6: 4 | AN6: 58 | AO6: 0.06896551724 | AP6: 9 | AQ6: 6 | AR6: 21 | AS6: 0.2857142857 | AT6: 9 | AU6: 4 | AV6: 39 | AW6: 0.1025641026
A7: 19 | B7: C | D7: C | F7: 10 | G7: 21 | H7: 130 | I7: 0.1615384615 | K7: 10 | L7: 26 | M7: 231 | N7: 0.1125541126 | X7: 19 | Y7: C | AA7: C | AD7: 10 | AE7: 15 | AF7: 105 | AG7: 0.1428571429 | AH7: 10 | AI7: 6 | AJ7: 25 | AK7: 0.24 | AL7: 10 | AM7: 4 | AN7: 54 | AO7: 0.07407407407 | AP7: 10 | AQ7: 0 | AR7: 15 | AS7: 0 | AT7: 10 | AU7: 1 | AV7: 35 | AW7: 0.02857142857
B8: C | C8: 17 | D8: C | F8: 11 | G8: 16 | H8: 109 | I8: 0.1467889908 | K8: 11 | L8: 18 | M8: 205 | N8: 0.08780487805 | Y8: C | Z8: 17 | AA8: C | AD8: 11 | AE8: 13 | AF8: 90 | AG8: 0.1444444444 | AH8: 11 | AI8: 3 | AJ8: 19 | AK8: 0.1578947368 | AL8: 11 | AM8: 2 | AN8: 50 | AO8: 0.04 | AP8: 11 | AQ8: 0 | AR8: 15 | AS8: 0 | AT8: 11 | AU8: 0 | AV8: 34 | AW8: 0
A9: 11 | B9: C | D9: C | F9: 12 | G9: 10 | H9: 93 | I9: 0.1075268817 | K9: 12 | L9: 14 | M9: 187 | N9: 0.07486631016 | X9: 11 | Y9: C | AA9: C | AD9: 12 | AE9: 8 | AF9: 77 | AG9: 0.1038961039 | AH9: 12 | AI9: 2 | AJ9: 16 | AK9: 0.125 | AL9: 12 | AM9: 2 | AN9: 48 | AO9: 0.04166666667 | AP9: 12 | AQ9: 0 | AR9: 15 | AS9: 0 | AT9: 12 | AU9: 2 | AV9: 34 | AW9: 0.05882352941
A10: 8 | B10: C | D10: C | F10: 13 | G10: 8 | H10: 83 | I10: 0.09638554217 | K10: 13 | L10: 10 | M10: 173 | N10: 0.05780346821 | X10: 8 | Y10: C | AA10: C | AD10: 13 | AE10: 7 | AF10: 69 | AG10: 0.1014492754 | AH10: 13 | AI10: 1 | AJ10: 14 | AK10: 0.07142857143 | AL10: 13 | AM10: 1 | AN10: 46 | AO10: 0.02173913043 | AP10: 13 | AQ10: 0 | AR10: 15 | AS10: 0 | AT10: 13 | AU10: 1 | AV10: 32 | AW10: 0.03125
A11: 10 | B11: C | D11: C | F11: 14 | G11: 6 | H11: 75 | I11: 0.08 | K11: 14 | L11: 8 | M11: 163 | N11: 0.0490797546 | X11: 10 | Y11: C | AA11: C | AD11: 14 | AE11: 5 | AF11: 62 | AG11: 0.08064516129 | AH11: 14 | AI11: 1 | AJ11: 13 | AK11: 0.07692307692 | AL11: 14 | AM11: 1 | AN11: 45 | AO11: 0.02222222222 | AP11: 14 | AQ11: 1 | AR11: 15 | AS11: 0.06666666667 | AT11: 14 | AU11: 0 | AV11: 31 | AW11: 0
A12: 14 | B12: C | D12: C | F12: 15 | G12: 7 | H12: 69 | I12: 0.1014492754 | K12: 15 | L12: 9 | M12: 155 | N12: 0.05806451613 | X12: 14 | Y12: C | AA12: C | AD12: 15 | AE12: 7 | AF12: 57 | AG12: 0.1228070175 | AH12: 15 | AI12: 0 | AJ12: 12 | AK12: 0 | AL12: 15 | AM12: 1 | AN12: 44 | AO12: 0.02272727273 | AP12: 15 | AQ12: 0 | AR12: 14 | AS12: 0 | AT12: 15 | AU12: 1 | AV12: 31 | AW12: 0.03225806452
A13: 7 | B13: C | D13: C | F13: 16 | G13: 5 | H13: 62 | I13: 0.08064516129 | K13: 16 | L13: 11 | M13: 146 | N13: 0.07534246575 | X13: 7 | Y13: C | AA13: C | AD13: 16 | AE13: 4 | AF13: 50 | AG13: 0.08 | AH13: 16 | AI13: 1 | AJ13: 12 | AK13: 0.08333333333 | AL13: 16 | AM13: 2 | AN13: 43 | AO13: 0.04651162791 | AP13: 16 | AQ13: 0 | AR13: 14 | AS13: 0 | AT13: 16 | AU13: 4 | AV13: 30 | AW13: 0.1333333333
A14: 16 | B14: C | D14: C | F14: 17 | G14: 6 | H14: 57 | I14: 0.1052631579 | K14: 17 | L14: 12 | M14: 135 | N14: 0.08888888889 | X14: 16 | Y14: C | AA14: C | AD14: 17 | AE14: 4 | AF14: 46 | AG14: 0.08695652174 | AH14: 17 | AI14: 2 | AJ14: 11 | AK14: 0.1818181818 | AL14: 17 | AM14: 3 | AN14: 41 | AO14: 0.07317073171 | AP14: 17 | AQ14: 2 | AR14: 14 | AS14: 0.1428571429 | AT14: 17 | AU14: 1 | AV14: 26 | AW14: 0.03846153846
A15: 6 | B15: C | D15: C | F15: 18 | G15: 3 | H15: 51 | I15: 0.05882352941 | K15: 18 | L15: 5 | M15: 123 | N15: 0.0406504065 | X15: 6 | Y15: C | AA15: C | AD15: 18 | AE15: 3 | AF15: 42 | AG15: 0.07142857143 | AH15: 18 | AI15: 0 | AJ15: 9 | AK15: 0 | AL15: 18 | AM15: 1 | AN15: 38 | AO15: 0.02631578947 | AP15: 18 | AQ15: 0 | AR15: 12 | AS15: 0 | AT15: 18 | AU15: 1 | AV15: 25 | AW15: 0.04
A16: 13 | B16: C | D16: C | F16: 19 | G16: 8 | H16: 48 | I16: 0.1666666667 | K16: 19 | L16: 9 | M16: 118 | N16: 0.07627118644 | X16: 13 | Y16: C | AA16: C | AD16: 19 | AE16: 7 | AF16: 39 | AG16: 0.1794871795 | AH16: 19 | AI16: 1 | AJ16: 9 | AK16: 0.1111111111 | AL16: 19 | AM16: 0 | AN16: 37 | AO16: 0 | AP16: 19 | AQ16: 1 | AR16: 12 | AS16: 0.08333333333 | AT16: 19 | AU16: 0 | AV16: 24 | AW16: 0
A17: 8 | B17: C | D17: C | F17: 20 | G17: 4 | H17: 40 | I17: 0.1 | K17: 20 | L17: 6 | M17: 109 | N17: 0.05504587156 | X17: 8 | Y17: C | AA17: C | AD17: 20 | AE17: 3 | AF17: 32 | AG17: 0.09375 | AH17: 20 | AI17: 1 | AJ17: 8 | AK17: 0.125 | AL17: 20 | AM17: 2 | AN17: 37 | AO17: 0.05405405405 | AP17: 20 | AQ17: 0 | AR17: 11 | AS17: 0 | AT17: 20 | AU17: 0 | AV17: 24 | AW17: 0
A18: 10 | B18: C | D18: C | F18: 21 | G18: 7 | H18: 36 | I18: 0.1944444444 | K18: 21 | L18: 12 | M18: 103 | N18: 0.1165048544 | X18: 10 | Y18: C | AA18: C | AD18: 21 | AE18: 5 | AF18: 29 | AG18: 0.1724137931 | AH18: 21 | AI18: 2 | AJ18: 7 | AK18: 0.2857142857 | AL18: 21 | AM18: 1 | AN18: 35 | AO18: 0.02857142857 | AP18: 21 | AQ18: 2 | AR18: 11 | AS18: 0.1818181818 | AT18: 21 | AU18: 2 | AV18: 24 | AW18: 0.08333333333
A19: 10 | B19: C | D19: C | F19: 22 | G19: 3 | H19: 29 | I19: 0.1034482759 | K19: 22 | L19: 6 | M19: 91 | N19: 0.06593406593 | X19: 10 | Y19: C | AA19: C | AD19: 22 | AE19: 3 | AF19: 24 | AG19: 0.125 | AH19: 22 | AI19: 0 | AJ19: 5 | AK19: 0 | AL19: 22 | AM19: 2 | AN19: 34 | AO19: 0.05882352941 | AP19: 22 | AQ19: 0 | AR19: 9 | AS19: 0 | AT19: 22 | AU19: 1 | AV19: 22 | AW19: 0.04545454545
A20: 5 | B20: C | C20: 10 | D20: C | F20: 23 | G20: 9 | H20: 26 | I20: 0.3461538462 | K20: 23 | L20: 9 | M20: 85 | N20: 0.1058823529 | X20: 5 | Y20: C | Z20: 10 | AA20: C | AD20: 23 | AE20: 5 | AF20: 21 | AG20: 0.2380952381 | AH20: 23 | AI20: 4 | AJ20: 5 | AK20: 0.8 | AL20: 23 | AM20: 0 | AN20: 32 | AO20: 0 | AP20: 23 | AQ20: 0 | AR20: 9 | AS20: 0 | AT20: 23 | AU20: 0 | AV20: 21 | AW20: 0
A21: 16 | B21: C | D21: C | F21: 24 | G21: 7 | H21: 17 | I21: 0.4117647059 | K21: 24 | L21: 9 | M21: 76 | N21: 0.1184210526 | X21: 16 | Y21: C | AA21: C | AD21: 24 | AE21: 7 | AF21: 16 | AG21: 0.4375 | AH21: 24 | AI21: 0 | AJ21: 1 | AK21: 0 | AL21: 24 | AM21: 2 | AN21: 32 | AO21: 0.0625 | AP21: 24 | AQ21: 0 | AR21: 9 | AS21: 0 | AT21: 24 | AU21: 0 | AV21: 21 | AW21: 0
A22: 10 | B22: C | C22: 9 | D22: C | F22: 25 | G22: 1 | H22: 10 | I22: 0.1 | K22: 25 | L22: 3 | M22: 67 | N22: 0.0447761194 | X22: 10 | Y22: C | Z22: 9 | AA22: C | AD22: 25 | AE22: 1 | AF22: 9 | AG22: 0.1111111111 | AH22: 25 | AI22: 0 | AJ22: 1 | AK22: 0 | AL22: 25 | AM22: 2 | AN22: 30 | AO22: 0.06666666667 | AP22: 25 | AQ22: 0 | AR22: 9 | AS22: 0 | AT22: 25 | AU22: 0 | AV22: 21 | AW22: 0
A23: 22 | B23: C | C23: 10 | D23: C | F23: 26 | G23: 1 | H23: 9 | I23: 0.1111111111 | K23: 26 | L23: 5 | M23: 64 | N23: 0.078125 | X23: 22 | Y23: C | Z23: 10 | AA23: C | AD23: 26 | AE23: 1 | AF23: 8 | AG23: 0.125 | AH23: 26 | AI23: 0 | AJ23: 1 | AK23: 0 | AL23: 26 | AM23: 1 | AN23: 28 | AO23: 0.03571428571 | AP23: 26 | AQ23: 0 | AR23: 9 | AS23: 0 | AT23: 26 | AU23: 3 | AV23: 21 | AW23: 0.1428571429
A24: 25 | B24: C | D24: C | F24: 27 | G24: 3 | H24: 8 | I24: 0.375 | K24: 27 | L24: 13 | M24: 59 | N24: 0.2203389831 | X24: 25 | Y24: C | AA24: C | AD24: 27 | AE24: 2 | AF24: 7 | AG24: 0.2857142857 | AH24: 27 | AI24: 1 | AJ24: 1 | AK24: 1 | AL24: 27 | AM24: 4 | AN24: 27 | AO24: 0.1481481481 | AP24: 27 | AQ24: 1 | AR24: 9 | AS24: 0.1111111111 | AT24: 27 | AU24: 5 | AV24: 18 | AW24: 0.2777777778
A25: 10 | B25: C | D25: C | F25: 28 | G25: 1 | H25: 5 | I25: 0.2 | K25: 28 | L25: 23 | M25: 46 | N25: 0.5 | X25: 10 | Y25: C | AA25: C | AD25: 28 | AE25: 1 | AF25: 5 | AG25: 0.2 | AH25: 28 | AI25: 0 | AL25: 28 | AM25: 11 | AN25: 23 | AO25: 0.4782608696 | AP25: 28 | AQ25: 5 | AR25: 8 | AS25: 0.625 | AT25: 28 | AU25: 6 | AV25: 13 | AW25: 0.4615384615
A26: 19 | B26: C | D26: C | F26: 29 | G26: 1 | H26: 4 | I26: 0.25 | K26: 29 | L26: 15 | M26: 23 | N26: 0.652173913 | X26: 19 | Y26: C | AA26: C | AD26: 29 | AE26: 1 | AF26: 4 | AG26: 0.25 | AH26: 29 | AI26: 0 | AL26: 29 | AM26: 8 | AN26: 12 | AO26: 0.6666666667 | AP26: 29 | AQ26: 2 | AR26: 3 | AS26: 0.6666666667 | AT26: 29 | AU26: 4 | AV26: 7 | AW26: 0.5714285714
A27: 8 | B27: C | D27: C | F27: 30 | G27: 0 | H27: 3 | I27: 0 | K27: 30 | L27: 8 | M27: 8 | N27: 1 | X27: 8 | Y27: C | AA27: C | AD27: 30 | AE27: 0 | AF27: 3 | AG27: 0 | AH27: 30 | AI27: 0 | AL27: 30 | AM27: 4 | AN27: 4 | AO27: 1 | AP27: 30 | AQ27: 1 | AR27: 1 | AS27: 1 | AT27: 30 | AU27: 3 | AV27: 3 | AW27: 1
A28: 7 | B28: C | D28: C | F28: 31 | G28: 0 | H28: 3 | I28: 0 | K28: 31 | L28: 0 | X28: 7 | Y28: C | AA28: C | AD28: 31 | AE28: 0 | AF28: 3 | AG28: 0 | AH28: 31 | AI28: 0
A29: 9 | B29: C | D29: C | F29: 32 | G29: 0 | H29: 3 | I29: 0 | K29: 32 | L29: 0 | X29: 9 | Y29: C | AA29: C | AD29: 32 | AE29: 0 | AF29: 3 | AG29: 0 | AH29: 32 | AI29: 0
A30: 20 | B30: C | C30: 18 | D30: C | F30: 33 | G30: 1 | H30: 3 | I30: 0.3333333333 | K30: 33 | L30: 0 | X30: 20 | Y30: C | Z30: 18 | AA30: C | AD30: 33 | AE30: 1 | AF30: 3 | AG30: 0.3333333333 | AH30: 33 | AI30: 0
A31: 9 | B31: C | C31: 8 | D31: C | F31: 34 | G31: 0 | H31: 2 | I31: 0 | K31: 34 | L31: 0 | X31: 9 | Y31: C | Z31: 8 | AA31: C | AD31: 35 | AE31: 1 | AF31: 2 | AG31: 0.5 | AH31: 35 | AI31: 0
A32: 7 | B32: C | C32: 5 | D32: C | F32: 35 | G32: 1 | H32: 2 | I32: 0.5 | K32: 35 | L32: 0 | X32: 7 | Y32: C | Z32: 5 | AA32: C | AD32: 36 | AE32: 1 | AF32: 1 | AG32: 1 | AH32: 36 | AI32: 0
B33: C | D33: C | F33: 36 | G33: 1 | H33: 1 | I33: 1 | K33: 36 | L33: 0 | Y33: C | AA33: C
B34: C | D34: C | Y34: C | AA34: C | AE34: =SUM(AE2:AE32) -> 135 | AI34: =SUM(AI2:AI32) -> 52 | AM34: =SUM(AM2:AM32) -> 104 | AQ34: =SUM(AQ2:AQ32) -> 59 | AU34: =SUM(AU2:AU32) -> 82
A35: 11 | B35: C | C35: 21 | D35: C | G35: =SUM(G2:G33) -> 187 | L35: =SUM(L2:L33) -> 429 | X35: 11 | Y35: C | Z35: 21 | AA35: C
A36: 36 | B36: C | D36: C | X36: 36 | Y36: C | AA36: C
A37: 7 | B37: C | D37: C | X37: 7 | Y37: C | AA37: C
A38: 9 | B38: C | D38: C | X38: 9 | Y38: C | AA38: C
A39: 24 | B39: C | D39: C | X39: 24 | Y39: C | AA39: C
A40: 20 | B40: C | C40: 25 | D40: C | X40: 20 | Y40: C | Z40: 25 | AA40: C
A41: 10 | B41: C | D41: C | X41: 10 | Y41: C | AA41: C
A42: 15 | B42: C | C42: 6 | D42: C | X42: 15 | Y42: C | Z42: 6 | AA42: C
A43: 8 | B43: C | C43: 9 | D43: C | X43: 8 | Y43: C | Z43: 9 | AA43: C
A44: 5 | B44: C | C44: 30 | D44: C | X44: 5 | Y44: C | Z44: 30 | AA44: C
A45: 6 | B45: C | C45: 30 | D45: C | X45: 6 | Y45: C | Z45: 30 | AA45: C
B46: C | C46: 5 | D46: C | Y46: C | Z46: 5 | AA46: C
A47: 13 | B47: C | C47: 17 | D47: C | X47: 13 | Y47: C | Z47: 17 | AA47: C
A48: 9 | B48: C | C48: 20 | D48: C | X48: 9 | Y48: C | Z48: 20 | AA48: C
A49: 23 | B49: C | C49: 7 | D49: C | X49: 23 | Y49: C | Z49: 7 | AA49: C
B50: C | C50: 29 | D50: C | Y50: C | Z50: 29 | AA50: C
B51: C | C51: 29 | D51: C | Y51: C | Z51: 29 | AA51: C
A52: 11 | B52: C | C52: 28 | D52: C | X52: 11 | Y52: C | Z52: 28 | AA52: C
A53: 9 | B53: C | C53: 7 | D53: C | X53: 9 | Y53: C | Z53: 7 | AA53: C
A54: 17 | B54: C | C54: 26 | D54: C | X54: 17 | Y54: C | Z54: 26 | AA54: C
A55: 11 | B55: C | C55: 27 | D55: C | X55: 11 | Y55: C | Z55: 27 | AA55: C
A56: 10 | B56: C | C56: 27 | D56: C | X56: 10 | Y56: C | Z56: 27 | AA56: C
A57: 23 | B57: C | C57: 17 | D57: C | X57: 23 | Y57: C | Z57: 17 | AA57: C
A58: 11 | B58: C | C58: 30 | D58: C | X58: 11 | Y58: C | Z58: 30 | AA58: C
A59: 14 | B59: C | D59: C | X59: 14 | Y59: C | AA59: C
A60: 35 | B60: C | C60: 9 | D60: C | X60: 35 | Y60: C | Z60: 9 | AA60: C
A61: 5 | B61: C | C61: 8 | D61: C | X61: 5 | Y61: C | Z61: 8 | AA61: C
A62: 9 | B62: C | C62: 7 | D62: C | X62: 9 | Y62: C | Z62: 7 | AA62: C
A63: 10 | B63: C | C63: 9 | D63: C | X63: 10 | Y63: C | Z63: 9 | AA63: C
B64: C | C64: 29 | D64: C | Y64: C | Z64: 29 | AA64: C
B65: C | C65: 5 | D65: C | Y65: C | Z65: 5 | AA65: C
B66: C | C66: 24 | D66: C | Y66: C | Z66: 24 | AA66: C
A67: 6 | B67: C | C67: 7 | D67: C | X67: 6 | Y67: C | Z67: 7 | AA67: C
A68: 6 | B68: C | C68: 29 | D68: C | X68: 6 | Y68: C | Z68: 29 | AA68: C
A69: 23 | B69: C | C69: 29 | D69: C | X69: 23 | Y69: C | Z69: 29 | AA69: C
B70: C | C70: 30 | D70: C | Y70: C | Z70: 30 | AA70: C
A71: 11 | B71: C | C71: 28 | D71: C | X71: 11 | Y71: C | Z71: 28 | AA71: C
A72: 13 | B72: M | C72: 28 | D72: C | X72: 7 | Y72: C | Z72: 28 | AA72: C
A73: 12 | B73: M | C73: 29 | D73: C | X73: 24 | Y73: C | Z73: 29 | AA73: C
A74: 14 | B74: M | C74: 8 | D74: C | X74: 10 | Y74: C | Z74: 8 | AA74: C
A75: 10 | B75: M | C75: 28 | D75: C | X75: 21 | Y75: C | Z75: 28 | AA75: C
A76: 10 | B76: M | C76: 6 | D76: C | X76: 5 | Y76: C | Z76: 6 | AA76: C
B77: M | C77: 6 | D77: C | X77: 24 | Y77: C | Z77: 6 | AA77: C
B78: M | C78: 10 | D78: C | Y78: C | Z78: 10 | AA78: C
B79: M | C79: 29 | D79: C | Y79: C | Z79: 29 | AA79: C
B80: M | C80: 12 | D80: C | X80: 23 | Y80: C | Z80: 12 | AA80: C
A81: 12 | B81: M | C81: 13 | D81: C | X81: 21 | Y81: C | Z81: 13 | AA81: C
A82: 10 | B82: M | C82: 10 | D82: C | X82: 18 | Y82: C | Z82: 10 | AA82: C
A83: 11 | B83: M | C83: 29 | D83: C | X83: 22 | Y83: C | Z83: 29 | AA83: C
A84: 23 | B84: M | C84: 14 | D84: C | X84: 33 | Y84: C | Z84: 14 | AA84: C
A85: 11 | B85: M | C85: 20 | D85: C | X85: 28 | Y85: C | Z85: 20 | AA85: C
B86: M | C86: 25 | D86: C | X86: 10 | Y86: C | Z86: 25 | AA86: C
A87: 8 | B87: M | C87: 15 | D87: C | X87: 6 | Y87: C | Z87: 15 | AA87: C
A88: 7 | B88: M | C88: 28 | D88: C | Y88: C | Z88: 28 | AA88: C
A89: 17 | B89: M | C89: 16 | D89: C | X89: 17 | Y89: C | Z89: 16 | AA89: C
A90: 23 | B90: M | C90: 28 | D90: C | X90: 15 | Y90: C | Z90: 28 | AA90: C
A91: 16 | B91: M | C91: 28 | D91: C | X91: 17 | Y91: C | Z91: 28 | AA91: C
A92: 7 | B92: M | C92: 16 | D92: C | X92: 14 | Y92: C | Z92: 16 | AA92: C
A93: 8 | B93: M | C93: 7 | D93: C | X93: 10 | Y93: C | Z93: 7 | AA93: C
A94: 9 | B94: M | C94: 28 | D94: C | X94: 13 | Y94: C | Z94: 28 | AA94: C
A95: 10 | B95: M | C95: 5 | D95: C | X95: 13 | Y95: C | Z95: 5 | AA95: C
A96: 19 | B96: M | D96: C | X96: 14 | Y96: C | AA96: C
A97: 10 | B97: M | C97: 22 | D97: C | X97: 26 | Y97: C | Z97: 22 | AA97: C
A98: 5 | B98: M | C98: 28 | D98: C | X98: 12 | Y98: C | Z98: 28 | AA98: C
A99: 21 | B99: M | C99: 7 | D99: C | Y99: C | Z99: 7 | AA99: C
A100: 27 | B100: M | C100: 11 | D100: C | X100: 8 | Y100: C | Z100: 11 | AA100: C
A101: 7 | B101: C | C101: 12 | D101: C | X101: 15 | Y101: C | Z101: 12 | AA101: C
A102: 24 | B102: C | C102: 7 | D102: C | X102: 13 | Y102: C | Z102: 7 | AA102: C
A103: 10 | B103: C | C103: 7 | D103: C | X103: 16 | Y103: C | Z103: 7 | AA103: C
A104: 21 | B104: C | C104: 11 | D104: C | X104: 6 | Y104: C | Z104: 11 | AA104: C
A105: 5 | B105: C | C105: 7 | D105: C | X105: 11 | Y105: C | Z105: 7 | AA105: C
A106: 24 | B106: C | C106: 6 | D106: C | X106: 15 | Y106: C | Z106: 6 | AA106: C
B107: C | C107: 5 | D107: C | X107: 5 | Y107: C | Z107: 5 | AA107: C
B108: C | C108: 6 | D108: C | X108: 8 | Y108: C | Z108: 6 | AA108: C
A109: 23 | B109: C | C109: 7 | D109: C | X109: 27 | Y109: C | Z109: 7 | AA109: C
A110: 21 | B110: C | C110: 6 | D110: C | X110: 9 | Y110: C | Z110: 6 | AA110: C
A111: 18 | B111: C | C111: 6 | D111: C | X111: 11 | Y111: C | Z111: 6 | AA111: C
A112: 22 | B112: C | D112: C | X112: 21 | Y112: C | AA112: C
A113: 33 | B113: C | C113: 28 | D113: C | X113: 10 | Y113: C | Z113: 28 | AA113: C
A114: 28 | B114: C | C114: 5 | D114: C | X114: 11 | Y114: C | Z114: 5 | AA114: C
A115: 10 | B115: C | C115: 5 | D115: C | X115: 11 | Y115: C | Z115: 5 | AA115: C
A116: 6 | B116: C | C116: 6 | D116: C | X116: 12 | Y116: C | Z116: 6 | AA116: C
B117: C | C117: 5 | D117: C | X117: 10 | Y117: C | Z117: 5 | AA117: C
A118: 17 | B118: C | C118: 6 | D118: C | Y118: C | Z118: 6 | AA118: C
A119: 15 | B119: C | C119: 5 | D119: C | X119: 19 | Y119: C | Z119: 5 | AA119: C
A120: 17 | B120: C | C120: 6 | D120: C | X120: 19 | Y120: C | Z120: 6 | AA120: C
A121: 14 | B121: C | D121: C | X121: 12 | Y121: C | AA121: C
A122: 10 | B122: C | D122: C | X122: 23 | Y122: C | AA122: C
A123: 13 | B123: C | C123: 5 | D123: C | X123: 24 | Y123: C | Z123: 5 | AA123: C
A124: 13 | B124: C | C124: 27 | D124: C | X124: 27 | Y124: C | Z124: 27 | AA124: C
A125: 14 | B125: C | C125: 5 | D125: C | X125: 24 | Y125: C | Z125: 5 | AA125: C
A126: 26 | B126: C | C126: 5 | D126: C | X126: 12 | Y126: C | Z126: 5 | AA126: C
A127: 12 | B127: C | C127: 5 | D127: C | X127: 21 | Y127: C | Z127: 5 | AA127: C
B128: C | D128: C | X128: 14 | Y128: C | AA128: C
A129: 8 | B129: C | C129: 5 | D129: C | X129: 18 | Y129: C | Z129: 5 | AA129: C
A130: 15 | B130: C | C130: 7 | D130: C | X130: 17 | Y130: C | Z130: 7 | AA130: C
A131: 13 | B131: C | C131: 6 | D131: C | X131: 12 | Y131: C | Z131: 6 | AA131: C
A132: 16 | B132: C | D132: C | X132: 20 | Y132: C | AA132: C
A133: 6 | B133: C | C133: 5 | D133: C | X133: 22 | Y133: C | Z133: 5 | AA133: C
A134: 11 | B134: C | C134: 7 | D134: C | X134: 16 | Y134: C | Z134: 7 | AA134: C
A135: 15 | B135: C | C135: 6 | D135: C | X135: 12 | Y135: C | Z135: 6 | AA135: C
A136: 5 | B136: C | C136: 27 | D136: C | X136: 13 | Y136: C | Z136: 27 | AA136: C
A137: 8 | B137: C | D137: C | X137: 19 | Y137: C | AA137: C
A138: 27 | B138: C | C138: 22 | D138: C | X138: 8 | Y138: C | Z138: 22 | AA138: C
A139: 9 | B139: C | D139: C | X139: 11 | Y139: C | AA139: C
A140: 11 | B140: C | C140: 6 | D140: C | X140: 19 | Y140: C | Z140: 6 | AA140: C
A141: 21 | B141: C | C141: 24 | D141: C | Y141: C | Z141: 24 | AA141: C
A142: 10 | B142: C | C142: 28 | D142: C | Y142: C | Z142: 28 | AA142: C
A143: 11 | B143: C | C143: 6 | D143: M | Y143: C | Z143: 6 | AA143: M
A144: 11 | B144: C | C144: 5 | D144: M | Y144: C | Z144: 5 | AA144: M
A145: 12 | B145: C | C145: 5 | D145: M | X145: 11 | Y145: C | Z145: 5 | AA145: M
A146: 10 | B146: C | D146: M | X146: 24 | Y146: C | AA146: M
B147: C | C147: 5 | D147: M | X147: 13 | Y147: C | Z147: 5 | AA147: M
A148: 19 | B148: C | C148: 5 | D148: M | X148: 15 | Y148: C | Z148: 5 | AA148: M
A149: 19 | B149: C | D149: M | X149: 18 | Y149: C | AA149: M
A150: 12 | B150: C | C150: 5 | D150: M | X150: 15 | Y150: C | Z150: 5 | AA150: M
A151: 23 | B151: C | D151: M | X151: 12 | Y151: C | AA151: M
A152: 24 | B152: C | C152: 6 | D152: M | X152: 12 | Y152: C | Z152: 6 | AA152: M
A153: 27 | B153: C | D153: M | X153: 10 | Y153: C | AA153: M
A154: 24 | B154: C | C154: 9 | D154: M | X154: 24 | Y154: C | Z154: 9 | AA154: M
A155: 12 | B155: C | D155: M | X155: 11 | Y155: C | AA155: M
A156: 21 | B156: C | C156: 5 | D156: M | X156: 13 | Y156: M | Z156: 5 | AA156: M
A157: 14 | B157: C | C157: 28 | D157: M | X157: 12 | Y157: M | Z157: 28 | AA157: M
A158: 18 | B158: C | C158: 7 | D158: M | X158: 14 | Y158: M | Z158: 7 | AA158: M
A159: 17 | B159: C | C159: 17 | D159: M | X159: 10 | Y159: M | Z159: 17 | AA159: M
A160: 12 | B160: C | C160: 7 | D160: M | X160: 10 | Y160: M | Z160: 7 | AA160: M
A161: 20 | B161: C | C161: 5 | D161: M | Y161: M | Z161: 5 | AA161: M
A162: 22 | B162: C | C162: 28 | D162: M | Y162: M | Z162: 28 | AA162: M
A163: 16 | B163: C | C163: 14 | D163: M | Y163: M | Z163: 14 | AA163: M
A164: 12 | B164: C | D164: M | Y164: M | AA164: M
A165: 13 | B165: C | C165: 5 | D165: M | X165: 12 | Y165: M | Z165: 5 | AA165: M
A166: 19 | B166: C | D166: M | X166: 10 | Y166: M | AA166: M
A167: 8 | B167: C | C167: 5 | D167: M | X167: 11 | Y167: M | Z167: 5 | AA167: M
A168: 11 | B168: C | C168: 5 | D168: M | X168: 23 | Y168: M | Z168: 5 | AA168: M
A169: 19 | B169: C | C169: 21 | D169: M | X169: 11 | Y169: M | Z169: 21 | AA169: M
B170: C | C170: 28 | D170: M | Y170: M | Z170: 28 | AA170: M
B171: C | C171: 9 | D171: M | X171: 8 | Y171: M | Z171: 9 | AA171: M
B172: C | C172: 7 | D172: M | X172: 7 | Y172: M | Z172: 7 | AA172: M
B173: C | C173: 28 | D173: M | X173: 17 | Y173: M | Z173: 28 | AA173: M
A174: 11 | B174: C | C174: 28 | D174: M | X174: 23 | Y174: M | Z174: 28 | AA174: M
A175: 24 | B175: C | C175: 5 | D175: M | X175: 16 | Y175: M | Z175: 5 | AA175: M
A176: 13 | B176: C | D176: M | X176: 7 | Y176: M | AA176: M
A177: 15 | B177: C | C177: 5 | D177: M | X177: 8 | Y177: M | Z177: 5 | AA177: M
A178: 18 | B178: C | D178: M | X178: 9 | Y178: M | AA178: M
A179: 15 | B179: C | D179: M | X179: 10 | Y179: M | AA179: M
A180: 12 | B180: C | D180: M | X180: 19 | Y180: M | AA180: M
A181: 12 | B181: C | D181: M | X181: 10 | Y181: M | AA181: M
A182: 10 | B182: C | D182: M | X182: 5 | Y182: M | AA182: M
A183: 24 | B183: C | D183: M | X183: 21 | Y183: M | AA183: M
A184: 11 | B184: C | C184: 5 | D184: M | X184: 27 | Y184: M | Z184: 5 | AA184: M
A185: 23 | B185: M | C185: 9 | D185: M | X185: 23 | Y185: M | Z185: 9 | AA185: M
A186: 6 | B186: M | D186: M | X186: 6 | Y186: M | AA186: M
B187: M | C187: 5 | D187: M | Y187: M | Z187: 5 | AA187: M
A188: 5 | B188: M | C188: 6 | D188: M | X188: 5 | Y188: M | Z188: 6 | AA188: M
A189: 9 | B189: M | C189: 17 | D189: M | X189: 9 | Y189: M | Z189: 17 | AA189: M
A190: 9 | B190: M | C190: 5 | D190: M | X190: 9 | Y190: M | Z190: 5 | AA190: M
A191: 5 | B191: M | C191: 9 | D191: M | X191: 5 | Y191: M | Z191: 9 | AA191: M
A192: 5 | B192: M | C192: 5 | D192: M | X192: 5 | Y192: M | Z192: 5 | AA192: M
A193: 9 | B193: M | C193: 9 | D193: M | X193: 9 | Y193: M | Z193: 9 | AA193: M
B194: M | C194: 7 | D194: M | Y194: M | Z194: 7 | AA194: M
A195: 6 | B195: M | C195: 7 | D195: M | X195: 6 | Y195: M | Z195: 7 | AA195: M
A196: 5 | B196: M | D196: M | X196: 5 | Y196: M | AA196: M
A197: 5 | B197: M | D197: M | X197: 5 | Y197: M | AA197: M
A198: 9 | B198: M | D198: M | X198: 9 | Y198: M | AA198: M
A199: 7 | B199: M | D199: M | X199: 7 | Y199: M | AA199: M
A200: 11 | B200: M | C200: 7 | D200: M | X200: 11 | Y200: M | Z200: 7 | AA200: M
... 185 more rows
